{"text_format":"1","workbook":"xlsx","n_sheets":62,"sheets":["modList14_1","modProv","Инструкция","Лог обновления","Титульный","Территории","Перечень тарифов","Форма 1.0.1 | Форма 3.11","Форма 3.11","Форма 1.0.1 | Форма 3.12.1","Форма 3.12.1","Форма 1.0.1 | Т-ВО","Форма 3.12.2 | Т-ВО","Форма 1.0.1 | Т-транс","Форма 3.12.2 | Т-транс","Форма 1.0.1 | Т-подкл(инд)","Форма 3.12.3 | Т-подкл(инд)","Форма 1.0.1 | Т-подкл","Форма 3.12.3 | Т-подкл","Форма 1.0.2","Сведения об изменении","Комментарии","Проверка","modListTempFilter","modCheckCyan","REESTR_LINK","REESTR_DS","modHTTP","modfrmRezimChoose","modSheetMain","REESTR_VT","REESTR_VED","modfrmReestrObj","AllSheetsInThisWorkbook","et_union_vert","modInstruction","modRegion","modReestr","modfrmReestr","modUpdTemplMain","REESTR_ORG","modClassifierValidate","modHyp","modServiceModule","modList00","modList01","modList02","modList03","REESTR_MO_FILTER","REESTR_MO","TEHSHEET","et_union_hor","modInfo","modList05","modList06","modList07","modList13","modfrmDateChoose","modComm","modThisWorkbook","modfrmReestrMR","modfrmCheckUpdates"],"not_rendered":{"charts":0,"images":21,"macros":1,"external_links":0,"defined_names":557,"comments":0,"pivot_tables":0},"unopened":[],"bounds":{"document_bytes":16777216,"sheet_cells":100000,"rows_first":2000,"rows_last":500,"rows_between":2000,"halvings":0,"cell_chars":16384,"cell_head_chars":4096},"cells_cut":0,"cells_raw":0,"read":"whole","date_system":"1900"}

{"sheet":"modList14_1","index":0,"n_rows":0,"n_cols":0,"rows_kept":0,"cut":false,"hidden":true,"merged":[]}

{"sheet":"modProv","index":1,"n_rows":0,"n_cols":0,"rows_kept":0,"cut":false,"hidden":true,"merged":[]}

{"sheet":"Инструкция","index":2,"n_rows":102,"n_cols":27,"rows_kept":102,"cut":false,"hidden":false,"merged":[[1,1,1,6],[2,1,2,2],[6,4,18,23],[22,15,22,22],[57,4,57,20],[4,1,4,24],[40,4,44,23],[20,5,20,12],[20,15,20,23],[21,15,21,23],[34,4,38,23],[21,5,21,12],[39,4,39,23],[101,5,101,23],[99,5,99,18],[81,4,81,6],[97,4,97,23],[80,4,80,20],[83,7,83,23],[59,7,59,23],[81,7,81,23],[45,4,56,23],[69,4,69,19],[59,4,59,6],[58,7,58,23],[58,4,58,6],[70,4,70,19],[60,7,60,23]]}
[null,null,null,null,null,null,null,null,null,null,null,null,null,null,null,null,null,null,null,null,null,null,null,null,null,null," (требуется обновление)"]
[null,{"$f":"\"Код отчёта: \" & GetCode()","v":"Код отчёта: FAS.JKH.OPEN.INFO.REQUEST.VO"}]
[null,{"$f":"\"Версия \" & GetVersion()","v":"Версия 1.0.2"}]
[]
[null,"Предложение регулируемой организации об установлении тарифов в сфере водоотведения, информация о способах приобретения, стоимости и объемах товаров, необходимых для производства регулируемых товаров и (или) оказания регулируемых услуг"]
[]
[null,null,null,null,"• На рабочем месте должен быть установлен MS Office 2007 SP3, 2010, 2013, 2016 с полной версией MS Excel\n\n• Макросы во время работы должны быть включены (!)\n\n• Для корректной работы отчёта требуется выбрать низкий уровень безопасности\n(В меню MS Excel 2007/2010/2013/2016: Параметры Excel | Центр управления безопасностью | Параметры центра управления безопасностью | Параметры макросов | Включить все макросы | ОК)\n\n• Если Вы работаете в табличном процессоре MS Excel 2007 и выше, то можете использовать для работы формат XLSB (Двоичная книга Excel). При работе в формате XLSB заметно быстрее происходит сохранение файла, а также уменьшается размер по сравнению с форматами XLS и XLSM\n\n• Не рекомендуется снимать защиту с листов и каким-либо образом модифицировать защищаемые формулы и расчётные поля, в противном случае, отчёт будет отклонён системой\n\n• При сохранении не следует выбирать формат XLSX (Книга Excel), так как в указанном формате макросы, необходимые для работы отчёта, безвозвратно удаляются"]
[]
[]
[]
[]
[]
[]
[]
[]
[]
[]
[]
[]
[]
[null,null,null,null,"A"," - необязательные для заполнения",null,null,null,null,null,null,null,null,"A"," - с формулами и константами"]
[null,null,null,null,"A"," - обязательные для заполнения",null,null,null,null,null,null,null,null,"A"," - с выбором значений по двойному клику"]
[]
[]
[]
[]
[]
[]
[]
[]
[]
[]
[]
[]
[null,null,null,null,"Если в предложенном Вам списке необходимая организация, МР/МО отсутствуют, обновите реестры с помощью кнопок\n\nВ результате синхронизации с базой данных список организаций (МР/МО) будет заменён актуальным (механизм синхронизации требует подключения к сети Интернет и основан на использовании протокола HTTPS (TCP порт 443))\n\nЕсли после обновления Вам не удалось найти необходимую организацию в списке, обратитесь к ответственному за поддержание реестра Вашего региона."]
[]
[]
[]
[]
[]
[]
[]
[]
[]
[]
[null,null,null,null,"• При сохранении шаблона осуществляется проверка корректности данных, в том числе на наличие значений в ячейках, обязательных для заполнения\n\n• Если какая-то ячейка не удовлетворяет условию проверки, на лист «Проверка» добавляется гиперссылка на данную ячейку и указывается причина ошибки\n\n• В колонке «Статус» для каждого сообщения возможны 2 значения: ошибка и предупреждение\n\n• При наличии сообщений со статусом «Ошибка» шаблон будет отклонён системой и не будет загружен в хранилище данных, сообщения со статусом «Предупреждение» носят информационный характер, и такой шаблон будет принят системой"]
[]
[]
[]
[]
[]
[]
[]
[]
[]
[]
[]
[null,null,null,null,"Обратиться за помощью в службу технической поддержки"]
[]
[]
[]
[]
[]
[]
[]
[]
[]
[]
[]
[null,null,null,null,"Инструкция по загрузке сопроводительных материалов"]
[null,null,null,null,"Инструкция по работе с отчетной формой"]
[]
[]
[]
[]
[]
[]
[]
[]
[]
[null,null,null,null,"Обратиться за помощью в службу технической поддержки"]
[]
[]
[]
[]
[]
[]
[]
[]
[]
[]
[]
[]
[]
[]
[]
[]
[null,null,null,null,"При наличии подключения к Интернет, можно автоматически проверять наличие доступных обновлений. Выберите способ оповещения о наличии обновлений для отчёта:"]
[]
[null,null,null,null,null,"проверять доступные обновления (рекомендуется)",null,null,null,null,null,null,null,null,null,null,null,null,null,null,null,null,null,null,null,null,"y"]
[]
[null,null,null,null,null,"никогда не проверять наличие обновлений (не рекомендуется)"]

{"sheet":"Лог обновления","index":3,"n_rows":26,"n_cols":3,"rows_kept":26,"cut":false,"hidden":true,"merged":[]}
["Дата/Время","Сообщение","Статус"]
["2019-05-01T10:43:43","Проверка доступных обновлений...","Информация"]
["2019-05-01T10:43:44","Нет доступных обновлений для отчёта с кодом FAS.JKH.OPEN.INFO.REQUEST.VO!","Информация"]
["2019-05-01T10:43:58","Проверка доступных обновлений...","Информация"]
["2019-05-01T10:43:59","Нет доступных обновлений для отчёта с кодом FAS.JKH.OPEN.INFO.REQUEST.VO!","Информация"]
["2019-05-01T10:45:59","Проверка доступных обновлений...","Информация"]
["2019-05-01T10:46:01","Нет доступных обновлений для отчёта с кодом FAS.JKH.OPEN.INFO.REQUEST.VO!","Информация"]
["2019-05-05T09:09:41","Проверка доступных обновлений...","Информация"]
["2019-05-06T10:26:02","Проверка доступных обновлений...","Информация"]
["2019-05-06T10:26:04","Нет доступных обновлений для отчёта с кодом FAS.JKH.OPEN.INFO.REQUEST.VO!","Информация"]
["2019-05-07T11:13:19","Проверка доступных обновлений...","Информация"]
["2019-05-07T11:13:20","Нет доступных обновлений для отчёта с кодом FAS.JKH.OPEN.INFO.REQUEST.VO!","Информация"]
["2019-05-07T15:47:32","Проверка доступных обновлений...","Информация"]
["2019-05-07T15:47:33","Нет доступных обновлений для отчёта с кодом FAS.JKH.OPEN.INFO.REQUEST.VO!","Информация"]
["2020-04-30T10:40:43","Проверка доступных обновлений...","Информация"]
["2020-04-30T10:40:45","Доступно обновление до версии 1.0.2","Информация"]
["2020-04-30T10:40:45","Описание изменений: Версия 1.0.2\n1. Корректировка значения группы потребителей \"население\" на \"население и приравненные категории\"\n\nВерсия 1.0.1\n1. Исправление логики работы листа 'Форма 3.12.1' при отсутствии у организации инвестиционной программы (ее проекта).\n2. Корректировка проверки при сохранении.","Информация"]
["2020-04-30T10:40:45","Размер файла обновления: 378368 байт","Информация"]
["2020-04-30T10:40:48","Подготовка к обновлению...","Информация"]
["2020-04-30T10:40:56","Сохранение файла резервной копии: D:\\РАБОТА\\ПЭО\\Тариф\\РАСКРЫТИЕ ИвПГУ и КоГРЭС\\2020\\предложения на 2021\\3.FAS.JKH.OPEN.INFO.REQUEST.VO кослк2 2021-2022.BKP..xlsm","Информация"]
["2020-04-30T10:40:59","Резервная копия создана: D:\\РАБОТА\\ПЭО\\Тариф\\РАСКРЫТИЕ ИвПГУ и КоГРЭС\\2020\\предложения на 2021\\3.FAS.JKH.OPEN.INFO.REQUEST.VO кослк2 2021-2022.BKP..xlsm","Информация"]
["2020-04-30T10:40:59","Создание книги для установки обновлений...","Информация"]
["2020-04-30T10:41:03","Файл обновления загружен: D:\\РАБОТА\\ПЭО\\Тариф\\РАСКРЫТИЕ ИвПГУ и КоГРЭС\\2020\\предложения на 2021\\UPDATE.FAS.JKH.OPEN.INFO.REQUEST.VO.TO.1.0.2.7.xls","Информация"]
["2020-04-30T10:41:11","Обновление завершилось удачно! Шаблон 3.FAS.JKH.OPEN.INFO.REQUEST.VO кослк2 2021-2022.xlsm сохранен под именем '3.FAS.JKH.OPEN.INFO.REQUEST.VO кослк2 2021-2022(v1.0.2).xlsm'","Информация"]
["2020-05-06T10:56:35","Проверка доступных обновлений...","Информация"]
["2020-05-06T10:56:36","Нет доступных обновлений для отчёта с кодом FAS.JKH.OPEN.INFO.REQUEST.VO!","Информация"]

{"sheet":"Титульный","index":4,"n_rows":44,"n_cols":11,"rows_kept":44,"cut":false,"hidden":false,"merged":[[4,4,4,5],[51,4,51,8]]}
[null,null,null,null,null,26324371]
[null,null,null,null,{"$f":"\"Код шаблона: \" & GetCode()","v":"Код шаблона: FAS.JKH.OPEN.INFO.REQUEST.VO"}]
[null,null,null,null,{"$f":"\"Версия \" & GetVersion()","v":"Версия 1.0.2"}]
[]
[null,null,null,null,"Предложение регулируемой организации об установлении тарифов в сфере водоотведения, информация о способах приобретения, стоимости и объемах товаров, необходимых для производства регулируемых товаров и (или) оказания регулируемых услуг"]
[]
[null,null,null,null,"Субъект РФ","Костромская область"]
[]
[null,null,null,null,"Отсутствует Интернет в границах территории МО, где организация осуществляет регулируемые виды деятельности","нет"]
[]
[null,null,null,null,"Начало периода регулирования","01.01.2020"]
[null,null,null,null,"Окончание периода регулирования","31.12.2022"]
[]
[null,null,null,null,"Тип отчета","изменения в раскрытой ранее информации"]
[null,null,null,null,"Дата внесения изменений в информацию, подлежащую раскрытию","06.05.2020"]
[null,null,null,null,"Дата периода регулирования, с которой предлагаются изменения в тарифы","01.01.2021"]
[null,null,null,null,null,"Первичное предложение по тарифам"]
[]
[null,null,null,null,"Дата подачи заявления об утверждении тарифов","29.04.2019"]
[null,null,null,null,"Номер подачи заявления об утверждении тарифов","О-904"]
[]
[null,null,null,null,null,"Изменение тарифов"]
[]
[null,null,null,null,"Дата подачи заявления об изменении тарифов","27.04.2020"]
[null,null,null,null,"Номер заявления об изменении тарифов","вх. №О-770"]
[]
[]
[null,null,null,null,"Является ли данное юридическое лицо подразделением (филиалом) другой организации","да"]
[null,null,null,null,"Наименование организации","филиал \"Костромская ГРЭС\" АО \"Интер РАО-Электрогенерация\"",null,null,null,null," "]
[null,null,null,null,"Наименование филиала","Костромская ГРЭС"]
[null,null,null,null,"ИНН","7704784450"]
[null,null,null,null,"КПП","443143001"]
[]
[null,null,null,null,"Режим налогообложения","общий"]
[]
[]
[]
[null,null,null,null,"Почтовый адрес регулируемой организации","156901, Костромская область, г. Волгроеченск"]
[null,null,null,null,"Фамилия, имя, отчество руководителя","Николаев Андрей Александрович"]
[null,null,null,null,null,"Ответственный за заполнение формы"]
[null,null,null,null,"Фамилия, имя, отчество","Пучков Александр Евгеньевич"]
[null,null,null,null,"Должность","Ведущий экономист Планового-экономического отдела"]
[null,null,null,null,"Контактный телефон","+7-(49453)7-28-27"]
[null,null,null,null,"E-mail","Puchkov_ae@interrao.ru"]

{"sheet":"Территории","index":5,"n_rows":15,"n_cols":18,"rows_kept":15,"cut":false,"hidden":false,"merged":[[12,7,13,7],[11,2,13,2],[11,3,13,3],[11,4,13,4],[12,5,13,5],[12,6,13,6],[8,5,8,6],[8,8,8,9],[9,5,9,6],[9,8,9,9],[3,3,3,7],[5,3,5,4],[5,5,5,6],[7,3,7,4],[7,8,7,11],[7,5,7,7]]}
[null,null,null,null,null,null,null,null,null,null,"МО","ОКТМО","МР"]
[]
[]
[null,null,null,"Перечень муниципальных районов и муниципальных образований (территорий действия тарифа)"]
[]
[null,null,null,null,null,"да"]
[]
[null,null,null,"Территория действия тарифа",null,"Муниципальный район",null,null,"Муниципальное образование"]
[null,null,null,"№ п/п","Наименование","№ п/п",null,"Наименование","№ п/п",null,"Наименование","ОКТМО"]
[null,null,null,"1","2","3",null,"4","5",null,"6","7"]
[null,null,null,0,null,null,null,null,null,null,null,null,"размерженный МР",null,null,"флаг используемости территории на листе Перечень тарифов","копия территорий","МР (ОКТМО)"]
[null,"auto",null,1,"городской округ город Волгореченск, городской округ город Волгореченск (34706000);",null,0,null,null,"0",null,null,{"$f":"mergeValue(H12)","v":0},null,null,{"$f":"IF(ISERROR(MATCH(Q12,MODesc,0)),\"n\",\"y\")","v":"n"},"городской округ город Волгореченск, городской округ город Волгореченск (34706000);",{"$f":"K12&\"(\"&L12&\")\"","v":"()"}]
[null,"auto",null,null,null,null,1,"городской округ город Волгореченск",null,"0",null,null,{"$f":"mergeValue(H13)","v":"городской округ город Волгореченск"},null,null,null,null,{"$f":"K13&\"(\"&L13&\")\"","v":"()"}]
[null,"auto",null,null,null,null,null,null,null,1,"городской округ город Волгореченск","34706000",{"$f":"mergeValue(H14)","v":"городской округ город Волгореченск"},null,null,null,null,{"$f":"K14&\" (\"&L14&\")\"","v":"городской округ город Волгореченск (34706000)"}]
[null,"man",null,null,null,null,null,null,null,null,null,null,null,null,null,null,"Добавить территорию действия тарифа"]

{"sheet":"Перечень тарифов","index":6,"n_rows":21,"n_cols":19,"rows_kept":21,"cut":false,"hidden":false,"merged":[[20,13,21,13],[20,14,21,14],[20,8,22,8],[20,9,22,9],[20,10,22,10],[20,11,21,11],[20,12,21,12],[20,3,23,3],[20,4,23,4],[20,5,23,5],[20,6,23,6],[20,7,22,7],[4,3,4,9],[10,4,10,5],[16,3,17,3],[16,4,17,4],[12,4,12,5],[8,6,8,9],[5,3,5,9],[7,4,7,5],[8,4,8,5],[9,4,9,5],[6,4,6,5],[16,5,17,5],[11,4,11,5],[16,18,17,18],[16,14,16,17],[16,10,16,13],[16,6,17,6],[6,6,6,9],[7,6,7,9],[16,9,17,9],[9,6,9,9],[16,7,17,8],[18,7,18,8],[17,11,17,12],[17,15,17,16],[18,11,18,12],[18,15,18,16]]}
[]
[]
[]
[]
[null,null,null,"Перечень тарифов и технологически не связанных между собой централизованных систем водоотведения, в отношении которых предлагаются различные тарифы в сфере водоотведения"]
[]
[]
[]
[]
[]
[]
[]
[]
[]
[]
[]
[null,null,null,"№ п/п","Вид тарифа","Вид деятельности","Наличие двухставочного тарифа","№ п/п",null,"Наименование тарифа","Дифференциация по\n МО (территориям)",null,null,null,"Дифференциация по \nцентрализованным системам водоотведения",null,null,null,"Примечание"]
[null,null,null,null,null,null,null,null,null,null,"да/нет","№ п/п",null,"Описание","да/нет","№ п/п",null,"Описание"]
[null,null,null,"1","2","3","4","5",null,"6","7","8",null,"9","10","11",null,"12","13"]
[null,null,null,0]
[2,null,null,1,"Тариф на транспортировку сточных вод","Транспортировка","нет",null,1,"Тариф на услуги по транспортировке сточных вод (с канализационных очистных сооружений до ЛК-2)","нет",null,"1",null,"нет",null,"1"]

{"sheet":"Форма 1.0.1 | Форма 3.11","index":7,"n_rows":15,"n_cols":10,"rows_kept":15,"cut":false,"hidden":false,"merged":[[14,6,14,7],[1,5,1,7],[3,5,3,7],[3,8,4,8],[7,0,12,0],[10,1,12,1],[11,2,12,2]]}
["11"]
[null,null,null,null,null,"Форма 1.0.1 Основные параметры раскрываемой информации 1"]
[]
[null,null,null,null,null,"Параметры формы",null,null,"Описание параметров формы"]
[null,null,null,null,null,"№ п/п","Наименование параметра","Информация"]
[null,null,null,null,null,"1",2,3,4,4]
[null,null,null,null,null,1,"Дата заполнения/внесения изменений",{"$f":"IF(dateCh=\"\",\"\",dateCh)","v":"06.05.2020"},"Указывается календарная дата первичного заполнения или внесения изменений в форму в виде «ДД.ММ.ГГГГ»."]
[1,null,null,null,null,{"$f":"\"2.\" &mergeValue(A8)","v":"2.1"},"Наименование централизованной системы коммунальной инфраструктуры",{"$f":"IF('Перечень тарифов'!R21=\"\",\"наименование отсутствует\",\"\" & 'Перечень тарифов'!R21 & \"\")","v":"наименование отсутствует"},"Указывается наименование централизованной системы холодного водоснабжения/горячего водоснабжения/водоотведения/теплоснабжения, к которой относится размещаемая информация.\nВ случае наличия нескольких централизованных систем коммунальной инфраструктуры, информация по каждой из них указывается в отдельной строке."]
[null,null,null,null,null,{"$f":"\"3.\" &mergeValue(A9)","v":"3.1"},"Наименование регулируемого вида деятельности",{"$f":"IF('Перечень тарифов'!F21=\"\",\"наименование отсутствует\",\"\" & 'Перечень тарифов'!F21 & \"\")","v":"Транспортировка"},"Указывается наименование вида регулируемой деятельности."]
[null,null,null,null,null,{"$f":"\"4.\"&mergeValue(A10)","v":"4.1"},"Территория оказания услуги по регулируемому виду деятельности","x"]
[null,1,null,null,null,{"$f":"\"4.\"&mergeValue(A11) &\".\"&mergeValue(B11)","v":"4.1.1"},"Субъект Российской Федерации",{"$f":"IF(region_name=\"\",\"\",region_name)","v":"Костромская область"},"Указывается наименование субъекта Российской Федерации"]
[null,null,1,null,null,{"$f":"\"4.\"&mergeValue(A12) &\".\"&mergeValue(B12)&\".\"&mergeValue(C12)","v":"4.1.1.1"},"муниципальный район",{"$f":"IF(Территории!H13=\"\",\"\",\"\" & Территории!H13 & \"\")","v":"городской округ город Волгореченск"},"Указывается наименование муниципального района, на территории которого организация оказывает услуги по регулируемому виду деятельности."]
[null,null,null,1,null,{"$f":"\"4.\"&mergeValue(A13) &\".\"&mergeValue(B13)&\".\"&mergeValue(C13)&\".\"&mergeValue(D13)","v":"4.1.1.1.1"},"муниципальное образование",{"$f":"IF(Территории!R14=\"\",\"\",\"\" & Территории!R14 & \"\")","v":"городской округ город Волгореченск (34706000)"},"Указывается наименование и код муниципального района, муниципального образования в соответствии с Общероссийским классификатором территорий муниципальных образований (далее - ОКТМО), входящего в муниципальный район, на территории которого организация оказывает услуги по регулируемому виду деятельности.\nВ случае оказания услуг по регулируемому виду деятельности на территории нескольких муниципальных районов (муниципальных образований) данные по каждому их них указываются в отдельной строке."]
[]
[null,null,null,null,null,null,"  1 Информация размещается при раскрытии информации по каждой из форм."]

{"sheet":"Форма 3.11","index":8,"n_rows":14,"n_cols":8,"rows_kept":14,"cut":false,"hidden":false,"merged":[[6,3,6,6],[6,7,7,7],[4,3,4,6],[9,7,13,7]]}
[]
[]
[]
[]
[null,null,null,"Форма 3.11 Информация о способах приобретения, стоимости и объемах товаров, необходимых для производства регулируемых товаров и (или) оказания регулируемых услуг регулируемой организацией"]
[]
[null,null,null,"Параметры формы",null,null,null,"Описание параметров формы"]
[null,null,null,"№ п/п","Наименование параметра","Информация","Ссылка на документ"]
[null,null,null,"1","2","3","4","5"]
[null,null,null,"1","Сведения о правовых актах, регламентирующих правила закупки (положение о закупках) в регулируемой организации","Положение о порядке проведения регламентированных закупок товаров, работ, услуг АО\"Интер РАО-Электрогенерация\"","http://www.irao-generation.ru/upload/docs/2019/%D0%9F%D0%BE%D0%BB%D0%BE%D0%B6%D0%B5%D0%BD%D0%B8%D0%B5%20%D0%BE%20%D0%B7%D0%B0%D0%BA%D1%83%D0%BF%D0%BA%D0%B0%D1%85%20%D0%AD%D0%93%20%D1%83%D1%82%D0%B2%D0%B5%D1%80%D0%B6.%20%D0%BF%D1%80%D0%BE%D1%82%D0%BE%D0%BA%D0%BE%D0%BB%D0%BE%D0%BC%20%D0%A1%D0%94%20%E2%84%96310%20%D0%BE%D1%82%2031.07.2019.pdf","В колонке «Информация» указывается описательная информация, характеризующая размещаемые данные.\nВ колонке «Ссылка на документ» указывается либо ссылка на документ, предварительно загруженный в хранилище файлов ФГИС ЕИАС, либо ссылка на официальный сайт в сети «Интернет», на котором размещена информация.\nВ случае наличия дополнительных сведений о способах приобретения, стоимости и объемах товаров, необходимых для производства регулируемых товаров и (или) оказания регулируемых услуг регулируемой организацией, информация по ним указывается в отдельных строках."]
[null,null,null,"2","Сведения о месте размещения положения о закупках регулируемой организации","официальный сайт АО \"Интер РАО - Электрогенерация\"","http://www.irao-generation.ru/upload/docs/2019/%D0%9F%D0%BE%D0%BB%D0%BE%D0%B6%D0%B5%D0%BD%D0%B8%D0%B5%20%D0%BE%20%D0%B7%D0%B0%D0%BA%D1%83%D0%BF%D0%BA%D0%B0%D1%85%20%D0%AD%D0%93%20%D1%83%D1%82%D0%B2%D0%B5%D1%80%D0%B6.%20%D0%BF%D1%80%D0%BE%D1%82%D0%BE%D0%BA%D0%BE%D0%BB%D0%BE%D0%BC%20%D0%A1%D0%94%20%E2%84%96310%20%D0%BE%D1%82%2031.07.2019.pdf"]
[null,null,null,"3","Сведения о планировании закупочных процедур","сайт Единой информационной системы в сфере закупок (ЕИС), официальный сайт АО \"Интер РАО - Электрогенерация\"","http://zakupki.gov.ru/223/ppa/public/organization/organization.html?agencyId=12496&epz=true&style44=false,http://www.irao-generation.ru/purchases/plan/"]
[null,null,null,"4","Сведения о результатах проведения закупочных процедур","Сведения в обязательном порядке размещаются на сайте ЕИС.","http://zakupki.gov.ru/epz/main/public/home.html"]
[null,null,null,null,"Добавить сведения"]

{"sheet":"Форма 1.0.1 | Форма 3.12.1","index":9,"n_rows":15,"n_cols":10,"rows_kept":15,"cut":false,"hidden":false,"merged":[[14,6,14,7],[1,5,1,7],[3,5,3,7],[3,8,4,8],[7,0,12,0],[10,1,12,1],[11,2,12,2]]}
["11"]
[null,null,null,null,null,"Форма 1.0.1 Основные параметры раскрываемой информации 1"]
[]
[null,null,null,null,null,"Параметры формы",null,null,"Описание параметров формы"]
[null,null,null,null,null,"№ п/п","Наименование параметра","Информация"]
[null,null,null,null,null,"1",2,3,4,4]
[null,null,null,null,null,1,"Дата заполнения/внесения изменений",{"$f":"IF(dateCh=\"\",\"\",dateCh)","v":"06.05.2020"},"Указывается календарная дата первичного заполнения или внесения изменений в форму в виде «ДД.ММ.ГГГГ»."]
[1,null,null,null,null,{"$f":"\"2.\" &mergeValue(A8)","v":"2.1"},"Наименование централизованной системы коммунальной инфраструктуры",{"$f":"IF('Перечень тарифов'!R21=\"\",\"наименование отсутствует\",\"\" & 'Перечень тарифов'!R21 & \"\")","v":"наименование отсутствует"},"Указывается наименование централизованной системы холодного водоснабжения/горячего водоснабжения/водоотведения/теплоснабжения, к которой относится размещаемая информация.\nВ случае наличия нескольких централизованных систем коммунальной инфраструктуры, информация по каждой из них указывается в отдельной строке."]
[null,null,null,null,null,{"$f":"\"3.\" &mergeValue(A9)","v":"3.1"},"Наименование регулируемого вида деятельности",{"$f":"IF('Перечень тарифов'!F21=\"\",\"наименование отсутствует\",\"\" & 'Перечень тарифов'!F21 & \"\")","v":"Транспортировка"},"Указывается наименование вида регулируемой деятельности."]
[null,null,null,null,null,{"$f":"\"4.\"&mergeValue(A10)","v":"4.1"},"Территория оказания услуги по регулируемому виду деятельности","x"]
[null,1,null,null,null,{"$f":"\"4.\"&mergeValue(A11) &\".\"&mergeValue(B11)","v":"4.1.1"},"Субъект Российской Федерации",{"$f":"IF(region_name=\"\",\"\",region_name)","v":"Костромская область"},"Указывается наименование субъекта Российской Федерации"]
[null,null,1,null,null,{"$f":"\"4.\"&mergeValue(A12) &\".\"&mergeValue(B12)&\".\"&mergeValue(C12)","v":"4.1.1.1"},"муниципальный район",{"$f":"IF(Территории!H13=\"\",\"\",\"\" & Территории!H13 & \"\")","v":"городской округ город Волгореченск"},"Указывается наименование муниципального района, на территории которого организация оказывает услуги по регулируемому виду деятельности."]
[null,null,null,1,null,{"$f":"\"4.\"&mergeValue(A13) &\".\"&mergeValue(B13)&\".\"&mergeValue(C13)&\".\"&mergeValue(D13)","v":"4.1.1.1.1"},"муниципальное образование",{"$f":"IF(Территории!R14=\"\",\"\",\"\" & Территории!R14 & \"\")","v":"городской округ город Волгореченск (34706000)"},"Указывается наименование и код муниципального района, муниципального образования в соответствии с Общероссийским классификатором территорий муниципальных образований (далее - ОКТМО), входящего в муниципальный район, на территории которого организация оказывает услуги по регулируемому виду деятельности.\nВ случае оказания услуг по регулируемому виду деятельности на территории нескольких муниципальных районов (муниципальных образований) данные по каждому их них указываются в отдельной строке."]
[]
[null,null,null,null,null,null,"  1 Информация размещается при раскрытии информации по каждой из форм."]

{"sheet":"Форма 3.12.1","index":10,"n_rows":39,"n_cols":15,"rows_kept":39,"cut":false,"hidden":false,"merged":[[11,6,11,7],[12,6,12,7],[14,6,14,7],[22,3,24,3],[22,4,24,4],[22,5,24,5],[21,4,21,10],[19,4,19,10],[20,6,20,7],[4,3,4,10],[9,3,9,10],[9,11,11,11],[13,4,13,10],[16,11,18,11],[10,3,11,3],[10,4,11,4],[10,5,11,5],[10,9,11,9],[10,10,11,10],[16,3,18,3],[16,5,18,5],[6,5,6,10],[7,5,7,10],[10,6,10,8],[15,4,15,10],[38,4,38,11],[33,4,33,10],[25,4,25,10],[29,4,29,10],[22,11,24,11],[26,11,28,11],[30,11,32,11],[34,11,36,11],[26,4,28,4],[26,5,28,5],[34,4,36,4],[34,5,36,5],[30,4,32,4],[30,5,32,5],[34,2,36,2],[16,4,18,4],[16,2,18,2],[22,2,24,2],[26,2,28,2],[30,2,32,2],[34,3,36,3],[26,3,28,3],[30,3,32,3]]}
[]
[]
[]
[]
[null,null,null,"Форма 3.12.1 Информация о предложении об установлении тарифов в сфере водоотведения на очередной период регулирования1"]
[]
[null,null,null,null,{"$f":"\"Дата подачи заявления об \"&IF(datePr_ch=\"\",\"утверждении\",\"изменении\") & \" тарифов\"","v":"Дата подачи заявления об изменении тарифов"},{"$f":"IF(datePr_ch=\"\",IF(datePr=\"\",\"\",datePr),datePr_ch)","v":"27.04.2020"}]
[null,null,null,null,{"$f":"\"Номер подачи заявления об \"&IF(numberPr_ch=\"\",\"утверждении\",\"изменении\") & \" тарифов\"","v":"Номер подачи заявления об изменении тарифов"},{"$f":"IF(numberPr_ch=\"\",IF(numberPr=\"\",\"\",numberPr),numberPr_ch)","v":"вх. №О-770"}]
[]
[null,null,null,"Параметры формы",null,null,null,null,null,null,null,"Описание параметров формы"]
[null,null,null,"№ п/п","Вид тарифа","Наименование тарифа","Период действия тарифов",null,null,"Информация","Ссылка на документ"]
[null,null,null,null,null,null,"с",null,"по"]
[null,null,null,"1","2","3","4",null,"5","6","7","8"]
[null,null,null,1,"Копия инвестиционной программы, утвержденной в установленном законодательством Российской Федерации порядке, а до ее утверждения копия проекта инвестиционной программы"]
[null,null,null,"1.1","x","x","x",null,"x","отсутствует",null,"Заполняется в случае наличия инвестиционной программы (проекта инвестиционной программы) в отчетном периоде.\nВ колонке «Информация» указывается наименование инвестиционной программы.\nВ колонке «Ссылка на документ» указывается ссылка на документ, предварительно загруженный в хранилище файлов ФГИС ЕИАС."]
[null,3,null,2,"Предлагаемый метод регулирования",null,null,null,null,"x"]
[null,null,null,"2.1",{"$f":"IF('Перечень тарифов'!E21=\"\",\"наименование отсутствует\",\"\" & 'Перечень тарифов'!E21 & \"\")","v":"Тариф на транспортировку сточных вод"},{"$f":"IF('Перечень тарифов'!J21=\"\",\"наименование отсутствует\",\"\" & 'Перечень тарифов'!J21 & \"\")","v":"Тариф на услуги по транспортировке сточных вод (с канализационных очистных сооружений до ЛК-2)"},null,"01.01.2021","31.12.2021","метод индексации установленных тарифов","x","Значение в колонке «Вид тарифа» выбирается из перечня видов тарифов в сфере водоотведения в соответствии с законодательством в сфере водоснабжении и водоотведении» \nЗначение в колонке «Информация» выбирается из перечня: Метод экономически обоснованных расходов (затрат); Метод индексации установленных тарифов; Метод обеспечения доходности инвестированного капитала; Метод сравнения аналогов.\nДаты начала и окончания периода действия тарифов указывается в виде «ДД.ММ.ГГГГ».\nВ случае дифференциации предлагаемых методов регулирования видам тарифов и (или) по периодам действия тарифов информация по каждому из них указывается в отдельной строке."]
[null,null,null,null,null,null,"О","01.01.2022","31.12.2022","метод индексации установленных тарифов","x"]
[null,null,null,null,null,null,null,"Добавить период"]
[null,3,null,"3","Долгосрочные параметры регулирования (в случае если их установление предусмотрено выбранным методом регулирования)"]
[null,null,null,"3.1","x","x","x",null,"x","x","https://portal.eias.ru/Portal/DownloadPage.aspx?type=12&guid=025d50e2-8f67-4694-9b2f-b3571b7129a0","Долгосрочные параметры регулирования указываются в случае выбора любого метода регулирования за исключением метода экономически обоснованных затрат в виде ссылки на документ, предварительно загруженный в хранилище файлов ФГИС ЕИАС."]
[null,3,null,"4","Необходимая валовая выручка на соответствующий период, в том числе с разбивкой по годам"]
[null,null,null,"4.1",{"$f":"IF('Перечень тарифов'!E21=\"\",\"наименование отсутствует\",\"\" & 'Перечень тарифов'!E21 & \"\")","v":"Тариф на транспортировку сточных вод"},{"$f":"IF('Перечень тарифов'!J21=\"\",\"наименование отсутствует\",\"\" & 'Перечень тарифов'!J21 & \"\")","v":"Тариф на услуги по транспортировке сточных вод (с канализационных очистных сооружений до ЛК-2)"},null,"01.01.2021","31.12.2021",351.64,"x","Значение в колонке «Вид тарифа» выбирается из перечня видов тарифов в сфере водоотведения, предусмотренных законодательством в сфере водоснабжении и водоотведения.\nДаты начала и окончания периода действия тарифов указывается в виде «ДД.ММ.ГГГГ».\nВеличина необходимой валовой выручки указывается в колонке «Информация» в тыс. руб.\nВ случае дифференциации необходимой валовой выручки по видам тарифов и (или) по периодам действия тарифов информация указывается в отдельных строках."]
[null,null,null,null,null,null,"О","01.01.2022","31.12.2022",373.54,"x"]
[null,null,null,null,null,null,null,"Добавить период"]
[null,null,null,"5","Годовой объем отпущенной в сеть воды"]
[null,null,null,"5.1",{"$f":"IF('Перечень тарифов'!E21=\"\",\"наименование отсутствует\",\"\" & 'Перечень тарифов'!E21 & \"\")","v":"Тариф на транспортировку сточных вод"},{"$f":"IF('Перечень тарифов'!J21=\"\",\"наименование отсутствует\",\"\" & 'Перечень тарифов'!J21 & \"\")","v":"Тариф на услуги по транспортировке сточных вод (с канализационных очистных сооружений до ЛК-2)"},null,"01.01.2021","31.12.2021",1280.17,"x","Значение в колонке «Вид тарифа» выбирается из перечня видов тарифов в сфере водоотведения, предусмотренных законодательством в сфере водоснабжения и водоотведения.\nДаты начала и окончания периода действия тарифов указывается в виде «ДД.ММ.ГГГГ».\nВеличина годового объема отпущенной в сеть воды указывается в колонке «Информация» в тыс. куб. м.\nВ случае дифференциации объема отпущенной в сеть воды по видам тарифов и (или) по периодам действия тарифов информация указывается в отдельных строках."]
[null,null,null,null,null,null,"О","01.01.2022","31.12.2022",1254.57,"x"]
[null,null,null,null,null,null,null,"Добавить период"]
[null,null,null,"6","Размер недополученных доходов регулируемой организацией, исчисленный в соответствии с законодательством в сфере водоснабжения и водоотведения"]
[null,null,null,"6.1",{"$f":"IF('Перечень тарифов'!E21=\"\",\"наименование отсутствует\",\"\" & 'Перечень тарифов'!E21 & \"\")","v":"Тариф на транспортировку сточных вод"},{"$f":"IF('Перечень тарифов'!J21=\"\",\"наименование отсутствует\",\"\" & 'Перечень тарифов'!J21 & \"\")","v":"Тариф на услуги по транспортировке сточных вод (с канализационных очистных сооружений до ЛК-2)"},null,"01.01.2021","31.12.2021",0,"x","Значение в колонке «Вид тарифа» выбирается из перечня видов тарифов в сфере водоотведения, предусмотренных законодательством в сфере водоснабжения и водоотведения.\nДаты начала и окончания периода действия тарифов указывается в виде «ДД.ММ.ГГГГ».\nВеличина недополученных доходов регулируемой организации указывается в колонке «Информация» в тыс. руб. \nВ случае отсутствия недополученных доходов регулируемой организацией, исчисленных в соответствии с законодательством в сфере водоснабжения и водоотведения, указывается значение 0.\nВ случае дифференциации недополученных доходов регулируемой организацией по видам тарифов и/или по периодам действия тарифов информация указывается в отдельных строках.",null,null,"c 01:03 до 18:55"]
[null,null,null,null,null,null,"О","01.01.2022","31.12.2022",0,"x"]
[null,null,null,null,null,null,null,"Добавить период"]
[null,3,null,"7","Размер экономически обоснованных расходов, не учтенных при регулировании тарифов в предыдущий период регулирования (при их наличии), определенном в соответствии с законодательством в сфере водоснабжения и водоотведения"]
[null,null,null,"7.1",{"$f":"IF('Перечень тарифов'!E21=\"\",\"наименование отсутствует\",\"\" & 'Перечень тарифов'!E21 & \"\")","v":"Тариф на транспортировку сточных вод"},{"$f":"IF('Перечень тарифов'!J21=\"\",\"наименование отсутствует\",\"\" & 'Перечень тарифов'!J21 & \"\")","v":"Тариф на услуги по транспортировке сточных вод (с канализационных очистных сооружений до ЛК-2)"},null,"01.01.2021","31.12.2021",17.260000000000002,"x","Значение в колонке «Вид тарифа» выбирается из перечня видов тарифов в сфере водоотведения, предусмотренных законодательством в сфере водоснабжения и водоотведения.\nДаты начала и окончания периода действия тарифов указывается в виде «ДД.ММ.ГГГГ».\nВеличина экономически обоснованных расходов, не учтенных при регулировании тарифов в предыдущий период регулирования, указывается в колонке «Информация» в тыс. руб. \nВ случае отсутствия экономически обоснованных расходов, не учтенных при регулировании тарифов в предыдущий период регулирования, определенных в соответствии с законодательством в сфере водоснабжения и водоотведения, указывается значение 0.\nВ случае дифференциации экономически обоснованных расходов по видам тарифов и/или по периодам действия тарифов информация указывается в отдельных строках."]
[null,null,null,null,null,null,"О","01.01.2022","31.12.2022",31.07,"x"]
[null,null,null,null,null,null,null,"Добавить период"]
[]
[null,null,null,1,"При размещении информации по данной форме дополнительно указывается дата подачи заявления об утверждении(изменении) тарифа и его номер."]

{"sheet":"Форма 1.0.1 | Т-ВО","index":11,"n_rows":19,"n_cols":10,"rows_kept":19,"cut":false,"hidden":true,"merged":[[18,6,18,7],[1,5,1,7],[3,5,3,7],[3,8,4,8],[7,0,15,0],[11,2,13,2],[12,8,13,8],[10,1,14,1]]}
["1"]
[null,null,null,null,null,"Форма 1.0.1 Основные параметры раскрываемой информации 1"]
[]
[null,null,null,null,null,"Параметры формы",null,null,"Описание параметров формы"]
[null,null,null,null,null,"№ п/п","Наименование параметра","Информация"]
[null,null,null,null,null,"1",2,3,4,4]
[null,null,null,null,null,1,"Дата заполнения/внесения изменений",{"$f":"IF(dateCh=\"\",\"\",dateCh)","v":"06.05.2020"},"Указывается календарная дата первичного заполнения или внесения изменений в форму в виде «ДД.ММ.ГГГГ»."]
[1,null,null,null,null,{"$f":"\"2.\" &mergeValue(A8)","v":"2.1"},"Наименование централизованной системы коммунальной инфраструктуры",null,"Указывается наименование централизованной системы холодного водоснабжения/горячего водоснабжения/водоотведения/теплоснабжения, к которой относится размещаемая информация.\nВ случае наличия нескольких централизованных систем коммунальной инфраструктуры, информация по каждой из них указывается в отдельной строке."]
[null,null,null,null,null,{"$f":"\"3.\" &mergeValue(A9)","v":"3.1"},"Наименование регулируемого вида деятельности",null,"Указывается наименование вида регулируемой деятельности."]
[null,null,null,null,null,{"$f":"\"4.\"&mergeValue(A10)","v":"4.1"},"Территория оказания услуги по регулируемому виду деятельности","x"]
[null,1,null,null,null,{"$f":"\"4.\"&mergeValue(A11) &\".\"&mergeValue(B11)","v":"4.1.1"},"Субъект Российской Федерации",{"$f":"IF(region_name=\"\",\"\",region_name)","v":"Костромская область"},"Указывается наименование субъекта Российской Федерации"]
[null,null,1,null,null,{"$f":"\"4.\"&mergeValue(A12) &\".\"&mergeValue(B12)&\".\"&mergeValue(C12)","v":"4.1.1.1"},"муниципальный район",null,"Указывается наименование муниципального района, на территории которого организация оказывает услуги по регулируемому виду деятельности."]
[null,null,null,1,null,{"$f":"\"4.\"&mergeValue(A13) &\".\"&mergeValue(B13)&\".\"&mergeValue(C13)&\".\"&mergeValue(D13)","v":"4.1.1.1.1"},"муниципальное образование",null,"Указывается наименование и код муниципального района, муниципального образования в соответствии с Общероссийским классификатором территорий муниципальных образований (далее - ОКТМО), входящего в муниципальный район, на территории которого организация оказывает услуги по регулируемому виду деятельности.\nВ случае оказания услуг по регулируемому виду деятельности на территории нескольких муниципальных районов (муниципальных образований) данные по каждому их них указываются в отдельной строке."]
[null,null,null,null,null,null,"Добавить МО"]
[null,null,null,null,null,null,"Добавить МР"]
[null,null,null,null,null,null,"Добавить территорию"]
[null,null,null,null,null,null,"Добавить ЦС"]
[]
[null,null,null,null,null,null,"  1 Информация размещается при раскрытии информации по каждой из форм."]

{"sheet":"Форма 3.12.2 | Т-ВО","index":12,"n_rows":32,"n_cols":26,"rows_kept":32,"cut":false,"hidden":true,"merged":[[22,22,24,22],[13,21,15,21],[12,11,12,21],[13,13,15,13],[22,17,23,17],[14,17,14,19],[13,14,13,19],[12,22,15,22],[21,14,21,21],[20,14,20,21],[13,11,15,11],[13,12,15,12],[7,14,7,21],[8,14,8,21],[4,11,4,20],[10,11,10,12],[9,14,9,21],[6,14,6,21],[11,14,11,20],[15,18,15,19],[18,14,18,21],[17,14,17,21],[16,18,16,19],[13,20,15,20],[17,0,28,0],[18,1,27,1],[19,2,26,2],[20,3,25,3],[20,8,25,8],[21,4,24,4],[21,9,24,9],[14,15,14,16],[19,14,19,21],[31,12,31,21],[22,18,23,18],[22,20,23,20],[22,13,23,13],[22,19,23,19]]}
[]
[]
[]
[]
[null,null,null,null,null,null,null,null,null,null,null,"Форма 3.12.2 Информация о предложении величин тарифов на водоотведение, транспортировку воды1"]
[]
[]
[null,null,null,null,null,null,null,null,null,null,null,null,{"$f":"\"Дата подачи заявления об \"&IF(datePr_ch=\"\",\"утверждении\",\"изменении\") & \" тарифов\"","v":"Дата подачи заявления об изменении тарифов"},null,{"$f":"IF(datePr_ch=\"\",IF(datePr=\"\",\"\",datePr),datePr_ch)","v":"27.04.2020"}]
[null,null,null,null,null,null,null,null,null,null,null,null,{"$f":"\"Номер подачи заявления об \"&IF(numberPr_ch=\"\",\"утверждении\",\"изменении\") & \" тарифов\"","v":"Номер подачи заявления об изменении тарифов"},null,{"$f":"IF(numberPr_ch=\"\",IF(numberPr=\"\",\"\",numberPr),numberPr_ch)","v":"вх. №О-770"}]
[]
[null,null,null,null,null,null,null,null,null,null,null,null,null,null,null,null,null,null,null,null,"dp"]
[]
[null,null,null,null,null,null,null,null,null,null,null,"Параметры формы",null,null,null,null,null,null,null,null,null,null,"Описание параметров формы"]
[null,null,null,null,null,null,null,null,null,null,null,"№ п/п","Параметры дифференциации",null,"Период действия тарифа",null,null,null,null,null,"Наличие других периодов действия тарифа","Добавить период"]
[null,null,null,null,null,null,null,null,null,null,null,null,null,null,"Одноставочный тариф","Двухставочный тариф",null,"Период действия"]
[null,null,null,null,null,null,null,null,null,null,null,null,null,null,"Одноставочный тариф, руб./куб. м","ставка платы за объем принятых сточных вод, руб./куб. м","ставка платы за содержание мощности, руб./куб. м в час","дата начала","дата окончания"]
[null,null,null,null,null,null,null,null,null,null,1,"1","2",{"$f":"OFFSET(N17,0,-1)","v":"2"},{"$f":"OFFSET(O17,0,-1)+1","v":3},{"$f":"OFFSET(P17,0,-1)+1","v":4},{"$f":"OFFSET(Q17,0,-1)+1","v":5},{"$f":"OFFSET(R17,0,-1)+1","v":6},{"$f":"OFFSET(S17,0,-1)+1","v":7},null,{"$f":"OFFSET(U17,0,-2)+1","v":8},{"$f":"OFFSET(V17,0,-1)","v":8},{"$f":"OFFSET(W17,0,-1)+1","v":9}]
[1,null,null,null,null,null,null,null,null,null,null,{"$f":"mergeValue(A18)","v":1},"Наименование тарифа",null,null,null,null,null,null,null,null,null,"Указывается наименование тарифа в случае подачи предложения по нескольким тарифам.\nВ случае наличия нескольких тарифов информация по ним указывается в отдельных строках."]
[null,1,null,null,null,null,null,null,null,null,null,{"$f":"mergeValue(A19) &\".\"& mergeValue(B19)","v":"1.1"},"Территория действия тарифа",null,null,null,null,null,null,null,null,null,"Указывается наименование территории действия тарифа при наличии дифференциации тарифа по территориальному признаку.\nВ случае дифференциации тарифов по территориальному признаку информация по ним указывается в отдельных строках."]
[null,null,1,null,null,null,null,null,null,null,null,{"$f":"mergeValue(A20) &\".\"& mergeValue(B20)&\".\"& mergeValue(C20)","v":"1.1.1"},"Наименование централизованной системы водоотведения",null,null,null,null,null,null,null,null,null,"Указывается наименование централизованной системы водоотведения при наличии дифференциации тарифа по централизованным системам водоотведения.\nВ случае дифференциации тарифов по централизованным системам водоотведения информация по ним указывается в отдельных строках."]
[null,null,null,1,null,null,null,null,null,null,null,{"$f":"mergeValue(A21) &\".\"& mergeValue(B21)&\".\"& mergeValue(C21)&\".\"& mergeValue(D21)","v":"1.1.1.1"},"Наименование признака дифференциации",null,null,null,null,null,null,null,null,null,"Указывается наименование дополнительного признака дифференциации (при наличии).\nДифференциация тарифа осуществляется в соответствии с законодательством в сфере водоснабжении и водоотведения.\nВ случае дифференциации тарифов по дополнительным признакам информация по ним указывается в отдельных строках."]
[null,null,null,null,1,null,null,null,null,null,null,{"$f":"mergeValue(A22) &\".\"& mergeValue(B22)&\".\"& mergeValue(C22)&\".\"& mergeValue(D22)&\".\"& mergeValue(E22)","v":"1.1.1.1.1"},"Группа потребителей",null,null,null,null,null,null,null,null,null,"Указывается группа потребителей при наличии дифференциации тарифа по группам потребителей.\nЗначение выбирается из перечня: Организации-перепродавцы; Бюджетные организации; Население; Прочие; Без дифференциации.\nВ случае дифференциации тарифов группам потребителей информация по ним указывается в отдельных строках.",null,{"$f":"strCheckUnique(Z22:Z25)","v":""}]
[null,null,null,null,null,1,null,null,null,null,null,{"$f":"mergeValue(A23) &\".\"& mergeValue(B23)&\".\"& mergeValue(C23)&\".\"& mergeValue(D23)&\".\"& mergeValue(E23)&\".\"& mergeValue(F23)","v":"1.1.1.1.1.1"},null,null,null,null,null,null,"да",null,"нет",null,"В колонке «Параметр дифференциации тарифов» указывается значение дополнительного признака дифференциации.\nПри подаче предложения на двухставочный тариф колонка «Одноставочный тариф» не заполняется.\nПри подаче предложения на одноставочный тариф колонки в блоке «Двухставочный тариф» не заполняются.\nДаты начала и окончания действия тарифов указываются в виде «ДД.ММ.ГГГГ».\nВ случае отсутствия даты окончания действия тарифа в колонке «Дата окончания» указывается «Нет».\nВ случае наличия нескольких значений признака дифференциации тарифов информация по ним указывается в отдельных строках.\nВ случае дифференциации тарифов по периодам действия тарифа информация по ним указывается в отдельных колонках.",{"$f":"strCheckDate(O24:V24)","v":""},null,{"$f":"IF(M23=\"\",\"\",M23 )","v":""}]
[null,null,null,null,null,null,null,null,null,null,null,null,null,null,null,null,{"$f":"R23 & \"-\" & T23","v":"-"}]
[null,null,null,null,null,null,null,null,null,null,null,null,"Добавить значение признака дифференциации"]
[null,null,null,null,null,null,null,null,null,null,null,null,"Добавить группу потребителей"]
[null,null,null,null,null,null,null,null,null,null,null,null,"Добавить наименование признака дифференциации"]
[null,null,null,null,null,null,null,null,null,null,null,null,"Добавить наименование системы водоотведения"]
[null,null,null,null,null,null,null,null,null,null,null,null,"Добавить территорию действия тарифа"]
[null,null,null,null,null,null,null,null,null,null,null,null,"Добавить наименование тарифа"]
[]
[null,null,null,null,null,null,null,null,null,null,null,1,"Для каждого вида тарифа в сфере водоотведения форма заполняется отдельно. При размещении информации по данной форме дополнительно указывается дата подачи заявления об утверждении(изменении) тарифа и его номер."]

{"sheet":"Форма 1.0.1 | Т-транс","index":13,"n_rows":15,"n_cols":10,"rows_kept":15,"cut":false,"hidden":false,"merged":[[14,6,14,7],[1,5,1,7],[3,5,3,7],[3,8,4,8],[7,0,12,0],[11,2,12,2],[10,1,12,1]]}
["2"]
[null,null,null,null,null,"Форма 1.0.1 Основные параметры раскрываемой информации 1"]
[]
[null,null,null,null,null,"Параметры формы",null,null,"Описание параметров формы"]
[null,null,null,null,null,"№ п/п","Наименование параметра","Информация"]
[null,null,null,null,null,"1",2,3,4,4]
[null,null,null,null,null,1,"Дата заполнения/внесения изменений",{"$f":"IF(dateCh=\"\",\"\",dateCh)","v":"06.05.2020"},"Указывается календарная дата первичного заполнения или внесения изменений в форму в виде «ДД.ММ.ГГГГ»."]
[1,null,null,null,null,{"$f":"\"2.\" &mergeValue(A8)","v":"2.1"},"Наименование централизованной системы коммунальной инфраструктуры",{"$f":"IF('Перечень тарифов'!R21=\"\",\"наименование отсутствует\",\"\" & 'Перечень тарифов'!R21 & \"\")","v":"наименование отсутствует"},"Указывается наименование централизованной системы холодного водоснабжения/горячего водоснабжения/водоотведения/теплоснабжения, к которой относится размещаемая информация.\nВ случае наличия нескольких централизованных систем коммунальной инфраструктуры, информация по каждой из них указывается в отдельной строке."]
[null,null,null,null,null,{"$f":"\"3.\" &mergeValue(A9)","v":"3.1"},"Наименование регулируемого вида деятельности",{"$f":"IF('Перечень тарифов'!F21=\"\",\"наименование отсутствует\",\"\" & 'Перечень тарифов'!F21 & \"\")","v":"Транспортировка"},"Указывается наименование вида регулируемой деятельности."]
[null,null,null,null,null,{"$f":"\"4.\"&mergeValue(A10)","v":"4.1"},"Территория оказания услуги по регулируемому виду деятельности","x"]
[null,1,null,null,null,{"$f":"\"4.\"&mergeValue(A11) &\".\"&mergeValue(B11)","v":"4.1.1"},"Субъект Российской Федерации",{"$f":"IF(region_name=\"\",\"\",region_name)","v":"Костромская область"},"Указывается наименование субъекта Российской Федерации"]
[null,null,1,null,null,{"$f":"\"4.\"&mergeValue(A12) &\".\"&mergeValue(B12)&\".\"&mergeValue(C12)","v":"4.1.1.1"},"муниципальный район",{"$f":"IF(Территории!H13=\"\",\"\",\"\" & Территории!H13 & \"\")","v":"городской округ город Волгореченск"},"Указывается наименование муниципального района, на территории которого организация оказывает услуги по регулируемому виду деятельности."]
[null,null,null,1,null,{"$f":"\"4.\"&mergeValue(A13) &\".\"&mergeValue(B13)&\".\"&mergeValue(C13)&\".\"&mergeValue(D13)","v":"4.1.1.1.1"},"муниципальное образование",{"$f":"IF(Территории!R14=\"\",\"\",\"\" & Территории!R14 & \"\")","v":"городской округ город Волгореченск (34706000)"},"Указывается наименование и код муниципального района, муниципального образования в соответствии с Общероссийским классификатором территорий муниципальных образований (далее - ОКТМО), входящего в муниципальный район, на территории которого организация оказывает услуги по регулируемому виду деятельности.\nВ случае оказания услуг по регулируемому виду деятельности на территории нескольких муниципальных районов (муниципальных образований) данные по каждому их них указываются в отдельной строке."]
[]
[null,null,null,null,null,null,"  1 Информация размещается при раскрытии информации по каждой из форм."]

{"sheet":"Форма 3.12.2 | Т-транс","index":14,"n_rows":29,"n_cols":33,"rows_kept":29,"cut":false,"hidden":false,"merged":[[11,21,11,27],[13,21,13,26],[13,27,15,27],[14,22,14,23],[14,24,14,26],[15,25,15,26],[22,29,24,29],[4,11,4,20],[14,15,14,16],[15,18,15,19],[22,17,23,17],[22,20,23,20],[10,11,10,12],[6,14,6,28],[13,28,15,28],[12,29,15,29],[7,14,7,28],[8,14,8,28],[9,14,9,28],[16,18,16,19],[12,11,12,28],[11,14,11,20],[28,12,28,28],[21,9,24,9],[20,14,20,28],[19,14,19,28],[22,19,23,19],[21,14,21,28],[22,18,23,18],[22,24,23,24],[22,25,23,25],[22,26,23,26],[22,27,23,27],[13,11,15,11],[13,12,15,12],[18,14,18,28],[17,0,26,0],[18,1,26,1],[19,2,26,2],[20,3,25,3],[20,8,25,8],[22,13,23,13],[21,4,24,4],[17,14,17,28],[13,14,13,19],[14,17,14,19],[13,13,15,13],[13,20,15,20],[16,25,16,26]]}
[]
[]
[]
[]
[null,null,null,null,null,null,null,null,null,null,null,"Форма 3.12.2 Информация о предложении величин тарифов на водоотведение, транспортировку воды1"]
[]
[]
[null,null,null,null,null,null,null,null,null,null,null,null,{"$f":"\"Дата подачи заявления об \"&IF(datePr_ch=\"\",\"утверждении\",\"изменении\") & \" тарифов\"","v":"Дата подачи заявления об изменении тарифов"},null,{"$f":"IF(datePr_ch=\"\",IF(datePr=\"\",\"\",datePr),datePr_ch)","v":"27.04.2020"}]
[null,null,null,null,null,null,null,null,null,null,null,null,{"$f":"\"Номер подачи заявления об \"&IF(numberPr_ch=\"\",\"утверждении\",\"изменении\") & \" тарифов\"","v":"Номер подачи заявления об изменении тарифов"},null,{"$f":"IF(numberPr_ch=\"\",IF(numberPr=\"\",\"\",numberPr),numberPr_ch)","v":"вх. №О-770"}]
[]
[null,null,null,null,null,null,null,null,null,null,null,null,null,null,null,null,null,null,null,null,"dp",null,null,null,null,null,null,"dp"]
[null,null,null,null,null,null,null,null,null,null,null,null,null,null,null,null,null,null,null,null,null,"О"]
[null,null,null,null,null,null,null,null,null,null,null,"Параметры формы",null,null,null,null,null,null,null,null,null,null,null,null,null,null,null,null,null,"Описание параметров формы"]
[null,null,null,null,null,null,null,null,null,null,null,"№ п/п","Параметры дифференциации",null,"Период действия тарифа",null,null,null,null,null,"Наличие других периодов действия тарифа","Период действия тарифа",null,null,null,null,null,"Наличие других периодов действия тарифа","Добавить период"]
[null,null,null,null,null,null,null,null,null,null,null,null,null,null,"Одноставочный тариф","Двухставочный тариф",null,"Период действия",null,null,null,"Одноставочный тариф","Двухставочный тариф",null,"Период действия"]
[null,null,null,null,null,null,null,null,null,null,null,null,null,null,"Одноставочный тариф, руб./куб. м","ставка платы за объем принятых сточных вод, руб./куб. м","ставка платы за содержание мощности, руб./куб. м в час","дата начала","дата окончания",null,null,"Одноставочный тариф, руб./куб. м","ставка платы за объем принятых сточных вод, руб./куб. м","ставка платы за содержание мощности, руб./куб. м в час","дата начала","дата окончания"]
[null,null,null,null,null,null,null,null,null,null,1,"1","2",{"$f":"OFFSET(N17,0,-1)","v":"2"},{"$f":"OFFSET(O17,0,-1)+1","v":3},{"$f":"OFFSET(P17,0,-1)+1","v":4},{"$f":"OFFSET(Q17,0,-1)+1","v":5},{"$f":"OFFSET(R17,0,-1)+1","v":6},{"$f":"OFFSET(S17,0,-1)+1","v":7},null,{"$f":"OFFSET(U17,0,-2)+1","v":8},{"$f":"OFFSET(V17,0,-1)+1","v":9},{"$f":"OFFSET(W17,0,-1)+1","v":10},{"$f":"OFFSET(X17,0,-1)+1","v":11},{"$f":"OFFSET(Y17,0,-1)+1","v":12},{"$f":"OFFSET(Z17,0,-1)+1","v":13},null,{"$f":"OFFSET(AB17,0,-2)+1","v":14},{"$f":"OFFSET(AC17,0,-1)","v":14},{"$f":"OFFSET(AD17,0,-1)+1","v":15}]
[1,null,null,null,null,null,null,null,null,null,null,{"$f":"mergeValue(A18)","v":1},"Наименование тарифа",null,{"$f":"IF('Перечень тарифов'!J21=\"\",\"\",\"\" & 'Перечень тарифов'!J21 & \"\")","v":"Тариф на услуги по транспортировке сточных вод (с канализационных очистных сооружений до ЛК-2)"},null,null,null,null,null,null,null,null,null,null,null,null,null,null,"Указывается наименование тарифа в случае подачи предложения по нескольким тарифам.\nВ случае наличия нескольких тарифов информация по ним указывается в отдельных строках."]
[null,1,null,null,null,null,null,null,null,null,null,{"$f":"mergeValue(A19) &\".\"& mergeValue(B19)","v":"1.1"}]
[null,null,1,null,null,null,null,null,null,null,null,{"$f":"mergeValue(A20) &\".\"& mergeValue(B20)&\".\"& mergeValue(C20)","v":"1.1.1"}]
[null,null,null,1,null,null,null,null,null,null,null,{"$f":"mergeValue(A21) &\".\"& mergeValue(B21)&\".\"& mergeValue(C21)&\".\"& mergeValue(D21)","v":"1.1.1.1"},"Наименование признака дифференциации",null,null,null,null,null,null,null,null,null,null,null,null,null,null,null,null,"Указывается наименование дополнительного признака дифференциации (при наличии).\nДифференциация тарифа осуществляется в соответствии с законодательством в сфере водоснабжении и водоотведения.\nВ случае дифференциации тарифов по дополнительным признакам информация по ним указывается в отдельных строках."]
[null,null,null,null,1,null,null,null,null,null,null,{"$f":"mergeValue(A22) &\".\"& mergeValue(B22)&\".\"& mergeValue(C22)&\".\"& mergeValue(D22)&\".\"& mergeValue(E22)","v":"1.1.1.1.1"},"Группа потребителей",null,"без дифференциации",null,null,null,null,null,null,null,null,null,null,null,null,null,null,"Указывается группа потребителей при наличии дифференциации тарифа по группам потребителей.\nЗначение выбирается из перечня: Организации-перепродавцы; Бюджетные организации; Население; Прочие; Без дифференциации.\nВ случае дифференциации тарифов группам потребителей информация по ним указывается в отдельных строках.",null,{"$f":"strCheckUnique(AG22:AG25)","v":""}]
[null,null,null,null,null,1,null,null,null,null,null,{"$f":"mergeValue(A23) &\".\"& mergeValue(B23)&\".\"& mergeValue(C23)&\".\"& mergeValue(D23)&\".\"& mergeValue(E23)&\".\"& mergeValue(F23)","v":"1.1.1.1.1.1"},null,null,0.27,null,null,"01.01.2021","да","31.12.2021","да",0.3,null,null,"01.01.2022","да","31.12.2022","нет",null,"В колонке «Параметр дифференциации тарифов» указывается значение дополнительного признака дифференциации.\nПри подаче предложения на двухставочный тариф колонка «Одноставочный тариф» не заполняется.\nПри подаче предложения на одноставочный тариф колонки в блоке «Двухставочный тариф» не заполняются.\nДаты начала и окончания действия тарифов указываются в виде «ДД.ММ.ГГГГ».\nВ случае отсутствия даты окончания действия тарифа в колонке «Дата окончания» указывается «Нет».\nВ случае наличия нескольких значений признака дифференциации тарифов информация по ним указывается в отдельных строках.\nВ случае дифференциации тарифов по периодам действия тарифа информация по ним указывается в отдельных колонках.",{"$f":"strCheckDate(O24:AC24)","v":""},null,{"$f":"IF(M23=\"\",\"\",M23 )","v":""}]
[null,null,null,null,null,null,null,null,null,null,null,null,null,null,null,null,{"$f":"R23 & \"-\" & T23","v":"01.01.2021-31.12.2021"},null,null,null,null,null,null,{"$f":"Y23 & \"-\" & AA23","v":"01.01.2022-31.12.2022"}]
[null,null,null,null,null,null,null,null,null,null,null,null,"Добавить значение признака дифференциации"]
[null,null,null,null,null,null,null,null,null,null,null,null,"Добавить группу потребителей"]
[null,null,null,null,null,null,null,null,null,null,null,null,"Добавить наименование признака дифференциации"]
[]
[null,null,null,null,null,null,null,null,null,null,null,1,"Для каждого вида тарифа в сфере водоотведения форма заполняется отдельно. При размещении информации по данной форме дополнительно указывается дата подачи заявления об утверждении(изменении) тарифа и его номер."]

{"sheet":"Форма 1.0.1 | Т-подкл(инд)","index":15,"n_rows":19,"n_cols":10,"rows_kept":19,"cut":false,"hidden":true,"merged":[[18,6,18,7],[1,5,1,7],[3,5,3,7],[3,8,4,8],[7,0,15,0],[11,2,13,2],[12,8,13,8],[10,1,14,1]]}
["9"]
[null,null,null,null,null,"Форма 1.0.1 Основные параметры раскрываемой информации 1"]
[]
[null,null,null,null,null,"Параметры формы",null,null,"Описание параметров формы"]
[null,null,null,null,null,"№ п/п","Наименование параметра","Информация"]
[null,null,null,null,null,"1",2,3,4,4]
[null,null,null,null,null,1,"Дата заполнения/внесения изменений",{"$f":"IF(dateCh=\"\",\"\",dateCh)","v":"06.05.2020"},"Указывается календарная дата первичного заполнения или внесения изменений в форму в виде «ДД.ММ.ГГГГ»."]
[1,null,null,null,null,{"$f":"\"2.\" &mergeValue(A8)","v":"2.1"},"Наименование централизованной системы коммунальной инфраструктуры",null,"Указывается наименование централизованной системы холодного водоснабжения/горячего водоснабжения/водоотведения/теплоснабжения, к которой относится размещаемая информация.\nВ случае наличия нескольких централизованных систем коммунальной инфраструктуры, информация по каждой из них указывается в отдельной строке."]
[null,null,null,null,null,{"$f":"\"3.\" &mergeValue(A9)","v":"3.1"},"Наименование регулируемого вида деятельности",null,"Указывается наименование вида регулируемой деятельности."]
[null,null,null,null,null,{"$f":"\"4.\"&mergeValue(A10)","v":"4.1"},"Территория оказания услуги по регулируемому виду деятельности","x"]
[null,1,null,null,null,{"$f":"\"4.\"&mergeValue(A11) &\".\"&mergeValue(B11)","v":"4.1.1"},"Субъект Российской Федерации",{"$f":"IF(region_name=\"\",\"\",region_name)","v":"Костромская область"},"Указывается наименование субъекта Российской Федерации"]
[null,null,1,null,null,{"$f":"\"4.\"&mergeValue(A12) &\".\"&mergeValue(B12)&\".\"&mergeValue(C12)","v":"4.1.1.1"},"муниципальный район",null,"Указывается наименование муниципального района, на территории которого организация оказывает услуги по регулируемому виду деятельности."]
[null,null,null,1,null,{"$f":"\"4.\"&mergeValue(A13) &\".\"&mergeValue(B13)&\".\"&mergeValue(C13)&\".\"&mergeValue(D13)","v":"4.1.1.1.1"},"муниципальное образование",null,"Указывается наименование и код муниципального района, муниципального образования в соответствии с Общероссийским классификатором территорий муниципальных образований (далее - ОКТМО), входящего в муниципальный район, на территории которого организация оказывает услуги по регулируемому виду деятельности.\nВ случае оказания услуг по регулируемому виду деятельности на территории нескольких муниципальных районов (муниципальных образований) данные по каждому их них указываются в отдельной строке."]
[null,null,null,null,null,null,"Добавить МО"]
[null,null,null,null,null,null,"Добавить МР"]
[null,null,null,null,null,null,"Добавить территорию"]
[null,null,null,null,null,null,"Добавить ЦС"]
[]
[null,null,null,null,null,null,"  1 Информация размещается при раскрытии информации по каждой из форм."]

{"sheet":"Форма 3.12.3 | Т-подкл(инд)","index":16,"n_rows":32,"n_cols":41,"rows_kept":32,"cut":false,"hidden":true,"merged":[[12,29,12,36],[14,11,16,11],[14,12,16,12],[14,13,16,16],[14,17,16,20],[14,21,16,24],[14,25,16,28],[14,36,16,36],[16,34,16,35],[15,31,15,32],[15,33,15,35],[14,29,14,35],[15,29,15,30],[10,11,10,12],[10,18,10,23],[11,11,11,12],[11,18,11,23],[12,18,12,23],[20,2,26,2],[21,3,25,3],[18,0,28,0],[19,1,27,1],[21,14,24,14],[20,13,20,37],[19,13,19,37],[18,13,18,37],[21,8,25,8],[21,25,22,25],[21,9,25,9],[21,11,25,11],[21,12,25,12],[21,13,25,13],[21,10,25,10],[21,21,23,21],[21,38,26,38],[13,11,13,37],[17,13,17,16],[17,17,17,20],[17,21,17,24],[14,37,16,37],[13,38,16,38],[21,22,22,22],[21,23,22,23],[21,24,22,24],[21,15,24,15],[21,16,24,16],[21,17,24,17],[21,18,23,18],[21,19,23,19],[21,20,23,20],[4,11,4,20],[6,13,6,20],[7,13,7,20],[8,13,8,20],[9,13,9,20]]}
[]
[]
[]
[]
[null,null,null,null,null,null,null,null,null,null,null,"Форма 3.12.3 Информация о предложении величин тарифов на подключение к централизованной системе водоотведения1"]
[]
[]
[null,null,null,null,null,null,null,null,null,null,null,null,{"$f":"\"Дата подачи заявления об \"&IF(datePr_ch=\"\",\"утверждении\",\"изменении\") & \" тарифов\"","v":"Дата подачи заявления об изменении тарифов"},{"$f":"IF(datePr_ch=\"\",IF(datePr=\"\",\"\",datePr),datePr_ch)","v":"27.04.2020"}]
[null,null,null,null,null,null,null,null,null,null,null,null,{"$f":"\"Номер подачи заявления об \"&IF(numberPr_ch=\"\",\"утверждении\",\"изменении\") & \" тарифов\"","v":"Номер подачи заявления об изменении тарифов"},{"$f":"IF(numberPr_ch=\"\",IF(numberPr=\"\",\"\",numberPr),numberPr_ch)","v":"вх. №О-770"}]
[]
[null,null,null,null,null,null,null,null,null,null,null,null,null,null,null,null,null,null,null,null,null,null,null,null,null,null,null,null,null,"NDS","woNDS","NDS","woNDS"]
[null,null,null,null,null,null,null,null,null,null,null,null,null,null,null,null,null,null,null,null,null,null,null,null,null,null,null,null,null,null,null,null,null,null,null,null,"dp"]
[]
[null,null,null,null,null,null,null,null,null,null,null,"Параметры формы",null,null,null,null,null,null,null,null,null,null,null,null,null,null,null,null,null,null,null,null,null,null,null,null,null,null,"Описание параметров формы"]
[null,null,null,null,null,null,null,null,null,null,null,"№ п/п","Параметр дифференциации тарифа/Заявитель","Подключаемая нагрузка канализационной сети, куб. м/сут",null,null,null,"Диапазон диаметров канализационной сети, мм",null,null,null,"Протяженность канализационной сети, км",null,null,null,"Условия прокладки сетей",null,null,null,"Период действия тарифа",null,null,null,null,null,null,"Наличие других периодов действия тарифа","Добавить период"]
[null,null,null,null,null,null,null,null,null,null,null,null,null,null,null,null,null,null,null,null,null,null,null,null,null,null,null,null,null,"Ставка тарифа за подключаемую нагрузку канализационной сети, тыс. руб./куб. м в сут",null,"Ставка тарифа за протяженность канализационной сети диаметром d, тыс. руб./км",null,"Период действия"]
[null,null,null,null,null,null,null,null,null,null,null,null,null,null,null,null,null,null,null,null,null,null,null,null,null,null,null,null,null,"С НДС","Без НДС","С НДС","Без НДС","Дата начала","Дата окончания"]
[null,null,null,null,null,null,null,null,null,null,1,"1","2",{"$f":"OFFSET(N18,0,-1)+1","v":3},null,null,null,{"$f":"OFFSET(R18,0,-4)+1","v":4},null,null,null,{"$f":"OFFSET(V18,0,-4)+1","v":5},null,null,null,null,null,{"$f":"OFFSET(V18,0,0)+1","v":6},{"$f":"AB18","v":6},{"$f":"OFFSET(AD18,0,-1)+1","v":7},{"$f":"OFFSET(AE18,0,-1)+1","v":8},9,10,11,12,13,{"$f":"OFFSET(AK18,0,-1)+1","v":14},null,15]
[1,null,null,null,null,null,null,null,null,null,null,{"$f":"mergeValue(A19)","v":1},"Наименование тарифа",null,null,null,null,null,null,null,null,null,null,null,null,null,null,null,null,null,null,null,null,null,null,null,null,null,"Указывается наименование тарифа в случае подачи предложения по нескольким тарифам.\nВ случае наличия нескольких тарифов информация по ним указывается в отдельных строках."]
[null,1,null,null,null,null,null,null,null,null,null,{"$f":"mergeValue(A20) &\".\"& mergeValue(B20)","v":"1.1"},"Территория действия тарифа",null,null,null,null,null,null,null,null,null,null,null,null,null,null,null,null,null,null,null,null,null,null,null,null,null,"Указывается наименование территории действия тарифа при наличии дифференциации тарифа по территориальному признаку.\nВ случае дифференциации тарифов по территориальному признаку информация по ним указывается в отдельных строках."]
[null,null,1,null,null,null,null,null,null,null,null,{"$f":"mergeValue(A21) &\".\"& mergeValue(B21)&\".\"& mergeValue(C21)","v":"1.1.1"},"Наименование централизованной системы водоотведения",null,null,null,null,null,null,null,null,null,null,null,null,null,null,null,null,null,null,null,null,null,null,null,null,null,"Указывается наименование централизованной системы водоотведения при наличии дифференциации тарифа по централизованным системам водоотведения\nВ случае дифференциации тарифов по централизованным системам водоотведения информация по ним указывается в отдельных строках."]
[null,null,null,1,null,null,null,null,null,null,null,{"$f":"mergeValue(A22) &\".\"& mergeValue(B22)&\".\"& mergeValue(C22)&\".\"& mergeValue(D22)","v":"1.1.1.1"},null,"да",null,"1",null,"нет",null,1,null,"нет",null,1,null,"нет",null,1,null,null,null,null,null,null,"да",null,"нет",null,"В колодке «Параметр дифференциации тарифа/Заявитель» указывается наименование категории потребителей/заявителя, к которой относится тариф.\nДаты начала и окончания указываются в виде «ДД.ММ.ГГГГ».\nВ случае отсутствия даты окончания тарифа в колонке «Дата окончания» указывается «Нет».\nВ случае дифференциации по категориям потребителей/заявителям, подключаемой нагрузке, диапазону диаметров, протяженности, условиям прокладки канализационной сети информация по ним указывается в отдельных строках.\nВ случае дифференциации по периодам действия тарифа информация по ним указывается в отдельных колонках.",{"$f":"strCheckDateOnDP(V22:AL22,List06_9_DP)","v":""},{"$f":"IF(AND(COUNTIF(AP18:AP26,AP22)>1,AP22<>\"\"),\"ErrUnique:HasDoubleConn\",\"\")","v":""}]
[null,null,null,null,null,null,null,null,null,null,null,null,null,null,null,null,null,null,null,null,null,null,null,null,null,null,null,null,null,null,null,null,{"$f":"AH22 & \"-\" & AJ22","v":"-"},null,null,null,"нет"]
[]
[]
[null,null,null,null,null,null,null,null,null,null,null,null,null,null,null,null,"Добавить подключаемую нагрузку"]
[null,null,null,null,null,null,null,null,null,null,null,null,"Добавить строку"]
[null,null,null,null,null,null,null,null,null,null,null,null,"Добавить наименование системы водоотведения"]
[null,null,null,null,null,null,null,null,null,null,null,null,"Добавить территорию действия тарифа"]
[null,null,null,null,null,null,null,null,null,null,null,null,"Добавить наименование тарифа"]
[]
[null,null,null,null,null,null,null,null,null,null,null,1,"При размещении информации по данной форме дополнительно указывается дата подачи заявления об утверждении(изменении) тарифа и его номер."]

{"sheet":"Форма 1.0.1 | Т-подкл","index":17,"n_rows":19,"n_cols":10,"rows_kept":19,"cut":false,"hidden":true,"merged":[[18,6,18,7],[1,5,1,7],[3,5,3,7],[3,8,4,8],[7,0,15,0],[11,2,13,2],[12,8,13,8],[10,1,14,1]]}
["10"]
[null,null,null,null,null,"Форма 1.0.1 Основные параметры раскрываемой информации 1"]
[]
[null,null,null,null,null,"Параметры формы",null,null,"Описание параметров формы"]
[null,null,null,null,null,"№ п/п","Наименование параметра","Информация"]
[null,null,null,null,null,"1",2,3,4,4]
[null,null,null,null,null,1,"Дата заполнения/внесения изменений",{"$f":"IF(dateCh=\"\",\"\",dateCh)","v":"06.05.2020"},"Указывается календарная дата первичного заполнения или внесения изменений в форму в виде «ДД.ММ.ГГГГ»."]
[1,null,null,null,null,{"$f":"\"2.\" &mergeValue(A8)","v":"2.1"},"Наименование централизованной системы коммунальной инфраструктуры",null,"Указывается наименование централизованной системы холодного водоснабжения/горячего водоснабжения/водоотведения/теплоснабжения, к которой относится размещаемая информация.\nВ случае наличия нескольких централизованных систем коммунальной инфраструктуры, информация по каждой из них указывается в отдельной строке."]
[null,null,null,null,null,{"$f":"\"3.\" &mergeValue(A9)","v":"3.1"},"Наименование регулируемого вида деятельности",null,"Указывается наименование вида регулируемой деятельности."]
[null,null,null,null,null,{"$f":"\"4.\"&mergeValue(A10)","v":"4.1"},"Территория оказания услуги по регулируемому виду деятельности","x"]
[null,1,null,null,null,{"$f":"\"4.\"&mergeValue(A11) &\".\"&mergeValue(B11)","v":"4.1.1"},"Субъект Российской Федерации",{"$f":"IF(region_name=\"\",\"\",region_name)","v":"Костромская область"},"Указывается наименование субъекта Российской Федерации"]
[null,null,1,null,null,{"$f":"\"4.\"&mergeValue(A12) &\".\"&mergeValue(B12)&\".\"&mergeValue(C12)","v":"4.1.1.1"},"муниципальный район",null,"Указывается наименование муниципального района, на территории которого организация оказывает услуги по регулируемому виду деятельности."]
[null,null,null,1,null,{"$f":"\"4.\"&mergeValue(A13) &\".\"&mergeValue(B13)&\".\"&mergeValue(C13)&\".\"&mergeValue(D13)","v":"4.1.1.1.1"},"муниципальное образование",null,"Указывается наименование и код муниципального района, муниципального образования в соответствии с Общероссийским классификатором территорий муниципальных образований (далее - ОКТМО), входящего в муниципальный район, на территории которого организация оказывает услуги по регулируемому виду деятельности.\nВ случае оказания услуг по регулируемому виду деятельности на территории нескольких муниципальных районов (муниципальных образований) данные по каждому их них указываются в отдельной строке."]
[null,null,null,null,null,null,"Добавить МО"]
[null,null,null,null,null,null,"Добавить МР"]
[null,null,null,null,null,null,"Добавить территорию"]
[null,null,null,null,null,null,"Добавить ЦС"]
[]
[null,null,null,null,null,null,"  1 Информация размещается при раскрытии информации по каждой из форм."]

{"sheet":"Форма 3.12.3 | Т-подкл","index":18,"n_rows":32,"n_cols":40,"rows_kept":32,"cut":false,"hidden":true,"merged":[[13,37,16,37],[21,37,26,37],[14,36,16,36],[14,16,16,19],[14,20,16,23],[21,18,23,18],[21,22,22,22],[21,16,24,16],[14,28,14,34],[14,35,16,35],[21,23,22,23],[15,28,15,29],[15,32,15,34],[18,13,18,36],[16,33,16,34],[15,30,15,31],[21,11,25,11],[21,17,23,17],[21,20,23,20],[19,13,19,36],[21,24,22,24],[18,0,28,0],[19,1,27,1],[20,2,26,2],[21,3,25,3],[21,10,25,10],[21,8,25,8],[21,9,25,9],[17,20,17,23],[17,16,17,19],[17,13,17,15],[21,12,25,12],[21,15,24,15],[21,13,24,13],[21,19,23,19],[20,13,20,36],[21,21,22,21],[21,14,24,14],[12,28,12,35],[14,12,16,12],[14,11,16,11],[4,11,4,19],[6,13,6,19],[7,13,7,19],[8,13,8,19],[9,13,9,19],[12,17,12,22],[11,17,11,22],[10,17,10,22],[10,11,10,12],[11,11,11,12],[14,24,16,27],[13,11,13,36],[14,13,16,15]]}
[]
[]
[]
[]
[null,null,null,null,null,null,null,null,null,null,null,"Форма 3.12.3 Информация о предложении величин тарифов на подключение к централизованной системе водоотведения1"]
[]
[null,null,null,null,null,null,null,null,null,null,null,null,"Наименование органа регулирования, принявшего решение об утверждении тарифов",{"$f":"IF(NameOrPr=\"\",\"\",NameOrPr)","v":""}]
[null,null,null,null,null,null,null,null,null,null,null,null,{"$f":"\"Дата подачи заявления об \"&IF(datePr_ch=\"\",\"утверждении\",\"изменении\") & \" тарифов\"","v":"Дата подачи заявления об изменении тарифов"},{"$f":"IF(datePr_ch=\"\",IF(datePr=\"\",\"\",datePr),datePr_ch)","v":"27.04.2020"}]
[null,null,null,null,null,null,null,null,null,null,null,null,{"$f":"\"Номер подачи заявления об \"&IF(numberPr_ch=\"\",\"утверждении\",\"изменении\") & \" тарифов\"","v":"Номер подачи заявления об изменении тарифов"},{"$f":"IF(numberPr_ch=\"\",IF(numberPr=\"\",\"\",numberPr),numberPr_ch)","v":"вх. №О-770"}]
[null,null,null,null,null,null,null,null,null,null,null,null,"Источник официального опубликования решения",{"$f":"IF(IstPub=\"\",\"\",IstPub)","v":""}]
[null,null,null,null,null,null,null,null,null,null,null,null,null,null,null,null,null,null,null,null,null,null,null,null,null,null,null,null,"NDS","woNDS","NDS","woNDS"]
[null,null,null,null,null,null,null,null,null,null,null,null,null,null,null,null,null,null,null,null,null,null,null,null,null,null,null,null,null,null,null,null,null,null,null,"dp"]
[]
[null,null,null,null,null,null,null,null,null,null,null,"Параметры формы",null,null,null,null,null,null,null,null,null,null,null,null,null,null,null,null,null,null,null,null,null,null,null,null,null,"Описание параметров формы"]
[null,null,null,null,null,null,null,null,null,null,null,"№ п/п","Параметр дифференциации тарифа/Заявитель","Подключаемая нагрузка канализационной сети, куб. м/сут",null,null,"Диапазон диаметров канализационной сети, мм",null,null,null,"Протяженность канализационной сети, км",null,null,null,"Условия прокладки сетей",null,null,null,"Период действия тарифа",null,null,null,null,null,null,"Наличие других периодов действия тарифа","Добавить период"]
[null,null,null,null,null,null,null,null,null,null,null,null,null,null,null,null,null,null,null,null,null,null,null,null,null,null,null,null,"Ставка тарифа за подключаемую нагрузку канализационной сети, тыс. руб./куб. м в сут",null,"Ставка тарифа за протяженность канализационной сети диаметром d, тыс. руб./км",null,"Период действия"]
[null,null,null,null,null,null,null,null,null,null,null,null,null,null,null,null,null,null,null,null,null,null,null,null,null,null,null,null,"С НДС","Без НДС","С НДС","Без НДС","Дата начала","Дата окончания"]
[null,null,null,null,null,null,null,null,null,null,1,"1","2",{"$f":"OFFSET(N18,0,-1)+1","v":3},null,null,{"$f":"OFFSET(Q18,0,-3)+1","v":4},null,null,null,{"$f":"OFFSET(U18,0,-4)+1","v":5},null,null,null,null,null,{"$f":"OFFSET(U18,0,0)+1","v":6},{"$f":"AA18","v":6},{"$f":"OFFSET(AC18,0,-1)+1","v":7},8,9,10,11,12,13,14,null,15]
[1,null,null,null,null,null,null,null,null,null,null,{"$f":"mergeValue(A19)","v":1},"Наименование тарифа",null,null,null,null,null,null,null,null,null,null,null,null,null,null,null,null,null,null,null,null,null,null,null,null,"Указывается наименование тарифа в случае подачи предложения по нескольким тарифам.\nВ случае наличия нескольких тарифов информация по ним указывается в отдельных строках."]
[null,1,null,null,null,null,null,null,null,null,null,{"$f":"mergeValue(A20) &\".\"& mergeValue(B20)","v":"1.1"},"Территория действия тарифа",null,null,null,null,null,null,null,null,null,null,null,null,null,null,null,null,null,null,null,null,null,null,null,null,"Указывается наименование территории действия тарифа при наличии дифференциации тарифа по территориальному признаку.\nВ случае дифференциации тарифов по территориальному признаку информация по ним указывается в отдельных строках."]
[null,null,1,null,null,null,null,null,null,null,null,{"$f":"mergeValue(A21) &\".\"& mergeValue(B21)&\".\"& mergeValue(C21)","v":"1.1.1"},"Наименование централизованной системы водоотведения",null,null,null,null,null,null,null,null,null,null,null,null,null,null,null,null,null,null,null,null,null,null,null,null,"Указывается наименование централизованной системы водоотведения при наличии дифференциации тарифа по централизованным системам водоотведения\nВ случае дифференциации тарифов по централизованным системам водоотведения информация по ним указывается в отдельных строках."]
[null,null,null,1,null,null,null,null,null,null,null,{"$f":"mergeValue(A22) &\".\"& mergeValue(B22)&\".\"& mergeValue(C22)&\".\"& mergeValue(D22)","v":"1.1.1.1"},null,null,"1",null,"нет",null,1,null,"нет",null,"1",null,"нет",null,1,null,null,null,null,null,null,"да",null,"нет",null,"В колодке «Параметр дифференциации тарифа/Заявитель» указывается наименование категории потребителей/заявителя, к которой относится тариф.\nДаты начала и окончания указываются в виде «ДД.ММ.ГГГГ».\nВ случае отсутствия даты окончания тарифа в колонке «Дата окончания» указывается «Нет».\nВ случае дифференциации по категориям потребителей/заявителям, подключаемой нагрузке, диапазону диаметров, протяженности, условиям прокладки канализационной сети информация по ним указывается в отдельных строках.\nВ случае дифференциации по периодам действия тарифа информация по ним указывается в отдельных колонках.",{"$f":"strCheckDateOnDP(AC22:AK22,List06_10_DP)","v":""},{"$f":"IF(AND(COUNTIF(AO18:AO26,AO22)>1,AO22<>\"\"),\"ErrUnique:HasDoubleConn\",\"\")","v":""}]
[null,null,null,null,null,null,null,null,null,null,null,null,null,null,null,null,null,null,null,null,null,null,null,null,null,null,null,null,null,null,null,{"$f":"AG22 & \"-\" & AI22","v":"-"},null,null,null,"нет"]
[]
[]
[null,null,null,null,null,null,null,null,null,null,null,null,null,null,null,"Добавить подключаемую нагрузку"]
[null,null,null,null,null,null,null,null,null,null,null,null,"Добавить строку"]
[null,null,null,null,null,null,null,null,null,null,null,null,"Добавить наименование системы водоотведения"]
[null,null,null,null,null,null,null,null,null,null,null,null,"Добавить территорию действия тарифа"]
[null,null,null,null,null,null,null,null,null,null,null,null,"Добавить наименование тарифа"]
[]
[null,null,null,null,null,null,null,null,null,null,null,1,"При размещении информации по данной форме дополнительно указывается дата подачи заявления об утверждении(изменении) тарифа и его номер."]

{"sheet":"Форма 1.0.2","index":19,"n_rows":15,"n_cols":13,"rows_kept":15,"cut":false,"hidden":true,"merged":[[4,3,4,9],[14,4,14,9],[11,10,12,10],[7,3,7,9],[8,4,8,5],[7,10,9,10],[8,6,8,9],[8,3,9,3]]}
[]
[]
[]
[]
[null,null,null,"Форма 1.0.2 Информация о публикации в печатных изданиях 2"]
[]
[]
[null,null,null,"Параметры формы",null,null,null,null,null,null,"Описание параметров формы"]
[null,null,null,"№ п/п","Форма публикации",null,"Официальное печатное издание"]
[null,null,null,null,"Номер","Наименование","Наименование","Номер","Дата выпуска","Ссылка на документ"]
[null,null,null,"1","2","3","4","5","6","7","8"]
["3","",null,"1",null,null,null,null,null,null,"В колонке «Дата выпуска» дата выпуска печатного издания указывается в виде «ДД.ММ.ГГГГ».\nВ колонке «Ссылка на документ» указывается ссылка на отсканированную копию печатного издания, предварительно загруженную в хранилище федеральной государственной информационной системы «Единая информационно-аналитическая система «Федеральный орган регулирования - региональные органы регулирования - субъекты регулирования» (далее – ФГИС ЕИАС), с опубликованной информацией.\nВ случае публикации информации в нескольких печатных изданиях информация по каждому из них указывается в отдельной строке.",null,{"$f":"IF(ISERROR(INDEX(kind_of_nameforms,MATCH(E12,kind_of_forms,0),1)),\"\",INDEX(kind_of_nameforms,MATCH(E12,kind_of_forms,0),1))","v":""}]
[null,null,null,null,"Добавить строку"]
[]
[null,null,null,null,"2 Размещается информация по каждой из форм раскрытия, данные в которой относятся к муниципальному образованию, в котором отсутствует доступ в сеть «Интернет»."]

{"sheet":"Сведения об изменении","index":20,"n_rows":15,"n_cols":5,"rows_kept":15,"cut":false,"hidden":false,"merged":[[6,3,6,4],[14,3,14,4]]}
[]
[]
[]
[]
[]
[]
[null,null,null,"Сведения об изменениях в первоначально опубликованной информации*"]
[]
[null,null,null,"№ п/п","Сведения"]
[null,null,null,"1","2"]
[null,null,null,0]
[null,null,null,1,"Заявление от 27.04.2020  №ПЭО/797 \"Предложение об установлении (корректировке) тарифов на поставку технической воды на 2021-2022гг\" (вх. от 27.04.2020 №О-770)"]
[null,null,null,null,"Добавить"]
[]
[null,null,null,"* Лист заполняется в случае, если на Титульном листе в поле \"Тип отчета\" выбрано значение «Изменения в раскрытой ранее информации»."]

{"sheet":"Комментарии","index":21,"n_rows":12,"n_cols":5,"rows_kept":12,"cut":false,"hidden":false,"merged":[[6,3,6,4]]}
[]
[]
[]
[]
[]
[]
[null,null,null,"Комментарии"]
[]
[null,null,null,"№ п/п","Комментарий"]
[null,null,null,"1","2"]
[null,null,null,0]
[null,null,null,null,"Добавить"]

{"sheet":"Проверка","index":22,"n_rows":4,"n_cols":4,"rows_kept":4,"cut":false,"hidden":false,"merged":[[1,1,1,3]]}
[]
[null,"Результат проверки"]
[]
[null,"Ссылка","Причина","Статус"]

{"sheet":"modListTempFilter","index":23,"n_rows":0,"n_cols":0,"rows_kept":0,"cut":false,"hidden":true,"merged":[]}

{"sheet":"modCheckCyan","index":24,"n_rows":95,"n_cols":1,"rows_kept":95,"cut":false,"hidden":true,"merged":[]}
[{"$f":"IF('Форма 3.11'!$F$10=\"\",1,0)","v":0}]
[{"$f":"IF('Форма 3.11'!$G$10=\"\",1,0)","v":0}]
[{"$f":"IF('Форма 3.11'!$F$11=\"\",1,0)","v":0}]
[{"$f":"IF('Форма 3.11'!$G$11=\"\",1,0)","v":0}]
[{"$f":"IF('Форма 3.11'!$F$12=\"\",1,0)","v":0}]
[{"$f":"IF('Форма 3.11'!$G$12=\"\",1,0)","v":0}]
[{"$f":"IF('Форма 3.11'!$F$13=\"\",1,0)","v":0}]
[{"$f":"IF('Форма 3.11'!$G$13=\"\",1,0)","v":0}]
[{"$f":"IF('Форма 3.12.1'!$J$15=\"\",1,0)","v":0}]
[{"$f":"IF('Форма 3.12.1'!$H$17=\"\",1,0)","v":0}]
[{"$f":"IF('Форма 3.12.1'!$I$17=\"\",1,0)","v":0}]
[{"$f":"IF('Форма 3.12.1'!$J$17=\"\",1,0)","v":0}]
[{"$f":"IF('Форма 3.12.1'!$H$23=\"\",1,0)","v":0}]
[{"$f":"IF('Форма 3.12.1'!$I$23=\"\",1,0)","v":0}]
[{"$f":"IF('Форма 3.12.1'!$J$23=\"\",1,0)","v":0}]
[{"$f":"IF('Форма 3.12.1'!$H$27=\"\",1,0)","v":0}]
[{"$f":"IF('Форма 3.12.1'!$I$27=\"\",1,0)","v":0}]
[{"$f":"IF('Форма 3.12.1'!$J$27=\"\",1,0)","v":0}]
[{"$f":"IF('Форма 3.12.1'!$H$31=\"\",1,0)","v":0}]
[{"$f":"IF('Форма 3.12.1'!$I$31=\"\",1,0)","v":0}]
[{"$f":"IF('Форма 3.12.1'!$J$31=\"\",1,0)","v":0}]
[{"$f":"IF('Форма 3.12.1'!$H$35=\"\",1,0)","v":0}]
[{"$f":"IF('Форма 3.12.1'!$I$35=\"\",1,0)","v":0}]
[{"$f":"IF('Форма 3.12.1'!$J$35=\"\",1,0)","v":0}]
[{"$f":"IF('Форма 3.12.2 | Т-ВО'!$O$22=\"\",1,0)","v":1}]
[{"$f":"IF('Форма 3.12.2 | Т-ВО'!$R$23=\"\",1,0)","v":1}]
[{"$f":"IF('Форма 3.12.2 | Т-ВО'!$T$23=\"\",1,0)","v":1}]
[{"$f":"IF('Форма 3.12.2 | Т-ВО'!$S$23=\"\",1,0)","v":0}]
[{"$f":"IF('Форма 3.12.2 | Т-ВО'!$U$23=\"\",1,0)","v":0}]
[{"$f":"IF('Форма 3.12.2 | Т-транс'!$O$22=\"\",1,0)","v":0}]
[{"$f":"IF('Форма 3.12.2 | Т-транс'!$R$23=\"\",1,0)","v":0}]
[{"$f":"IF('Форма 3.12.2 | Т-транс'!$T$23=\"\",1,0)","v":0}]
[{"$f":"IF('Форма 3.12.2 | Т-транс'!$S$23=\"\",1,0)","v":0}]
[{"$f":"IF('Форма 3.12.2 | Т-транс'!$U$23=\"\",1,0)","v":0}]
[{"$f":"IF('Форма 3.12.3 | Т-подкл(инд)'!$M$22=\"\",1,0)","v":1}]
[{"$f":"IF('Форма 3.12.3 | Т-подкл(инд)'!$Q$22=\"\",1,0)","v":1}]
[{"$f":"IF('Форма 3.12.3 | Т-подкл(инд)'!$AD$22=\"\",1,0)","v":1}]
[{"$f":"IF('Форма 3.12.3 | Т-подкл(инд)'!$AE$22=\"\",1,0)","v":1}]
[{"$f":"IF('Форма 3.12.3 | Т-подкл(инд)'!$AF$22=\"\",1,0)","v":1}]
[{"$f":"IF('Форма 3.12.3 | Т-подкл(инд)'!$AG$22=\"\",1,0)","v":1}]
[{"$f":"IF('Форма 3.12.3 | Т-подкл(инд)'!$AH$22=\"\",1,0)","v":1}]
[{"$f":"IF('Форма 3.12.3 | Т-подкл(инд)'!$AJ$22=\"\",1,0)","v":1}]
[{"$f":"IF('Форма 3.12.3 | Т-подкл(инд)'!$N$22=\"\",1,0)","v":0}]
[{"$f":"IF('Форма 3.12.3 | Т-подкл(инд)'!$R$22=\"\",1,0)","v":0}]
[{"$f":"IF('Форма 3.12.3 | Т-подкл(инд)'!$V$22=\"\",1,0)","v":0}]
[{"$f":"IF('Форма 3.12.3 | Т-подкл(инд)'!$Z$22=\"\",1,0)","v":0}]
[{"$f":"IF('Форма 3.12.3 | Т-подкл(инд)'!$AI$22=\"\",1,0)","v":0}]
[{"$f":"IF('Форма 3.12.3 | Т-подкл(инд)'!$AK$22=\"\",1,0)","v":0}]
[{"$f":"IF('Форма 3.12.3 | Т-подкл'!$P$22=\"\",1,0)","v":1}]
[{"$f":"IF('Форма 3.12.3 | Т-подкл'!$AC$22=\"\",1,0)","v":1}]
[{"$f":"IF('Форма 3.12.3 | Т-подкл'!$AD$22=\"\",1,0)","v":1}]
[{"$f":"IF('Форма 3.12.3 | Т-подкл'!$AE$22=\"\",1,0)","v":1}]
[{"$f":"IF('Форма 3.12.3 | Т-подкл'!$AF$22=\"\",1,0)","v":1}]
[{"$f":"IF('Форма 3.12.3 | Т-подкл'!$AG$22=\"\",1,0)","v":1}]
[{"$f":"IF('Форма 3.12.3 | Т-подкл'!$AI$22=\"\",1,0)","v":1}]
[{"$f":"IF('Форма 3.12.3 | Т-подкл'!$Q$22=\"\",1,0)","v":0}]
[{"$f":"IF('Форма 3.12.3 | Т-подкл'!$U$22=\"\",1,0)","v":0}]
[{"$f":"IF('Форма 3.12.3 | Т-подкл'!$Y$22=\"\",1,0)","v":0}]
[{"$f":"IF('Форма 3.12.3 | Т-подкл'!$AH$22=\"\",1,0)","v":0}]
[{"$f":"IF('Форма 3.12.3 | Т-подкл'!$AJ$22=\"\",1,0)","v":0}]
[{"$f":"IF('Форма 1.0.2'!$E$12=\"\",1,0)","v":1}]
[{"$f":"IF('Форма 1.0.2'!$F$12=\"\",1,0)","v":1}]
[{"$f":"IF('Форма 1.0.2'!$G$12=\"\",1,0)","v":1}]
[{"$f":"IF('Форма 1.0.2'!$H$12=\"\",1,0)","v":1}]
[{"$f":"IF('Форма 1.0.2'!$I$12=\"\",1,0)","v":1}]
[{"$f":"IF('Форма 1.0.2'!$J$12=\"\",1,0)","v":1}]
[{"$f":"IF('Сведения об изменении'!$E$12=\"\",1,0)","v":0}]
[{"$f":"IF(Территории!$E$12=\"\",1,0)","v":0}]
[{"$f":"IF('Перечень тарифов'!$E$21=\"\",1,0)","v":0}]
[{"$f":"IF('Перечень тарифов'!$F$21=\"\",1,0)","v":0}]
[{"$f":"IF('Перечень тарифов'!$G$21=\"\",1,0)","v":0}]
[{"$f":"IF('Перечень тарифов'!$K$21=\"\",1,0)","v":0}]
[{"$f":"IF('Перечень тарифов'!$O$21=\"\",1,0)","v":0}]
[{"$f":"IF('Форма 3.12.2 | Т-транс'!$O$23=\"\",1,0)","v":0}]
[{"$f":"IF('Форма 3.12.1'!$H$24=\"\",1,0)","v":0}]
[{"$f":"IF('Форма 3.12.1'!$I$24=\"\",1,0)","v":0}]
[{"$f":"IF('Форма 3.12.1'!$J$24=\"\",1,0)","v":0}]
[{"$f":"IF('Форма 3.12.1'!$H$28=\"\",1,0)","v":0}]
[{"$f":"IF('Форма 3.12.1'!$I$28=\"\",1,0)","v":0}]
[{"$f":"IF('Форма 3.12.1'!$J$28=\"\",1,0)","v":0}]
[{"$f":"IF('Форма 3.12.1'!$H$32=\"\",1,0)","v":0}]
[{"$f":"IF('Форма 3.12.1'!$I$32=\"\",1,0)","v":0}]
[{"$f":"IF('Форма 3.12.1'!$J$32=\"\",1,0)","v":0}]
[{"$f":"IF('Форма 3.12.1'!$H$36=\"\",1,0)","v":0}]
[{"$f":"IF('Форма 3.12.1'!$I$36=\"\",1,0)","v":0}]
[{"$f":"IF('Форма 3.12.1'!$J$36=\"\",1,0)","v":0}]
[{"$f":"IF('Форма 3.12.2 | Т-транс'!$Y$23=\"\",1,0)","v":0}]
[{"$f":"IF('Форма 3.12.2 | Т-транс'!$AA$23=\"\",1,0)","v":0}]
[{"$f":"IF('Форма 3.12.2 | Т-транс'!$V$23=\"\",1,0)","v":0}]
[{"$f":"IF('Форма 3.12.2 | Т-транс'!$Z$23=\"\",1,0)","v":0}]
[{"$f":"IF('Форма 3.12.2 | Т-транс'!$AB$23=\"\",1,0)","v":0}]
[{"$f":"IF('Форма 3.12.1'!$H$18=\"\",1,0)","v":0}]
[{"$f":"IF('Форма 3.12.1'!$I$18=\"\",1,0)","v":0}]
[{"$f":"IF('Форма 3.12.1'!$J$18=\"\",1,0)","v":0}]
[{"$f":"IF('Форма 3.12.1'!$K$21=\"\",1,0)","v":0}]

{"sheet":"REESTR_LINK","index":25,"n_rows":3,"n_cols":3,"rows_kept":3,"cut":false,"hidden":true,"merged":[]}
["ID","LINK_NAME","REGION"]
[4189678,"https://portal.eias.ru/Portal/DownloadPage.aspx?type=12&guid=????????-????-????-????-????????????","ALL"]
[4190415,"https://eias.fstrf.ru/disclo/get_file?p_guid=????????-????-????-????-????????????","ALL"]

{"sheet":"REESTR_DS","index":26,"n_rows":6,"n_cols":2,"rows_kept":6,"cut":false,"hidden":true,"merged":[]}
[]
[]
[null,"городской округ город Волгореченск, городской округ город Волгореченск (34706000);"]
[null,"территория 2"]
[null,"территория 3"]
[null,"территория 4"]

{"sheet":"modHTTP","index":27,"n_rows":0,"n_cols":0,"rows_kept":0,"cut":false,"hidden":true,"merged":[]}

{"sheet":"modfrmRezimChoose","index":28,"n_rows":0,"n_cols":0,"rows_kept":0,"cut":false,"hidden":true,"merged":[]}

{"sheet":"modSheetMain","index":29,"n_rows":1,"n_cols":2,"rows_kept":1,"cut":false,"hidden":true,"merged":[]}
["Форма","Листы"]

{"sheet":"REESTR_VT","index":30,"n_rows":5,"n_cols":2,"rows_kept":5,"cut":false,"hidden":true,"merged":[]}
["ID_TARIFF_NAME","TARIFF_NAME"]
[4213771,"Тариф на подключение (технологическое присоединение) к централизованной системе водоотведения в индивидуальном порядке"]
[4213772,"Тариф на подключение (технологическое присоединение) к централизованной системе водоотведения"]
[4213773,"Тариф на транспортировку сточных вод"]
[4213774,"Тариф на водоотведение"]

{"sheet":"REESTR_VED","index":31,"n_rows":4,"n_cols":2,"rows_kept":4,"cut":false,"hidden":true,"merged":[]}
["ID_TARIFF_NAME","VED_NAME"]
[4189714,"Водоотведение"]
[4189713,"Транспортировка"]
[4189712,"Подключение (технологическое присоединение) к централизованной системе водоотведения"]

{"sheet":"modfrmReestrObj","index":32,"n_rows":0,"n_cols":0,"rows_kept":0,"cut":false,"hidden":true,"merged":[]}

{"sheet":"AllSheetsInThisWorkbook","index":33,"n_rows":42,"n_cols":2,"rows_kept":42,"cut":false,"hidden":true,"merged":[]}
["Расчетные листы","Скрытые листы"]
["Instruction","modList14_1"]
["modUpdTemplLogger","modProv"]
["List00","modListTempFilter"]
["List01","modCheckCyan"]
["List02","REESTR_LINK"]
["List05_11","REESTR_DS"]
["List13","modHTTP"]
["List14_1","modfrmRezimChoose"]
["List05_1","modSheetMain"]
["List06_1","REESTR_VT"]
["List05_2","REESTR_VED"]
["List06_2","modfrmReestrObj"]
["List05_9","AllSheetsInThisWorkbook"]
["List06_9","TSH_et_union_vert"]
["List05_10","modInstruction"]
["List06_10","modRegion"]
["List03","modReestr"]
["List07","modfrmReestr"]
["ListComm","modUpdTemplMain"]
["ListCheck","TSH_REESTR_ORG"]
[null,"modClassifierValidate"]
[null,"modHyp"]
[null,"modServiceModule"]
[null,"modList00"]
[null,"modList01"]
[null,"modList02"]
[null,"modList03"]
[null,"TSH_REESTR_MO_FILTER"]
[null,"TSH_REESTR_MO"]
[null,"TEHSHEET"]
[null,"TSH_et_union_hor"]
[null,"modInfo"]
[null,"modList05"]
[null,"modList06"]
[null,"modList07"]
[null,"modList13"]
[null,"modfrmDateChoose"]
[null,"modComm"]
[null,"modThisWorkbook"]
[null,"modfrmReestrMR"]
[null,"modfrmCheckUpdates"]

{"sheet":"et_union_vert","index":34,"n_rows":0,"n_cols":0,"rows_kept":0,"cut":false,"hidden":true,"merged":[]}

{"sheet":"modInstruction","index":35,"n_rows":0,"n_cols":0,"rows_kept":0,"cut":false,"hidden":true,"merged":[]}

{"sheet":"modRegion","index":36,"n_rows":0,"n_cols":0,"rows_kept":0,"cut":false,"hidden":true,"merged":[]}

{"sheet":"modReestr","index":37,"n_rows":0,"n_cols":0,"rows_kept":0,"cut":false,"hidden":true,"merged":[]}

{"sheet":"modfrmReestr","index":38,"n_rows":0,"n_cols":0,"rows_kept":0,"cut":false,"hidden":true,"merged":[]}

{"sheet":"modUpdTemplMain","index":39,"n_rows":0,"n_cols":0,"rows_kept":0,"cut":false,"hidden":true,"merged":[]}

{"sheet":"REESTR_ORG","index":40,"n_rows":94,"n_cols":10,"rows_kept":94,"cut":false,"hidden":true,"merged":[]}
["№","REGION_ID","REGION_NAME","RST_ORG_ID","ORG_NAME","INN_NAME","KPP_NAME","ORG_START_DATE","ORG_END_DATE"]
[1,"2593","Костромская область","30920049","АНО \"Санаторий имени Ивана Сусанина\"","4415008283","441501001","16-03-2017 00:00:00",null,"VO"]
[2,"2593","Костромская область","26560525","АО \"ГУ ЖКХ\"","5116000922","511601001","13-05-2009 00:00:00",null,"VO"]
[3,"2593","Костромская область","30355171","АО \"Галичское\" по птицеводству","4411000220","441101001","14-10-2002 00:00:00",null,"VO"]
[4,"2593","Костромская область","31029967","АО \"Коммунальные сети\" г.п.п. Чистые Боры","4409005252","440901001","01-12-2017 00:00:00",null,"VO"]
[5,"2593","Костромская область","26853395","АО \"РСП ТПК КГРЭС\"","4431002987","443101001",null,null,"VO"]
[6,"2593","Костромская область","27167898","АО фирма \"Агротекс-ЖБИ\"","4401005349","440101001","24-11-1993 00:00:00",null,"VO"]
[7,"2593","Костромская область","30434293","ЗАО \"ДО МЖК Бутово\"","7726020338","772601001","17-12-2002 00:00:00",null,"VO"]
[8,"2593","Костромская область","28812359","ЗАО \"Лунево\"","4414009580","441401001","07-07-2003 00:00:00",null,"VO"]
[9,"2593","Костромская область","26357308","ЗАО \"Экохиммаш\"","4402000209","440201001",null,null,"VO"]
[10,"2593","Костромская область","26760990","ИП Горохов С.Ж.","440101211808","отсутствует","13-10-2004 00:00:00",null,"VO"]
[11,"2593","Костромская область","31312908","ИП Рожков В.В.","441200154038","отсутствует",null,null,"VO"]
[12,"2593","Костромская область","31056794","ИП Румянцева С.В.","440106927232","отсутствует","24-07-2013 00:00:00",null,"VO"]
[13,"2593","Костромская область","30859188","ИП Скидоненко В.А.","441000813276","отсутствует","04-10-2016 00:00:00",null,"VO"]
[14,"2593","Костромская область","26771738","ЛПУ \"Санаторий \"Колос\"","4414000884","441401001","25-01-1994 00:00:00",null,"VO"]
[15,"2593","Костромская область","26357352","ЛПУ \"Санаторий Волга\"","4414000362","441401001",null,null,"VO"]
[16,"2593","Костромская область","26357402","ЛПУ \"Санаторий для лечения родителей с детьми \"Костромской\"","4441002489","440101001",null,null,"VO"]
[17,"2593","Костромская область","31228575","МКУП \"Водотеплоресурс\" Галичского р-на","4403006764","440301001","10-12-2018 00:00:00",null,"VO"]
[18,"2593","Костромская область","31349469","МКУП \"ГорХоз\"","4426003706","442601001","02-09-2019 00:00:00",null,"VO"]
[19,"2593","Костромская область","31007038","МКУП \"Коммунальные системы\" Мантурово","4404005386","440401001","18-12-2017 00:00:00",null,"VO"]
[20,"2593","Костромская область","31163713","МКУП \"Коммунсервис\" Шарьинского р-на","4430003480","443001001","09-07-2018 00:00:00",null,"VO"]
[21,"2593","Костромская область","31337927","МКУП \"Поназыревское ЖКХ\"","4424002810","442401001","16-07-2019 00:00:00",null,"VO"]
[22,"2593","Костромская область","26357355","МУП \"Борщино\"","4414009647","441401001","05-11-2003 00:00:00",null,"VO"]
[23,"2593","Костромская область","26372985","МУП \"ЖКХ Воронье\"","4427004251","442701001",null,null,"VO"]
[24,"2593","Костромская область","26372983","МУП \"ЖКХ Раслово\"","4427004220","442701001",null,null,"VO"]
[25,"2593","Костромская область","26357359","МУП \"Ильинское\"","4414012199","441401001",null,null,"VO"]
[26,"2593","Костромская область","26357357","МУП \"Караваево\"","4414011396","441401001",null,null,"VO"]
[27,"2593","Костромская область","26372984","МУП \"Коммунсервис\" Судиславского сельского поселения","4427004244","442701001",null,null,"VO"]
[28,"2593","Костромская область","28534221","МУП \"Красноетеплоэнерго\"","4415004916","441501001","15-09-2005 00:00:00",null,"VO"]
[29,"2593","Костромская область","26372944","МУП \"Макарьевское КХ\"","4416003418","441601001",null,null,"VO"]
[30,"2593","Костромская область","26766749","МУП \"Нейское предприятие по благоустройству\"","4406004250","440601001",null,null,"VO"]
[31,"2593","Костромская область","26765966","МУП \"Номженское ЖКХ\"","4406004363","440601001",null,null,"VO"]
[32,"2593","Костромская область","27870097","МУП \"Ресурс\"","4421004520","442101001",null,null,"VO"]
[33,"2593","Костромская область","31097319","МУП \"Судиславль-Водоканал\"","4427002416","442701001","07-05-2018 00:00:00",null,"VO"]
[34,"2593","Костромская область","26372982","МУП \"Судиславское ЖКХ\"","4427004212","442701001",null,null,"VO"]
[35,"2593","Костромская область","26372902","МУП \"ТВТ\"","4405006858","440501001",null,null,"VO"]
[36,"2593","Костромская область","26516069","МУП \"Тепловик\"","4421005900","442101001","18-06-2009 00:00:00",null,"VO"]
[37,"2593","Костромская область","31237703","МУП \"Теплосервис\" Судиславского с/п","4437000312","443701001","02-10-2018 00:00:00",null,"VO"]
[38,"2593","Костромская область","26357329","МУП \"Теплоэнерго\"","4408003380","440801001",null,null,"VO"]
[39,"2593","Костромская область","27967312","МУП \"Услуга\" г.п.п. Сусанино","4428003282","442801001","06-02-2007 00:00:00",null,"VO"]
[40,"2593","Костромская область","28814732","МУП \"Шарьинская ТЭЦ\"","4407013040","440701001","16-06-2014 00:00:00",null,"VO"]
[41,"2593","Костромская область","26516073","МУП \"Шунга\"","4414012270","441401001",null,null,"VO"]
[42,"2593","Костромская область","28953910","МУП ГП ПОС. КРАСНОЕ-НА-ВОЛГЕ \"ЧИСТАЯ ВОДА\"","4415002362","441501001","01-02-2013 00:00:00",null,"VO"]
[43,"2593","Костромская область","27402548","МУП ЖКХ \"Водоканал\" г.п.п. Чистые Боры","4409004788","440901001","30-05-2011 00:00:00",null,"VO"]
[44,"2593","Костромская область","30350809","МУП ЖКХ \"Коммунальные сети\" г.п.п. Чистые боры","4409005069","440901001","12-11-2014 00:00:00",null,"VO"]
[45,"2593","Костромская область","28274065","МУП ЖКХ Буйского района","4409000790","440901001","10-07-2013 00:00:00",null,"VO"]
[46,"2593","Костромская область","31341793","МУП РКС","4427002543","442700001","31-07-2019 00:00:00",null,"VO"]
[47,"2593","Костромская область","26357348","МУП администрации городского поселения г. Кологрив \"Коммунсервис\"","4413002381","441301001",null,null,"VO"]
[48,"2593","Костромская область","26510940","МУП г. Костромы \"Костромагорводоканал\"","4401000622","440101001","22-10-1992 00:00:00",null,"VO"]
[49,"2593","Костромская область","30391353","ООО \"Благоустройство города\"","4403006267","440301001","15-10-2014 00:00:00",null,"VO"]
[50,"2593","Костромская область","31337904","ООО \"ВОДОКАНАЛСЕРВИС\"","4437000263","443701001","24-05-2018 00:00:00",null,"VO"]
[51,"2593","Костромская область","31061031","ООО \"ВОДОКАНАЛСЕРВИС\" п. Чистые Боры","4415008413","441501001","23-11-2017 00:00:00",null,"VO"]
[52,"2593","Костромская область","31237698","ООО \"Водоканал ТС\"","4401189488","440101001","04-12-2018 00:00:00",null,"VO"]
[53,"2593","Костромская область","26372937","ООО \"Водоканал\" Кадыйского района","4412003632","441201001",null,null,"VO"]
[54,"2593","Костромская область","26640293","ООО \"Водоканалсервис\"","4401095293","440101001",null,null,"VO"]
[55,"2593","Костромская область","26372935","ООО \"Водосервис\"\"","4411004295","441101001",null,null,"VO"]
[56,"2593","Костромская область","27562127","ООО \"Гарант-Сервис\"","4430004396","443001001",null,null,"VO"]
[57,"2593","Костромская область","30426902","ООО \"Гарант-Строй\"","4407008755","440701001","15-11-2007 00:00:00",null,"VO"]
[58,"2593","Костромская область","28425142","ООО \"Горводоканал\"","4404004826","440401001","24-09-2013 00:00:00",null,"VO"]
[59,"2593","Костромская область","27562747","ООО \"ЖКХ-сервис\"","4401127474","440101001",null,null,"VO"]
[60,"2593","Костромская область","26373003","ООО \"Зеблякиремсервис\"","4430003138","443001001",null,null,"VO"]
[61,"2593","Костромская область","30939590","ООО \"Земком\"","4408003083","440801001","16-06-2003 00:00:00",null,"VO"]
[62,"2593","Костромская область","28422211","ООО \"КФК Водоканал\"","4401140901","440101001","18-10-2013 00:00:00",null,"VO"]
[63,"2593","Костромская область","28256571","ООО \"Коммун-Тепло-Сервис\"","4424002714","442401001","12-07-2013 00:00:00",null,"VO"]
[64,"2593","Костромская область","26380307","ООО \"Коммунальник\"","4426003030","442601001",null,null,"VO"]
[65,"2593","Костромская область","28965909","ООО \"Коммунальные системы\"","4401161193","440101001","21-04-2015 00:00:00",null,"VO"]
[66,"2593","Костромская область","30386468","ООО \"Коммунсервис\" (Минское с/п)","4401163970","440101001","10-08-2015 00:00:00",null,"VO"]
[67,"2593","Костромская область","27507699","ООО \"КостромаТеплоРемонт\"","4401053335","440901001",null,null,"VO"]
[68,"2593","Костромская область","27846344","ООО \"Лидер\"","4430004477","443001001","31-07-2012 00:00:00",null,"VO"]
[69,"2593","Костромская область","26372905","ООО \"Нейское ЖКХ\"","4406007942","440601001",null,null,"VO"]
[70,"2593","Костромская область","30350914","ООО \"ОЛИМП\"","4407013160","440701001","18-11-2014 00:00:00",null,"VO"]
[71,"2593","Костромская область","30344031","ООО \"Продарснаб\"","4401134633","440101001","04-07-2012 00:00:00",null,"VO"]
[72,"2593","Костромская область","26510936","ООО \"Ремстройпласт\"","4401027984","440101001",null,null,"VO"]
[73,"2593","Костромская область","28149108","ООО \"ССП-Сервис\"","4414002458","441401001","27-02-2013 00:00:00",null,"VO"]
[74,"2593","Костромская область","30359267","ООО \"Сервис-СП\"","4414014774","441401001","21-09-2015 00:00:00",null,"VO"]
[75,"2593","Костромская область","28253001","ООО \"Слив\"","4414003564","441401001","18-06-2013 00:00:00",null,"VO"]
[76,"2593","Костромская область","31077861","ООО \"Судиславская организация ВКХ\"","4427000507","442701001","20-10-2017 00:00:00",null,"VO"]
[77,"2593","Костромская область","27912908","ООО \"СущевоСервис\"","4414001655","441401001","28-06-2012 00:00:00",null,"VO"]
[78,"2593","Костромская область","27872051","ООО \"ТеплоВодоСервис\"","4405003342","440501001","27-04-2012 00:00:00",null,"VO"]
[79,"2593","Костромская область","27402560","ООО \"Тепловодоканал\"","4402007902","440201001",null,null,"VO"]
[80,"2593","Костромская область","26516086","ООО \"Теплогазсервис\"","4415006543","441501001",null,null,"VO"]
[81,"2593","Костромская область","29648501","ООО \"Теплоснабжающее предприятие\"","4412003819","441201001","23-06-2015 00:00:00",null,"VO"]
[82,"2593","Костромская область","30917244","ООО \"Технологии ЖКХ\"","4414015810","441401001","01-03-2017 00:00:00",null,"VO"]
[83,"2593","Костромская область","28983694","ООО \"УК Нея\"","4406008150","440601001","16-04-2015 00:00:00",null,"VO"]
[84,"2593","Костромская область","30934948","ООО \"Шунгенское\"","4414015954","441401001","01-07-2017 00:00:00",null,"VO"]
[85,"2593","Костромская область","26651354","ООО Пансионат с лечением \"Сосновый бор\"","4401022866","441401001",null,null,"VO"]
[86,"2593","Костромская область","26357292","ПАО \"Калориферный завод\"","4401006945","440101001",null,null,"VO"]
[87,"2593","Костромская область","26760912","СПК \"Трудовик\"","4427003459","442701001",null,null,"VO"]
[88,"2593","Костромская область","26357353","ФГБОУ ВО \"Костромская ГСХА\"","4414001246","441401001",null,null,"VO"]
[89,"2593","Костромская область","30404866","ФГБПОУ \"Костромское СУВУ\"","4414001454","441401001","16-01-2008 00:00:00",null,"VO"]
[90,"2593","Костромская область","31299439","ФГБПОУ \"Орловское СУВУ\"","4336000820","433601001","25-10-2002 00:00:00",null,"VO"]
[91,"2593","Костромская область","30903763","ФГБУ \"ЦЖКУ\" МИНОБОРОНЫ РОССИИ","7729314745","770101001",null,null,"VO"]
[92,"2593","Костромская область","26357374","ЧУ \"Санаторий \"Щелыково\" СТД РФ\"","4421001776","442101001","29-11-2002 00:00:00",null,"VO"]
[93,"2593","Костромская область","26324371","филиал \"Костромская ГРЭС\" АО \"Интер РАО-Электрогенерация\"","7704784450","443143001",null,null,"VO"]

{"sheet":"modClassifierValidate","index":41,"n_rows":0,"n_cols":0,"rows_kept":0,"cut":false,"hidden":true,"merged":[]}

{"sheet":"modHyp","index":42,"n_rows":0,"n_cols":0,"rows_kept":0,"cut":false,"hidden":true,"merged":[]}

{"sheet":"modServiceModule","index":43,"n_rows":0,"n_cols":0,"rows_kept":0,"cut":false,"hidden":true,"merged":[]}

{"sheet":"modList00","index":44,"n_rows":0,"n_cols":0,"rows_kept":0,"cut":false,"hidden":true,"merged":[]}

{"sheet":"modList01","index":45,"n_rows":0,"n_cols":0,"rows_kept":0,"cut":false,"hidden":true,"merged":[]}

{"sheet":"modList02","index":46,"n_rows":0,"n_cols":0,"rows_kept":0,"cut":false,"hidden":true,"merged":[]}

{"sheet":"modList03","index":47,"n_rows":0,"n_cols":0,"rows_kept":0,"cut":false,"hidden":true,"merged":[]}

{"sheet":"REESTR_MO_FILTER","index":48,"n_rows":0,"n_cols":0,"rows_kept":0,"cut":false,"hidden":true,"merged":[]}

{"sheet":"REESTR_MO","index":49,"n_rows":159,"n_cols":4,"rows_kept":159,"cut":false,"hidden":true,"merged":[]}
["№","МР","МО","МО_ОКТМО"]
[1,"Антроповский муниципальный район","Антроповский муниципальный район","34602000"]
[2,"Антроповский муниципальный район","Антроповское","34602403"]
[3,"Антроповский муниципальный район","Котельниковское","34602412"]
[4,"Антроповский муниципальный район","Палкинское","34602420"]
[5,"Антроповский муниципальный район","Просекское","34602408"]
[6,"Буйский муниципальный район","Барановское","34604404"]
[7,"Буйский муниципальный район","Буйский муниципальный район","34604000"]
[8,"Буйский муниципальный район","Центральное","34604466"]
[9,"Буйский муниципальный район","городское поселение посёлок Чистые Боры","34604159"]
[10,"Вохомский муниципальный район","Бельковское","34606404"]
[11,"Вохомский муниципальный район","Воробьевицкое","34606408"]
[12,"Вохомский муниципальный район","Вохомский муниципальный район","34606000"]
[13,"Вохомский муниципальный район","Вохомское","34606410"]
[14,"Вохомский муниципальный район","Лапшинское","34606416"]
[15,"Вохомский муниципальный район","Петрецовское","34606436"]
[16,"Галичский муниципальный район","Березовское","34608404"]
[17,"Галичский муниципальный район","Галичский муниципальный район","34608000"]
[18,"Галичский муниципальный район","Дмитриевское","34608407"]
[19,"Галичский муниципальный район","Лопаревское","34608416"]
[20,"Галичский муниципальный район","Ореховское","34608428"]
[21,"Галичский муниципальный район","Степановское","34608440"]
[22,"Город Нерехта и Нерехтский муниципальный район","Ёмсненское","34626420"]
[23,"Город Нерехта и Нерехтский муниципальный район","Волжское","34626410"]
[24,"Город Нерехта и Нерехтский муниципальный район","Воскресенское","34626412"]
[25,"Город Нерехта и Нерехтский муниципальный район","Город Нерехта","34626101"]
[26,"Город Нерехта и Нерехтский муниципальный район","Город Нерехта и Нерехтский муниципальный район","34626000"]
[27,"Город Нерехта и Нерехтский муниципальный район","Пригородное","34626450"]
[28,"Кадыйский муниципальный район","Вёшкинское","34610420"]
[29,"Кадыйский муниципальный район","Екатеринкинское","34610408"]
[30,"Кадыйский муниципальный район","Завражное","34610412"]
[31,"Кадыйский муниципальный район","Кадыйский муниципальный район","34610000"]
[32,"Кадыйский муниципальный район","Паньковское","34610432"]
[33,"Кадыйский муниципальный район","Селищенское","34610436"]
[34,"Кадыйский муниципальный район","Столпинское","34610440"]
[35,"Кадыйский муниципальный район","Чернышевское","34610444"]
[36,"Кадыйский муниципальный район","городское посление поселок Кадый","34610151"]
[37,"Кологривский муниципальный район","Илешевское","34612408"]
[38,"Кологривский муниципальный район","Ильинское","34612412"]
[39,"Кологривский муниципальный район","Кологривский муниципальный район","34612000"]
[40,"Кологривский муниципальный район","Суховерховское","34612428"]
[41,"Кологривский муниципальный район","Ужугское","34612432"]
[42,"Кологривский муниципальный район","городское поселение город Кологрив","34612101"]
[43,"Костромской муниципальный район","Апраксинское","34614404"]
[44,"Костромской муниципальный район","Бакшеевское","34614408"]
[45,"Костромской муниципальный район","Караваевское","34614411"]
[46,"Костромской муниципальный район","Костромской муниципальный район","34614000"]
[47,"Костромской муниципальный район","Кузнецовское","34614416"]
[48,"Костромской муниципальный район","Кузьмищенское","34614418"]
[49,"Костромской муниципальный район","Минское","34614420"]
[50,"Костромской муниципальный район","Никольское","34614424"]
[51,"Костромской муниципальный район","Самсоновское","34614428"]
[52,"Костромской муниципальный район","Сандогорское","34614432"]
[53,"Костромской муниципальный район","Середняковское","34614434"]
[54,"Костромской муниципальный район","Сущевское","34614436"]
[55,"Костромской муниципальный район","Чернопенское","34614440"]
[56,"Костромской муниципальный район","Шунгенское","34614444"]
[57,"Красносельский муниципальный район","Боровиковское","34616404"]
[58,"Красносельский муниципальный район","Гридинское","34616408"]
[59,"Красносельский муниципальный район","Захаровское","34616412"]
[60,"Красносельский муниципальный район","Красносельский муниципальный район","34616000"]
[61,"Красносельский муниципальный район","Подольское","34616416"]
[62,"Красносельский муниципальный район","Прискоковское","34616420"]
[63,"Красносельский муниципальный район","Сидоровское","34616424"]
[64,"Красносельский муниципальный район","Чапаевское","34616428"]
[65,"Красносельский муниципальный район","Шолоховское","34616432"]
[66,"Красносельский муниципальный район","городское поселение поселок Красное-на-Волге","34616151"]
[67,"Макарьевский муниципальный район","Горчухинское","34618406"]
[68,"Макарьевский муниципальный район","Макарьевский муниципальный район","34618000"]
[69,"Макарьевский муниципальный район","Нежитинское","34618416"]
[70,"Макарьевский муниципальный район","Николо-Макаровское","34618424"]
[71,"Макарьевский муниципальный район","Тимошинское","34618432"]
[72,"Макарьевский муниципальный район","Унженское","34618440"]
[73,"Макарьевский муниципальный район","Усть-Нейское","34618444"]
[74,"Макарьевский муниципальный район","городское поселение город Макарьев","34618101"]
[75,"Межевской муниципальный район","Георгиевское","34622404"]
[76,"Межевской муниципальный район","Межевской муниципальный район","34622000"]
[77,"Межевской муниципальный район","Никольское","34622412"]
[78,"Межевской муниципальный район","Родинское","34622422"]
[79,"Межевской муниципальный район","Советское","34622426"]
[80,"Муниципальный район город Нея и Нейский район","Еленское","34624406"]
[81,"Муниципальный район город Нея и Нейский район","Коткишевское","34624412"]
[82,"Муниципальный район город Нея и Нейский район","Кужбальское","34624416"]
[83,"Муниципальный район город Нея и Нейский район","Михалевское","34624420"]
[84,"Муниципальный район город Нея и Нейский район","Муниципальный район город Нея и Нейский район","34624000"]
[85,"Муниципальный район город Нея и Нейский район","Номженское","34624424"]
[86,"Муниципальный район город Нея и Нейский район","Солтановское","34624432"]
[87,"Муниципальный район город Нея и Нейский район","Тотомицкое","34624436"]
[88,"Муниципальный район город Нея и Нейский район","городское посление город Нея","34624101"]
[89,"Октябрьский муниципальный район","Луптюгское","34628412"]
[90,"Октябрьский муниципальный район","Новинское","34628414"]
[91,"Октябрьский муниципальный район","Октябрьский муниципальный район","34628000"]
[92,"Октябрьский муниципальный район","Покровское","34628416"]
[93,"Октябрьский муниципальный район","Соловецкое","34628424"]
[94,"Островский муниципальный район","Адищевское","34630404"]
[95,"Островский муниципальный район","Клеванцовское","34630424"]
[96,"Островский муниципальный район","Островский муниципальный район","34630000"]
[97,"Островский муниципальный район","Островское","34630432"]
[98,"Островский муниципальный район","Островское (Центральное)","34630438"]
[99,"Павинский муниципальный район","Леденгское","34632408"]
[100,"Павинский муниципальный район","Павинский муниципальный район","34632000"]
[101,"Павинский муниципальный район","Павинское","34632416"]
[102,"Павинский муниципальный район","Петропавловское","34632420"]
[103,"Парфеньевский муниципальный район","Матвеевское","34634424"]
[104,"Парфеньевский муниципальный район","Николо-Поломское","34634420"]
[105,"Парфеньевский муниципальный район","Парфеньевский муниципальный район","34634000"]
[106,"Парфеньевский муниципальный район","Парфеньевское","34634428"]
[107,"Поназыревский муниципальный район","Полдневицкое","34636418"]
[108,"Поназыревский муниципальный район","Поназыревский муниципальный район","34636000"]
[109,"Поназыревский муниципальный район","Хмелевское","34636424"]
[110,"Поназыревский муниципальный район","Якшангское","34636432"]
[111,"Поназыревский муниципальный район","городское поселение посёлок Поназырево","34636151"]
[112,"Пыщугский муниципальный район","Верхнеспасское","34638404"]
[113,"Пыщугский муниципальный район","Головинское","34638412"]
[114,"Пыщугский муниципальный район","Пыщугский муниципальный район","34638000"]
[115,"Пыщугский муниципальный район","Пыщугское","34638428"]
[116,"Солигаличский муниципальный район","Бурдуковское","34640404"]
[117,"Солигаличский муниципальный район","Корцовское","34640424"]
[118,"Солигаличский муниципальный район","Лосевское","34640432"]
[119,"Солигаличский муниципальный район","Первомайское","34640436"]
[120,"Солигаличский муниципальный район","Солигаличский муниципальный район","34640000"]
[121,"Солигаличский муниципальный район","Солигаличское","34640440"]
[122,"Солигаличский муниципальный район","городское поселение город Солигалич","34640101"]
[123,"Судиславский муниципальный район","Воронское","34642408"]
[124,"Судиславский муниципальный район","Расловское","34642424"]
[125,"Судиславский муниципальный район","Судиславский муниципальный район","34642000"]
[126,"Судиславский муниципальный район","Судиславское","34642432"]
[127,"Судиславский муниципальный район","городское поселение посёлок Судиславль","34642151"]
[128,"Сусанинский муниципальный район","Андреевское","34644404"]
[129,"Сусанинский муниципальный район","Буяковское","34644408"]
[130,"Сусанинский муниципальный район","Северное","34644428"]
[131,"Сусанинский муниципальный район","Сокиринское","34644436"]
[132,"Сусанинский муниципальный район","Сумароковское","34644432"]
[133,"Сусанинский муниципальный район","Сусанинский муниципальный район","34644000"]
[134,"Сусанинский муниципальный район","Ченцовское","34644440"]
[135,"Сусанинский муниципальный район","городское поселение посёлок Сусанино","34644151"]
[136,"Чухломский муниципальный район","Ножкинское","34646420"]
[137,"Чухломский муниципальный район","Петровское","34646424"]
[138,"Чухломский муниципальный район","Повалихинское","34646428"]
[139,"Чухломский муниципальный район","Судайское","34646436"]
[140,"Чухломский муниципальный район","Чухломский муниципальный район","34646000"]
[141,"Чухломский муниципальный район","Чухломское","34646452"]
[142,"Чухломский муниципальный район","Шартановское","34646456"]
[143,"Чухломский муниципальный район","городское поселение город Чухлома","34646101"]
[144,"Шарьинский муниципальный район","Заболотское","34648408"]
[145,"Шарьинский муниципальный район","Зебляковское","34648410"]
[146,"Шарьинский муниципальный район","Ивановское","34648412"]
[147,"Шарьинский муниципальный район","Конёвское","34648420"]
[148,"Шарьинский муниципальный район","Одоевское","34648436"]
[149,"Шарьинский муниципальный район","Троицкое","34648452"]
[150,"Шарьинский муниципальный район","Шангское","34648456"]
[151,"Шарьинский муниципальный район","Шарьинский муниципальный район","34648000"]
[152,"Шарьинский муниципальный район","Шекшемское","34648457"]
[153,"городской округ город Буй","городской округ город Буй","34705000"]
[154,"городской округ город Волгореченск","городской округ город Волгореченск","34706000"]
[155,"городской округ город Галич","городской округ город Галич","34708000"]
[156,"городской округ город Кострома","городской округ город Кострома","34701000"]
[157,"городской округ город Мантурово","городской округ город Мантурово","34714000"]
[158,"городской округ город Шарья","городской округ город Шарья","34730000"]

{"sheet":"TEHSHEET","index":50,"n_rows":87,"n_cols":53,"rows_kept":87,"cut":false,"hidden":true,"merged":[[0,51,0,52]]}
["REGION","year_list1","year_list","logical","Месяц\n(MONTH)","Квартал\n(QUARTER)","Месяц\n(kind_of_publication)","НДС\n/kind_of_NDS/","Номер СЦХВ(СЦВО)\n/SKI_number/","Единица измерения объема оказываемых услуг ГВС\n/kind_of_unit_GVS/","Метод регулирования\n/kind_of_control_method/",null,null,"Вид деятельности, на которую установлен тариф /kind_of_activity_WARM/","Вид теплоносителя\n(kind_of_heat_transfer)","Тип данных\n(kind_of_data_type)","Схема подключения\n(kind_of_scheme_in)\n(kind_of_scheme_in2)","Группы потребителей\n(kind_of_cons)","Тип прокладки тепловых сетей\n(kind_of_nets)","Диапазаны диаметров тепловых сетей\n(kind_of_diameters)","Подключаемая тепловая нагрузка\n(kind_of_load)",null,"Форма 2, таблица Х","виды тарифа\n/kind_group_rates/","Заголовок таблицы",null,"name_rates_4",null,"name_rates_8",null,null,"Подключаемая тепловая нагрузка\n(kind_of_load3)",null,"Вид теплоносителя\n(kind_of_heat_transfer2)","Вид теплоносителя\n(kind_of_heat_transfer3)",null,"Вид топлива\n(kind_of_fuel)",null,"Способ закупки товаров\n(kind_of_zak)",null,null,"виды тарифа\n/kind_group_rates_load/","виды тарифа\n/kind_group_rates_load_filter/",null,"виды признаков дифференциации\n/kind_of_diff/",null,"Диапазаны диаметров водопроводных сетей\n(kind_of_diameters2)",null,"List_H","List_M",null,"Перечень форм\n(kind_of_forms)"]
["Алтайский край",2000,2013,"да","январь","I квартал","На официальном сайте организации","общий","1","тыс.куб.м/сутки","метод экономически обоснованных расходов (затрат)","метод экономически обоснованных расходов (затрат)",1,"Передача+Сбыт","Без дифференциации","первичное раскрытие информации","без дифференциации","организации-перепродавцы","надземная (наземная)","50 - 250 мм","не превышает 0,1 Гкал/ч",1,null,"Тариф на водоотведение","Информация о предложении об установлении цен на техническую воду",null,"Тариф на холодную воду питьевую","Тариф на холодную воду питьевую","Плата за услуги по поддержанию резервной тепловой мощности при отсутствии потребления тепловой энергии для отдельных категорий (групп) социально значимых потребителей","Плата за услуги по поддержанию резервной тепловой мощности при отсутствии потребления тепловой энергии для отдельных категорий (групп) социально значимых потребителей",null,"не превышает 0,1 Гкал/ч",null,"Вода","Вода",null,"Газ природный по регулируемой цене",null,"Конкурс",null,null,"Тариф на подключение (технологическое присоединение) к централизованной системе водоотведения в индивидуальном порядке","Тариф на водоотведение",null,"объемы потребления воды абонентами",null,"40 мм и менее",null,"00","00",null,"Форма 1.0.1","Основные параметры раскрываемой информации"]
["Амурская область",2001,2014,"нет","февраль","II квартал","На сайте регулирующего органа","общий с учетом освобождения от уплаты НДС","2","Гкал/ч","метод индексации установленных тарифов","метод индексации установленных тарифов",2,"Передача","Горячая вода","изменения в раскрытой ранее информации","к коллектору источника тепловой энергии","бюджетные организации","подземная (канальная)","251 - 400 мм","более 0,1 Гкал/ч и не превышает 1,5 Гкал/ч",2,null,"Тариф на транспортировку сточных вод","Информация о предложении об установлении тарифов на транспортировку воды",null,"Тариф на холодную воду артезианскую","Тариф на холодную воду артезианскую","Плата за услуги по поддержанию резервной тепловой мощности, оказываемые регулируемой организацией, мощность источников тепловой энергии которой используется для поддержания резервной мощности в соответствии со схемой теплоснабжения","Плата за услуги по поддержанию резервной тепловой мощности, оказываемые регулируемой организацией, мощность источников тепловой энергии которой используется для поддержания резервной мощности в соответствии со схемой теплоснабжения",null,"более 0,1 Гкал/ч и не превышает 1,5 Гкал/ч",null,"Отборный пар, 1,2-2,5 кг/см2","Пар",null,"Газ природный по нерегулируемой цене",null,"Аукцион",null,null,"Тариф на подключение (технологическое присоединение) к централизованной системе водоотведения","Тариф на подключение (технологическое присоединение) к централизованной системе водоотведения в индивидуальном порядке",null,"соответствие качества питьевой воды и горячей воды требованиям, установленным санитарными нормами и правилами",null,"от 41 мм до 70 мм включительно",null,"01","01",null,"Форма 3.11","Информация о способах приобретения, стоимости и объемах товаров, необходимых для производства регулируемых товаров и (или) оказания регулируемых услуг регулируемой организацией"]
["Архангельская область",2002,2015,null,"март","III квартал",null,"специальный (упрощенная система налогообложения, система налогообложения для сельскохозяйственных производителей)","3","куб.м/ч","метод обеспечения доходности инвестированного капитала","метод обеспечения доходности инвестированного капитала",3,"производство комбинированная выработка","Холодная вода",null,"к тепловой сети без дополнительного преобразования на тепловых пунктах, эксплуатируемых теплоснабжающей организацией","население и приравненные категории","подземная (бесканальная)","401 - 550 мм","превышает 1,5 Гкал/ч при наличии технической возможности подключения",3,null,222,null,null,"Тариф на холодную воду поверхностную","Тариф на холодную воду поверхностную","Плата за услуги по поддержанию резервной тепловой мощности, оказываемые регулируемой организацией, мощность тепловых сетей которой используется для поддержания резервной мощности в соответствии со схемой теплоснабжения","Плата за услуги по поддержанию резервной тепловой мощности, оказываемые регулируемой организацией, мощность тепловых сетей которой используется для поддержания резервной мощности в соответствии со схемой теплоснабжения",null,"превышает 1,5 Гкал/ч при наличии технической возможности подключения",null,"Отборный пар, 2,5-7 кг/см2",null,null,"Уголь",null,"Аукцион в электронной форме",null,null,"Тариф на транспортировку сточных вод","Тариф на подключение (технологическое присоединение) к централизованной системе водоотведения",null,"иное",null,"от 71 мм до 100 мм включительно",null,"02","02",null,"Форма 3.12.1","Информация о предложении об установлении тарифов в сфере водоотведения на очередной период регулирования"]
["Астраханская область",2003,2016,null,"апрель","IV квартал",null,null,"4",null,"метод сравнения аналогов","метод сравнения аналогов",4,"производство (некомбинированная выработка)+передача+сбыт","Вода",null,"к тепловой сети после тепловых пунктов (на тепловых пунктах), эксплуатируемых теплоснабжающей организацией","прочие",null,"551 - 700 мм","превышает 1,5 Гкал/ч при отсутствии технической возможности подключения",4,null,333,null,1,"Добавить вариант …","Добавить вариант …",null,null,null,"не известна",null,"Отборный пар, 7-13 кг/см2",null,null,"Мазут",null,"Запрос котировок",null,null,"Тариф на водоотведение",null,null,null,null,"от 101 мм до 150 мм включительно",null,"03","03",null,"Форма 3.12.2","Информация о предложении величин тарифов на водоотведение, транспортировку воды"]
["Белгородская область",2004,2017,null,"май",null,"НДС общий\n/kind_of_NDS_tariff/","НДС\n/kind_of_NDS_tariff/","5","Вид тарифа на передачу тепловой энергии /kind_of_tariff_unit/",null,null,null,"производство (некомбинированная выработка)+передача","Пар",null,null,"без дифференциации",null,"701 мм и выше","не известна",5,null,55,null,null,null,null,null,null,null,null,null,"Отборный пар, > 13 кг/см2",null,null,"Дизельное топливо",null,"Единственный поставщик",null,null,null,null,null,null,null,"от 151 мм до 200 мм включительно",null,"04","04",null,"Форма 3.12.3","Информация о предложении величин тарифов на подключение к централизованной системе водоотведения"]
["Брянская область",2005,null,null,"июнь",null,"тариф указан с НДС для плательщиков НДС","тариф для организаций не являющихся плательщиками НДС","6","руб./Гкал/ч/мес",null,null,null,"производство (некомбинированная выработка)+сбыт","Отборный пар, 1,2-2,5 кг/см2",null,null,null,null,null,"нет","6",null,66666,null,null,null,null,null,null,null,null,null,"Острый и редуцированный пар",null,null,"Дрова",null,"Иное",null,null,null,null,null,null,null,"от 201 мм до 250 мм включительно",null,"05","05"]
["Владимирская область",2006,null,null,"июль",null,"тариф указан без НДС для плательщиков НДС","тариф не утверждался","7","руб./Гкал",null,null,null,"производство (некомбинированная выработка)","Отборный пар, 2,5-7 кг/см2",null,null,null,null,null,null,"7",null,77777,null,null,null,null,null,null,null,null,null,null,null,null,"Электроэнергия",null,null,null,null,null,null,null,null,null,"от 250  мм и более",null,"06","06"]
["Волгоградская область",2007,null,null,"август",null,"тариф не утверждался",null,"8",null,null,null,null,null,"Отборный пар, 7-13 кг/см2",null,null,null,null,null,null,"8",null,8888,null,1,null,null,null,null,null,null,null,null,null,null,"Прочее",null,null,null,null,null,null,null,null,null,null,null,"07","07"]
["Вологодская область",2008,null,null,"сентябрь",null,null,null,"9",null,null,null,null,null,"Отборный пар, > 13 кг/см2",null,null,null,null,null,null,"9",null,"Тариф на подключение (технологическое присоединение) к централизованной системе водоотведения в индивидуальном порядке","Информация о предложении об установлении платы за подключение к централизованной системе водоотведения (индивидуальной)",null,null,null,null,null,null,null,null,null,null,null,null,null,null,null,null,null,null,null,null,null,null,null,"08","08"]
["Воронежская область",2009,null,null,"октябрь",null,null,null,"10",null,null,null,null,null,"Острый и редуцированный пар",null,null,null,null,null,null,"10",null,"Тариф на подключение (технологическое присоединение) к централизованной системе водоотведения","Информация о предложении об установлении платы за подключение к централизованной системе водоотведения",null,null,null,null,null,null,null,null,null,null,null,null,null,null,null,null,null,null,null,null,null,null,null,"09","09"]
["г.Байконур",2010,null,null,"ноябрь",null,"НДС общий люди\n/kind_of_NDS_tariff_people/","НДС\n/kind_of_NDS_tariff_people/","11",null,null,null,null,null,"Горячая вода в системе централизованного теплоснабжения на отопление",null,null,null,null,null,null,null,null,null,null,null,null,null,null,null,null,null,null,null,null,null,null,null,null,null,null,null,null,null,null,null,null,null,"10","10"]
["г. Москва",2011,null,null,"декабрь",null,"тариф с НДС организаций-плательщиков НДС","тариф организаций не являющихся плательщиками НДС","12",null,null,null,null,null,"Прочее",null,null,null,null,null,null,null,null,null,null,null,null,null,null,null,null,null,null,null,null,null,null,null,null,null,null,null,null,null,null,null,null,null,"11","11"]
["г.Санкт-Петербург",2012,null,null,null,null,"тариф не утверждался","тариф не утверждался","13",null,null,null,null,"Вид деятельности /kind_of_activity/",null,null,null,null,null,null,null,null,null,null,null,null,null,null,null,null,null,null,null,null,null,null,null,null,null,null,null,null,null,null,null,null,null,null,"12","12"]
["г.Севастополь",2013,null,null,null,null,null,null,"14",null,null,null,null,"производство тепловой энергии (мощности) в режиме комбинированной выработки электрической и тепловой энергии источниками тепловой энергии с установленной генерирующей мощностью производства электрической энергии 25 МВт и более",null,null,null,null,null,null,null,null,null,null,null,null,null,null,null,null,null,null,null,null,null,null,null,null,null,null,null,null,null,null,null,null,null,null,"13","13"]
["Еврейская автономная область",2014,null,null,null,null,null,null,"15",null,null,null,null,"производство тепловой энергии (мощности) в режиме комбинированной выработки электрической и тепловой энергии источниками тепловой энергии с установленной генерирующей мощностью производства электрической энергии менее 25 МВт",null,null,null,null,null,null,null,null,null,null,null,null,null,null,null,null,null,null,null,null,null,null,null,null,null,null,null,null,null,null,null,null,null,null,"14","14"]
["Забайкальский край",2015,null,null,null,null,null,null,"16",null,null,null,null,"производство тепловой энергии (мощности) не в режиме комбинированной выработки электрической и тепловой энергии источниками тепловой энергии",null,null,null,null,null,null,null,null,null,null,null,null,null,null,null,null,null,null,null,null,null,null,null,null,null,null,null,null,null,null,null,null,null,null,"15","15"]
["Ивановская область",2016,null,null,null,null,null,null,"17",null,null,null,null,"производство теплоносителя",null,null,null,null,null,null,null,null,null,null,null,null,null,null,null,null,null,null,null,null,null,null,null,null,null,null,null,null,null,null,null,null,null,null,"16","16"]
["Иркутская область",2017,null,null,null,null,null,null,"18",null,null,null,null,"передача тепловой энергии и теплоносителя",null,null,null,null,null,null,null,null,null,null,null,null,null,null,null,null,null,null,null,null,null,null,null,null,null,null,null,null,null,null,null,null,null,null,"17","17"]
["Кабардино-Балкарская республика",2018,null,null,null,null,null,null,"19",null,null,null,null,"сбыт тепловой энергии и теплоносителя",null,null,null,null,null,null,null,null,null,null,null,null,null,null,null,null,null,null,null,null,null,null,null,null,null,null,null,null,null,null,null,null,null,null,"18","18"]
["Калининградская область",2019,null,null,null,null,null,null,"20",null,null,null,null,"подключение к системе теплоснабжения",null,null,null,null,null,null,null,null,null,null,null,null,null,null,null,null,null,null,null,null,null,null,null,null,null,null,null,null,null,null,null,null,null,null,"19","19"]
["Калужская область",2020,null,null,null,null,null,null,null,null,null,null,null,"поддержание резервной тепловой мощности при отсутствии потребления тепловой энергии",null,null,null,null,null,null,null,null,null,null,null,null,null,null,null,null,null,null,null,null,null,null,null,null,null,null,null,null,null,null,null,null,null,null,"20","20"]
["Камчатский край",2021,null,null,null,null,null,null,null,null,null,null,null,null,null,null,null,null,null,null,null,null,null,null,null,null,null,null,null,null,null,null,null,null,null,null,null,null,null,null,null,null,null,null,null,null,null,null,"21","21"]
["Карачаево-Черкесская республика",2022,null,null,null,null,null,null,null,null,null,null,null,null,null,null,null,null,null,null,null,null,null,null,null,null,null,null,null,null,null,null,null,null,null,null,null,null,null,null,null,null,null,null,null,null,null,null,"22","22"]
["Кемеровская область",2023,null,null,null,null,null,null,null,null,null,null,null,null,null,null,null,null,null,null,null,null,null,null,null,null,null,null,null,null,null,null,null,null,null,null,null,null,null,null,null,null,null,null,null,null,null,null,"23","23"]
["Кировская область",2024,null,null,null,null,null,null,null,null,null,null,null,null,null,null,null,null,null,null,null,null,null,null,null,null,null,null,null,null,null,null,null,null,null,null,null,null,null,null,null,null,null,null,null,null,null,null,null,"24"]
["Костромская область",2025,null,null,null,null,null,null,null,null,null,null,null,null,null,null,null,null,null,null,null,null,null,null,null,null,null,null,null,null,null,null,null,null,null,null,null,null,null,null,null,null,null,null,null,null,null,null,null,"25"]
["Краснодарский край",null,null,null,null,null,null,"Текущая дата",null,null,null,null,null,null,null,null,null,null,null,null,null,null,null,null,null,null,null,null,null,null,null,null,null,null,null,null,null,null,null,null,null,null,null,null,null,null,null,null,null,"26"]
["Красноярский край",null,null,"Организация",{"$f":"IF(periodStart = \"\",\"\", periodStart)","v":"01.01.2020"},{"$f":"IF(periodEnd = \"\",\"\", periodEnd)","v":"31.12.2022"},null,"06.05.2020 15:56:38",null,null,null,null,null,null,null,null,null,null,null,null,null,null,null,null,null,null,null,null,null,null,null,null,null,null,null,null,null,null,null,null,null,null,null,null,null,null,null,null,null,"27"]
["Курганская область",null,null,null,null,null,null,null,null,null,null,null,null,null,null,null,null,null,null,null,null,null,null,null,null,null,null,null,null,null,null,null,null,null,null,null,null,null,null,null,null,null,null,null,null,null,null,null,null,"28"]
["Курская область",null,null,null,null,null,null,null,null,null,null,null,null,null,null,null,null,null,null,null,null,null,null,null,null,null,null,null,null,null,null,null,null,null,null,null,null,null,null,null,null,null,null,null,null,null,null,null,null,"29"]
["Ленинградская область",null,null,"Виды деятельности",null,null,null,"https://appsrv.regportal-tariff.ru/procwsxls/",null,null,null,null,null,null,null,null,null,null,null,null,null,null,null,null,null,null,null,null,null,null,null,null,null,null,null,null,null,null,null,null,null,null,null,null,null,null,null,null,null,"30"]
["Липецкая область",null,null,null,null,null,null,null,null,null,null,null,null,null,null,null,null,null,null,null,null,null,null,null,null,null,null,null,null,null,null,null,null,null,null,null,null,null,null,null,null,null,null,null,null,null,null,null,null,"31"]
["Магаданская область",null,null,null,null,null,null,null,null,null,null,null,null,null,null,null,null,null,null,null,null,null,null,null,null,null,null,null,null,null,null,null,null,null,null,null,null,null,null,null,null,null,null,null,null,null,null,null,null,"32"]
["Московская область",null,null,null,null,null,null,null,null,null,null,null,null,null,null,null,null,null,null,null,null,null,null,null,null,null,null,null,null,null,null,null,null,null,null,null,null,null,null,null,null,null,null,null,null,null,null,null,null,"33"]
["Мурманская область",null,null,null,null,null,null,null,null,null,null,null,null,null,null,null,null,null,null,null,null,null,null,null,null,null,null,null,null,null,null,null,null,null,null,null,null,null,null,null,null,null,null,null,null,null,null,null,null,"34"]
["Ненецкий автономный округ",null,null,null,null,null,null,null,null,null,null,null,null,null,null,null,null,null,null,null,null,null,null,null,null,null,null,null,null,null,null,null,null,null,null,null,null,null,null,null,null,null,null,null,null,null,null,null,null,"35"]
["Нижегородская область",null,null,null,null,null,null,null,null,null,null,null,null,null,null,null,null,null,null,null,null,null,null,null,null,null,null,null,null,null,null,null,null,null,null,null,null,null,null,null,null,null,null,null,null,null,null,null,null,"36"]
["Новгородская область",null,null,null,null,null,null,null,null,null,null,null,null,null,null,null,null,null,null,null,null,null,null,null,null,null,null,null,null,null,null,null,null,null,null,null,null,null,null,null,null,null,null,null,null,null,null,null,null,"37"]
["Новосибирская область",null,null,null,null,null,null,null,null,null,null,null,null,null,null,null,null,null,null,null,null,null,null,null,null,null,null,null,null,null,null,null,null,null,null,null,null,null,null,null,null,null,null,null,null,null,null,null,null,"38"]
["Омская область",null,null,null,null,null,null,null,null,null,null,null,null,null,null,null,null,null,null,null,null,null,null,null,null,null,null,null,null,null,null,null,null,null,null,null,null,null,null,null,null,null,null,null,null,null,null,null,null,"39"]
["Оренбургская область",null,null,null,null,null,null,null,null,null,null,null,null,null,null,null,null,null,null,null,null,null,null,null,null,null,null,null,null,null,null,null,null,null,null,null,null,null,null,null,null,null,null,null,null,null,null,null,null,"40"]
["Орловская область",null,null,null,null,null,null,null,null,null,null,null,null,null,null,null,null,null,null,null,null,null,null,null,null,null,null,null,null,null,null,null,null,null,null,null,null,null,null,null,null,null,null,null,null,null,null,null,null,"41"]
["Пензенская область",null,null,null,null,null,null,null,null,null,null,null,null,null,null,null,null,null,null,null,null,null,null,null,null,null,null,null,null,null,null,null,null,null,null,null,null,null,null,null,null,null,null,null,null,null,null,null,null,"42"]
["Пермский край",null,null,null,null,null,null,null,null,null,null,null,null,null,null,null,null,null,null,null,null,null,null,null,null,null,null,null,null,null,null,null,null,null,null,null,null,null,null,null,null,null,null,null,null,null,null,null,null,"43"]
["Приморский край",null,null,null,null,null,null,null,null,null,null,null,null,null,null,null,null,null,null,null,null,null,null,null,null,null,null,null,null,null,null,null,null,null,null,null,null,null,null,null,null,null,null,null,null,null,null,null,null,"44"]
["Псковская область",null,null,null,null,null,null,null,null,null,null,null,null,null,null,null,null,null,null,null,null,null,null,null,null,null,null,null,null,null,null,null,null,null,null,null,null,null,null,null,null,null,null,null,null,null,null,null,null,"45"]
["Республика Адыгея",null,null,null,null,null,null,null,null,null,null,null,null,null,null,null,null,null,null,null,null,null,null,null,null,null,null,null,null,null,null,null,null,null,null,null,null,null,null,null,null,null,null,null,null,null,null,null,null,"46"]
["Республика Алтай",null,null,null,null,null,null,null,null,null,null,null,null,null,null,null,null,null,null,null,null,null,null,null,null,null,null,null,null,null,null,null,null,null,null,null,null,null,null,null,null,null,null,null,null,null,null,null,null,"47"]
["Республика Башкортостан",null,null,null,null,null,null,null,null,null,null,null,null,null,null,null,null,null,null,null,null,null,null,null,null,null,null,null,null,null,null,null,null,null,null,null,null,null,null,null,null,null,null,null,null,null,null,null,null,"48"]
["Республика Бурятия",null,null,null,null,null,null,null,null,null,null,null,null,null,null,null,null,null,null,null,null,null,null,null,null,null,null,null,null,null,null,null,null,null,null,null,null,null,null,null,null,null,null,null,null,null,null,null,null,"49"]
["Республика Дагестан",null,null,null,null,null,null,null,null,null,null,null,null,null,null,null,null,null,null,null,null,null,null,null,null,null,null,null,null,null,null,null,null,null,null,null,null,null,null,null,null,null,null,null,null,null,null,null,null,"50"]
["Республика Ингушетия",null,null,null,null,null,null,null,null,null,null,null,null,null,null,null,null,null,null,null,null,null,null,null,null,null,null,null,null,null,null,null,null,null,null,null,null,null,null,null,null,null,null,null,null,null,null,null,null,"51"]
["Республика Калмыкия",null,null,null,null,null,null,null,null,null,null,null,null,null,null,null,null,null,null,null,null,null,null,null,null,null,null,null,null,null,null,null,null,null,null,null,null,null,null,null,null,null,null,null,null,null,null,null,null,"52"]
["Республика Карелия",null,null,null,null,null,null,null,null,null,null,null,null,null,null,null,null,null,null,null,null,null,null,null,null,null,null,null,null,null,null,null,null,null,null,null,null,null,null,null,null,null,null,null,null,null,null,null,null,"53"]
["Республика Коми",null,null,null,null,null,null,null,null,null,null,null,null,null,null,null,null,null,null,null,null,null,null,null,null,null,null,null,null,null,null,null,null,null,null,null,null,null,null,null,null,null,null,null,null,null,null,null,null,"54"]
["Республика Крым",null,null,null,null,null,null,null,null,null,null,null,null,null,null,null,null,null,null,null,null,null,null,null,null,null,null,null,null,null,null,null,null,null,null,null,null,null,null,null,null,null,null,null,null,null,null,null,null,"55"]
["Республика Марий Эл",null,null,null,null,null,null,null,null,null,null,null,null,null,null,null,null,null,null,null,null,null,null,null,null,null,null,null,null,null,null,null,null,null,null,null,null,null,null,null,null,null,null,null,null,null,null,null,null,"56"]
["Республика Мордовия",null,null,null,null,null,null,null,null,null,null,null,null,null,null,null,null,null,null,null,null,null,null,null,null,null,null,null,null,null,null,null,null,null,null,null,null,null,null,null,null,null,null,null,null,null,null,null,null,"57"]
["Республика Саха (Якутия)",null,null,null,null,null,null,null,null,null,null,null,null,null,null,null,null,null,null,null,null,null,null,null,null,null,null,null,null,null,null,null,null,null,null,null,null,null,null,null,null,null,null,null,null,null,null,null,null,"58"]
["Республика Северная Осетия-Алания",null,null,null,null,null,null,null,null,null,null,null,null,null,null,null,null,null,null,null,null,null,null,null,null,null,null,null,null,null,null,null,null,null,null,null,null,null,null,null,null,null,null,null,null,null,null,null,null,"59"]
["Республика Татарстан"]
["Республика Тыва"]
["Республика Хакасия"]
["Ростовская область"]
["Рязанская область"]
["Самарская область"]
["Саратовская область"]
["Сахалинская область"]
["Свердловская область"]
["Смоленская область"]
["Ставропольский край"]
["Тамбовская область"]
["Тверская область"]
["Томская область"]
["Тульская область"]
["Тюменская область"]
["Удмуртская республика"]
["Ульяновская область"]
["Хабаровский край"]
["Ханты-Мансийский автономный округ"]
["Челябинская область"]
["Чеченская республика"]
["Чувашская республика"]
["Чукотский автономный округ"]
["Ямало-Ненецкий автономный округ"]
["Ярославская область"]

{"sheet":"et_union_hor","index":51,"n_rows":300,"n_cols":41,"rows_kept":300,"cut":false,"hidden":true,"merged":[[183,37,188,37],[153,20,154,20],[135,9,138,9],[136,19,137,19],[274,5,275,5],[274,11,275,11],[65,13,66,13],[180,13,180,36],[63,8,68,8],[79,8,84,8],[81,18,82,18],[91,14,91,26],[99,23,100,23],[80,9,83,9],[96,8,102,8],[76,14,76,21],[81,22,83,22],[97,22,98,22],[99,25,100,25],[99,22,100,22],[99,24,100,24],[97,9,101,9],[97,25,98,25],[81,19,82,19],[199,23,200,23],[199,22,200,22],[183,24,184,24],[199,21,200,21],[199,16,202,16],[199,20,201,20],[199,19,201,19],[199,17,201,17],[199,18,201,18],[183,23,184,23],[183,17,185,17],[183,19,185,19],[183,22,184,22],[8,3,11,3],[13,3,16,3],[33,18,34,18],[8,14,9,14],[24,17,25,19],[8,8,10,8],[13,7,15,7],[13,9,15,9],[151,8,156,8],[134,8,139,8],[117,8,122,8],[13,10,15,10],[49,19,50,19],[118,9,121,9],[152,9,155,9],[13,12,14,12],[13,14,14,14],[94,14,94,26],[81,17,82,17],[13,11,14,11],[24,14,24,16],[135,14,135,21],[92,14,92,26],[26,18,26,19],[8,11,9,11],[64,9,67,9],[25,14,26,14],[27,14,27,20],[33,13,34,13],[13,13,14,13],[8,4,11,4],[8,13,9,13],[8,10,10,10],[8,9,10,9],[8,5,11,5],[13,4,16,4],[13,8,15,8],[8,12,9,12],[13,5,16,5],[8,6,11,6],[31,8,36,8],[47,8,52,8],[8,7,10,7],[33,20,34,20],[24,20,26,20],[65,18,66,18],[13,6,16,6],[32,4,35,4],[24,22,26,22],[49,18,50,18],[33,17,34,17],[33,19,34,19],[48,9,51,9],[49,17,50,17],[32,9,35,9],[25,15,25,16],[33,22,35,22],[28,14,28,21],[29,14,29,21],[30,14,30,21],[31,14,31,21],[32,14,32,21],[49,13,50,13],[44,14,44,28],[45,14,45,28],[46,14,46,28],[47,14,47,28],[48,14,48,28],[49,29,51,29],[49,20,50,20],[97,23,98,23],[63,14,63,21],[64,14,64,21],[65,22,67,22],[65,19,66,19],[60,14,60,21],[61,14,61,21],[62,14,62,21],[81,20,82,20],[77,14,77,21],[78,14,78,21],[49,24,50,24],[49,25,50,25],[49,26,50,26],[49,27,50,27],[76,0,87,0],[77,1,86,1],[78,2,85,2],[28,0,39,0],[29,1,38,1],[30,2,37,2],[31,3,36,3],[80,4,83,4],[63,3,68,3],[44,0,55,0],[48,4,51,4],[45,1,54,1],[46,2,53,2],[47,3,52,3],[60,0,71,0],[79,3,84,3],[61,1,70,1],[182,2,188,2],[167,2,173,2],[64,4,67,4],[248,3,249,3],[248,4,249,4],[183,3,187,3],[168,38,173,38],[168,25,169,25],[168,24,169,24],[168,20,170,20],[136,20,137,20],[168,18,170,18],[182,13,182,36],[168,16,171,16],[168,22,169,22],[181,13,181,36],[168,15,171,15],[167,13,167,37],[168,23,169,23],[136,17,137,17],[153,17,154,17],[153,18,154,18],[62,2,69,2],[114,14,114,21],[290,0,298,0],[294,2,296,2],[295,8,296,8],[168,13,172,13],[181,1,189,1],[253,7,254,7],[166,1,174,1],[183,8,187,8],[183,9,187,9],[183,13,186,13],[168,3,172,3],[180,0,190,0],[165,0,175,0],[293,1,297,1],[248,2,249,2],[253,2,254,2],[183,10,187,10],[168,10,172,10],[168,8,172,8],[168,9,172,9],[268,3,269,3],[274,3,275,3],[253,5,254,5],[253,6,254,6],[274,4,275,4],[268,4,269,4],[268,5,269,5],[268,11,269,11],[183,15,186,15],[148,14,148,21],[183,16,186,16],[168,14,171,14],[183,11,187,11],[183,12,187,12],[183,21,184,21],[168,19,170,19],[151,14,151,21],[153,19,154,19],[168,21,170,21],[183,20,185,20],[183,14,186,14],[183,18,185,18],[168,12,172,12],[168,17,171,17],[168,11,172,11],[165,13,165,37],[166,13,166,37],[199,24,200,24],[115,14,115,21],[65,20,66,20],[116,14,116,21],[152,14,152,21],[119,19,120,19],[118,14,118,21],[149,14,149,21],[136,18,137,18],[132,14,132,21],[119,20,120,20],[130,14,130,21],[150,14,150,21],[119,17,120,17],[131,14,131,21],[133,14,133,21],[93,14,93,26],[79,14,79,21],[80,14,80,21],[119,18,120,18],[65,17,66,17],[147,14,147,21],[96,14,96,26],[97,24,98,24],[113,14,113,21]]}
[]
["et_Comm"]
[]
[]
[]
[]
["et_List02(_1,_2,_3)"]
[]
[null,null,null,1,null,null,"нет",null,1,null,"нет",null,"1",null,"нет",null,"1"]
[null,null,null,null,null,null,null,null,null,null,null,null,null,null,null,null,null,"Добавить ЦС ВО для дифференциации"]
[null,null,null,null,null,null,null,null,null,null,null,null,null,"Добавить территорию для дифференциации"]
[]
[]
[null,null,null,null,null,null,null,null,1,null,"нет",null,"1",null,"нет",null,"1"]
[null,null,null,null,null,null,null,null,null,null,null,null,null,null,null,null,null,"Добавить ЦС ВО для дифференциации"]
[null,null,null,null,null,null,null,null,null,null,null,null,null,"Добавить территорию для дифференциации"]
[]
[]
["et_List06(_1,_2,_3)",null,"1"]
[]
[]
[]
[]
[]
[null,null,null,null,null,null,null,null,null,null,null,null,null,null,"Величина установленного тарифа",null,null,"Срок действия цены (тарифа) на тепловую энергию (мощность)",null,null,"Наличие других периодов действия тарифа"]
[null,null,null,null,null,null,null,null,null,null,null,null,null,null,"Одноставочный тариф, руб./Гкал","Двухставочный тариф"]
[null,null,null,null,null,null,null,null,null,null,null,null,null,null,null,"ставка за тепловую  энергию, руб./Гкал","ставка за содержание тепловой мощности, тыс.руб./Гкал/ч/мес","дата начала","дата окончания"]
[null,null,null,null,null,null,null,null,null,null,null,null,"7"]
[1,null,null,null,null,null,null,null,null,null,null,{"$f":"mergeValue(A29)","v":1},"Наименование тарифа",null,null,null,null,null,null,null,null,null,"Указывается наименование тарифа в случае подачи предложения по нескольким тарифам.\nВ случае наличия нескольких тарифов информация по ним указывается в отдельных строках."]
[null,1,null,null,null,null,null,null,null,null,null,{"$f":"mergeValue(A30) &\".\"& mergeValue(B30)","v":"1.1"},"Территория действия тарифа",null,null,null,null,null,null,null,null,null,"Указывается наименование территории действия тарифа при наличии дифференциации тарифа по территориальному признаку.\nВ случае дифференциации тарифов по территориальному признаку информация по ним указывается в отдельных строках."]
[null,null,1,null,null,null,null,null,null,null,null,{"$f":"mergeValue(A31) &\".\"& mergeValue(B31)&\".\"& mergeValue(C31)","v":"1.1.1"},"Наименование централизованной системы водоотведения",null,null,null,null,null,null,null,null,null,"Указывается наименование централизованной системы водоотведения при наличии дифференциации тарифа по централизованным системам водоотведения.\nВ случае дифференциации тарифов по централизованным системам водоотведения информация по ним указывается в отдельных строках."]
[null,null,null,1,null,null,null,null,null,null,null,{"$f":"mergeValue(A32) &\".\"& mergeValue(B32)&\".\"& mergeValue(C32)&\".\"& mergeValue(D32)","v":"1.1.1.1"},"Наименование признака дифференциации",null,null,null,null,null,null,null,null,null,"Указывается наименование дополнительного признака дифференциации (при наличии).\nДифференциация тарифа осуществляется в соответствии с законодательством в сфере водоснабжении и водоотведения.\nВ случае дифференциации тарифов по дополнительным признакам информация по ним указывается в отдельных строках."]
[null,null,null,null,1,null,null,null,null,null,null,{"$f":"mergeValue(A33) &\".\"& mergeValue(B33)&\".\"& mergeValue(C33)&\".\"& mergeValue(D33)&\".\"& mergeValue(E33)","v":"1.1.1.1.1"},"Группа потребителей",null,null,null,null,null,null,null,null,null,"Указывается группа потребителей при наличии дифференциации тарифа по группам потребителей.\nЗначение выбирается из перечня: Организации-перепродавцы; Бюджетные организации; Население; Прочие; Без дифференциации.\nВ случае дифференциации тарифов группам потребителей информация по ним указывается в отдельных строках.",null,{"$f":"strCheckUnique(Z33:Z36)","v":""}]
[null,null,null,null,null,1,null,null,null,null,null,{"$f":"mergeValue(A34) &\".\"& mergeValue(B34)&\".\"& mergeValue(C34)&\".\"& mergeValue(D34)&\".\"& mergeValue(E34)&\".\"& mergeValue(F34)","v":"1.1.1.1.1.1"},null,null,null,null,null,null,"да",null,"нет",null,"В колонке «Параметр дифференциации тарифов» указывается значение дополнительного признака дифференциации.\nПри подаче предложения на двухставочный тариф колонка «Одноставочный тариф» не заполняется.\nПри подаче предложения на одноставочный тариф колонки в блоке «Двухставочный тариф» не заполняются.\nДаты начала и окончания действия тарифов указываются в виде «ДД.ММ.ГГГГ».\nВ случае отсутствия даты окончания действия тарифа в колонке «Дата окончания» указывается «Нет».\nВ случае наличия нескольких значений признака дифференциации тарифов информация по ним указывается в отдельных строках.\nВ случае дифференциации тарифов по периодам действия тарифа информация по ним указывается в отдельных колонках.",{"$f":"strCheckDate(O35:V35)","v":""},null,{"$f":"IF(M34=\"\",\"\",M34 )","v":""}]
[null,null,null,null,null,null,null,null,null,null,null,null,null,null,null,null,{"$f":"R34 & \"-\" & T34","v":"-"}]
[null,null,null,null,null,null,null,null,null,null,null,null,"Добавить значение признака дифференциации"]
[null,null,null,null,null,null,null,null,null,null,null,null,"Добавить группу потребителей"]
[null,null,null,null,null,null,null,null,null,null,null,null,"Добавить наименование признака дифференциации"]
[null,null,null,null,null,null,null,null,null,null,null,null,"Добавить наименование системы водоотведения"]
[null,null,null,null,null,null,null,null,null,null,null,null,"Добавить территорию действия тарифа"]
[null,null,null,null,null,null,null,null,null,null,null,null,"Добавить наименование тарифа"]
[]
["et_List06(_1,_2,_3)",null,"2"]
[]
[1,null,null,null,null,null,null,null,null,null,null,{"$f":"mergeValue(A45)","v":1},"Наименование тарифа",null,null,null,null,null,null,null,null,null,null,null,null,null,null,null,null,"Указывается наименование тарифа в случае подачи предложения по нескольким тарифам.\nВ случае наличия нескольких тарифов информация по ним указывается в отдельных строках."]
[null,1,null,null,null,null,null,null,null,null,null,{"$f":"mergeValue(A46) &\".\"& mergeValue(B46)","v":"1.1"},"Территория действия тарифа",null,null,null,null,null,null,null,null,null,null,null,null,null,null,null,null,"Указывается наименование территории действия тарифа при наличии дифференциации тарифа по территориальному признаку.\nВ случае дифференциации тарифов по территориальному признаку информация по ним указывается в отдельных строках."]
[null,null,1,null,null,null,null,null,null,null,null,{"$f":"mergeValue(A47) &\".\"& mergeValue(B47)&\".\"& mergeValue(C47)","v":"1.1.1"},"Наименование централизованной системы водоотведения",null,null,null,null,null,null,null,null,null,null,null,null,null,null,null,null,"Указывается наименование централизованной системы водоотведения при наличии дифференциации тарифа по централизованным системам водоотведения.\nВ случае дифференциации тарифов по централизованным системам водоотведения информация по ним указывается в отдельных строках."]
[null,null,null,1,null,null,null,null,null,null,null,{"$f":"mergeValue(A48) &\".\"& mergeValue(B48)&\".\"& mergeValue(C48)&\".\"& mergeValue(D48)","v":"1.1.1.1"},"Наименование признака дифференциации",null,null,null,null,null,null,null,null,null,null,null,null,null,null,null,null,"Указывается наименование дополнительного признака дифференциации (при наличии).\nДифференциация тарифа осуществляется в соответствии с законодательством в сфере водоснабжении и водоотведения.\nВ случае дифференциации тарифов по дополнительным признакам информация по ним указывается в отдельных строках."]
[null,null,null,null,1,null,null,null,null,null,null,{"$f":"mergeValue(A49) &\".\"& mergeValue(B49)&\".\"& mergeValue(C49)&\".\"& mergeValue(D49)&\".\"& mergeValue(E49)","v":"1.1.1.1.1"},"Группа потребителей",null,null,null,null,null,null,null,null,null,null,null,null,null,null,null,null,"Указывается группа потребителей при наличии дифференциации тарифа по группам потребителей.\nЗначение выбирается из перечня: Организации-перепродавцы; Бюджетные организации; Население; Прочие; Без дифференциации.\nВ случае дифференциации тарифов группам потребителей информация по ним указывается в отдельных строках.",null,{"$f":"strCheckUnique(AG49:AG52)","v":""}]
[null,null,null,null,null,1,null,null,null,null,null,{"$f":"mergeValue(A50) &\".\"& mergeValue(B50)&\".\"& mergeValue(C50)&\".\"& mergeValue(D50)&\".\"& mergeValue(E50)&\".\"& mergeValue(F50)","v":"1.1.1.1.1.1"},null,null,null,null,null,null,"да",null,"да",null,null,null,null,"да",null,"нет",null,"В колонке «Параметр дифференциации тарифов» указывается значение дополнительного признака дифференциации.\nПри подаче предложения на двухставочный тариф колонка «Одноставочный тариф» не заполняется.\nПри подаче предложения на одноставочный тариф колонки в блоке «Двухставочный тариф» не заполняются.\nДаты начала и окончания действия тарифов указываются в виде «ДД.ММ.ГГГГ».\nВ случае отсутствия даты окончания действия тарифа в колонке «Дата окончания» указывается «Нет».\nВ случае наличия нескольких значений признака дифференциации тарифов информация по ним указывается в отдельных строках.\nВ случае дифференциации тарифов по периодам действия тарифа информация по ним указывается в отдельных колонках.",{"$f":"strCheckDate(O51:AC51)","v":""},null,{"$f":"IF(M50=\"\",\"\",M50 )","v":""}]
[null,null,null,null,null,null,null,null,null,null,null,null,null,null,null,null,{"$f":"R50 & \"-\" & T50","v":"-"},null,null,null,null,null,null,{"$f":"Y50 & \"-\" & AA50","v":"-"}]
[null,null,null,null,null,null,null,null,null,null,null,null,"Добавить значение признака дифференциации"]
[null,null,null,null,null,null,null,null,null,null,null,null,"Добавить группу потребителей"]
[null,null,null,null,null,null,null,null,null,null,null,null,"Добавить наименование признака дифференциации"]
[null,null,null,null,null,null,null,null,null,null,null,null,"Добавить наименование системы водоотведения"]
[null,null,null,null,null,null,null,null,null,null,null,null,"Добавить территорию действия тарифа"]
[null,null,null,null,null,null,null,null,null,null,null,null,"Добавить наименование тарифа"]
[]
["et_List06(_1,_2,_3)",null,"3"]
[]
[1,null,null,null,null,null,null,null,null,null,null,{"$f":"mergeValue(A61)","v":1},"Наименование тарифа",null,null,null,null,null,null,null,null,null,"Указывается наименование тарифа в случае подачи предложения по нескольким тарифам.\nВ случае наличия нескольких тарифов информация по ним указывается в отдельных строках."]
[null,1,null,null,null,null,null,null,null,null,null,{"$f":"mergeValue(A62) &\".\"& mergeValue(B62)","v":"1.1"},"Территория действия тарифа",null,null,null,null,null,null,null,null,null,"Указывается наименование территории действия тарифа при наличии дифференциации тарифа по территориальному признаку.\nВ случае дифференциации тарифов по территориальному признаку информация по ним указывается в отдельных строках."]
[null,null,1,null,null,null,null,null,null,null,null,{"$f":"mergeValue(A63) &\".\"& mergeValue(B63)&\".\"& mergeValue(C63)","v":"1.1.1"},"Наименование централизованной системы водоотведения",null,null,null,null,null,null,null,null,null,"Указывается наименование централизованной системы водоотведения при наличии дифференциации тарифа по централизованным системам водоотведения.\nВ случае дифференциации тарифов по централизованным системам водоотведения информация по ним указывается в отдельных строках."]
[null,null,null,1,null,null,null,null,null,null,null,{"$f":"mergeValue(A64) &\".\"& mergeValue(B64)&\".\"& mergeValue(C64)&\".\"& mergeValue(D64)","v":"1.1.1.1"},"Наименование признака дифференциации",null,null,null,null,null,null,null,null,null,"Указывается наименование дополнительного признака дифференциации (при наличии).\nДифференциация тарифа осуществляется в соответствии с законодательством в сфере водоснабжении и водоотведении.\nВ случае дифференциации тарифов по дополнительным признакам информация по ним указывается в отдельных строках."]
[null,null,null,null,1,null,null,null,null,null,null,{"$f":"mergeValue(A65) &\".\"& mergeValue(B65)&\".\"& mergeValue(C65)&\".\"& mergeValue(D65)&\".\"& mergeValue(E65)","v":"1.1.1.1.1"},"Группа потребителей",null,null,null,null,null,null,null,null,null,"Указывается группа потребителей при наличии дифференциации тарифа по группам потребителей.\nЗначение выбирается из перечня: Организации-перепродавцы; Бюджетные организации; Население; Прочие; Без дифференциации.\nВ случае дифференциации тарифов группам потребителей информация по ним указывается в отдельных строках.",null,{"$f":"strCheckUnique(Z65:Z68)","v":""}]
[null,null,null,null,null,1,null,null,null,null,null,{"$f":"mergeValue(A66) &\".\"& mergeValue(B66)&\".\"& mergeValue(C66)&\".\"& mergeValue(D66)&\".\"& mergeValue(E66)&\".\"& mergeValue(F66)","v":"1.1.1.1.1.1"},null,null,null,null,null,null,"да",null,"нет",null,"В колонке «Параметр дифференциации тарифов» указывается значение дополнительного признака дифференциации.\nПри подаче предложения на двухставочный тариф колонка «Одноставочный тариф» не заполняется.\nПри подаче предложения на одноставочный тариф колонки в блоке «Двухставочный тариф» не заполняются.\nДаты начала и окончания действия тарифов указываются в виде «ДД.ММ.ГГГГ».\nВ случае отсутствия даты окончания действия тарифа в колонке «Дата окончания» указывается «Нет».\nВ случае наличия нескольких значений признака дифференциации тарифов информация по ним указывается в отдельных строках.\nВ случае дифференциации тарифов по периодам действия тарифа информация по ним указывается в отдельных колонках.",{"$f":"strCheckDate(O67:V67)","v":""},null,{"$f":"IF(M66=\"\",\"\",M66 )","v":""}]
[null,null,null,null,null,null,null,null,null,null,null,null,null,null,null,null,{"$f":"R66 & \"-\" & T66","v":"-"}]
[null,null,null,null,null,null,null,null,null,null,null,null,"Добавить значение признака дифференциации"]
[null,null,null,null,null,null,null,null,null,null,null,null,"Добавить группу потребителей"]
[null,null,null,null,null,null,null,null,null,null,null,null,"Добавить наименование признака дифференциации"]
[null,null,null,null,null,null,null,null,null,null,null,null,"Добавить наименование системы водоотведения"]
[null,null,null,null,null,null,null,null,null,null,null,null,"Добавить территорию действия тарифа"]
[null,null,null,null,null,null,null,null,null,null,null,null,"Добавить наименование тарифа"]
[]
["et_List06(_1,_2,_3)",null,"4"]
[]
[1,null,null,null,null,null,null,null,null,null,null,{"$f":"mergeValue(A77)","v":1},"Наименование тарифа",null,null,null,null,null,null,null,null,null,"Указывается наименование тарифа в случае подачи предложения по нескольким тарифам.\nВ случае наличия нескольких тарифов информация по ним указывается в отдельных строках."]
[null,1,null,null,null,null,null,null,null,null,null,{"$f":"mergeValue(A78) &\".\"& mergeValue(B78)","v":"1.1"},"Территория действия тарифа",null,null,null,null,null,null,null,null,null,"Указывается наименование территории действия тарифа при наличии дифференциации тарифа по территориальному признаку.\nВ случае дифференциации тарифов по территориальному признаку информация по ним указывается в отдельных строках."]
[null,null,1,null,null,null,null,null,null,null,null,{"$f":"mergeValue(A79) &\".\"& mergeValue(B79)&\".\"& mergeValue(C79)","v":"1.1.1"},"Наименование централизованной системы водоотведения",null,null,null,null,null,null,null,null,null,"Указывается наименование централизованной системы водоотведения при наличии дифференциации тарифа по централизованным системам водоотведения.\nВ случае дифференциации тарифов по централизованным системам водоотведения информация по ним указывается в отдельных строках."]
[null,null,null,1,null,null,null,null,null,null,null,{"$f":"mergeValue(A80) &\".\"& mergeValue(B80)&\".\"& mergeValue(C80)&\".\"& mergeValue(D80)","v":"1.1.1.1"},"Наименование признака дифференциации",null,null,null,null,null,null,null,null,null,"Указывается наименование дополнительного признака дифференциации (при наличии).\nДифференциация тарифа осуществляется в соответствии с законодательством в сфере водоснабжении и водоотведении.\nВ случае дифференциации тарифов по дополнительным признакам информация по ним указывается в отдельных строках."]
[null,null,null,null,1,null,null,null,null,null,null,{"$f":"mergeValue(A81) &\".\"& mergeValue(B81)&\".\"& mergeValue(C81)&\".\"& mergeValue(D81)&\".\"& mergeValue(E81)","v":"1.1.1.1.1"},"Группа потребителей",null,null,null,null,null,null,null,null,null,"Указывается группа потребителей при наличии дифференциации тарифа по группам потребителей.\nЗначение выбирается из перечня: Организации-перепродавцы; Бюджетные организации; Население; Прочие; Без дифференциации.\nВ случае дифференциации тарифов группам потребителей информация по ним указывается в отдельных строках.",null,{"$f":"strCheckUnique(Z81:Z84)","v":""}]
[null,null,null,null,null,1,null,null,null,null,null,{"$f":"mergeValue(A82) &\".\"& mergeValue(B82)&\".\"& mergeValue(C82)&\".\"& mergeValue(D82)&\".\"& mergeValue(E82)&\".\"& mergeValue(F82)","v":"1.1.1.1.1.1"},null,null,null,null,null,null,"да",null,"нет",null,"В колонке «Параметр дифференциации тарифов» указывается значение дополнительного признака дифференциации.\nПри подаче предложения на двухставочный тариф колонка «Одноставочный тариф» не заполняется.\nПри подаче предложения на одноставочный тариф колонки в блоке «Двухставочный тариф» не заполняются.\nДаты начала и окончания действия тарифов указываются в виде «ДД.ММ.ГГГГ».\nВ случае отсутствия даты окончания действия тарифа в колонке «Дата окончания» указывается «Нет».\nВ случае наличия нескольких значений признака дифференциации тарифов информация по ним указывается в отдельных строках.\nВ случае дифференциации тарифов по периодам действия тарифа информация по ним указывается в отдельных колонках.",{"$f":"strCheckDate(O83:V83)","v":""},null,{"$f":"IF(M82=\"\",\"\",M82 )","v":""}]
[null,null,null,null,null,null,null,null,null,null,null,null,null,null,null,null,{"$f":"R82 & \"-\" & T82","v":"-"}]
[null,null,null,null,null,null,null,null,null,null,null,null,"Добавить значение признака дифференциации"]
[null,null,null,null,null,null,null,null,null,null,null,null,"Добавить группу потребителей"]
[null,null,null,null,null,null,null,null,null,null,null,null,"Добавить наименование признака дифференциации"]
[null,null,null,null,null,null,null,null,null,null,null,null,"Добавить наименование системы водоотведения"]
[null,null,null,null,null,null,null,null,null,null,null,null,"Добавить территорию действия тарифа"]
[null,null,null,null,null,null,null,null,null,null,null,null,"Добавить наименование тарифа"]
[null,null,null,null,null,null,"et_List06(_1,_2,_3)",null,"5"]
[]
[null,null,null,null,null,null,null,null,null,null,null,"1","Наименование тарифа"]
[null,null,null,null,null,null,null,null,null,null,null,"1.1","Территория действия тарифа"]
[null,null,null,null,null,null,null,null,null,null,null,"1.1.1","Наименование системы теплоснабжения "]
[null,null,null,null,null,null,null,null,null,null,null,"1.1.1.1","Источник тепловой энергии  "]
[]
[null,null,null,null,null,null,null,null,null,null,null,"1.1.1.1.1.1","Группа потребителей",null,null,null,null,null,null,null,null,null,null,null,null,null,null,null,null,{"$f":"strCheckUnique(AE97:AE103)","v":""}]
[null,null,null,null,null,null,null,1,null,null,null,null,null,null,null,null,null,null,null,null,null,{"$f":"W98 & \"-\" & Y98","v":"-"},null,"да",null,"нет",null,null,{"$f":"strCheckDate(O98:AA98)","v":""},null,{"$f":"IF(M98=\"\",\"\",M98 )","v":""}]
[null,null,null,null,null,null,null,null,null,null,null,null,null,null,null,null,null,null,null,null,null,null,null,null,null,null,null,null,null,null,null,{"$f":"OFFSET(AF99,-1,0)","v":0}]
[null,null,null,null,null,null,null,null,null,null,null,null,null,null,null,null,null,null,null,null,null,{"$f":"W100 & \"-\" & Y100","v":"-"},null,"да",null,"нет",null,null,{"$f":"strCheckDate(O100:AA100)","v":""}]
[null,null,null,null,null,null,null,null,null,null,null,null,null,null,null,null,null,null,null,null,null,null,null,null,null,null,null,null,null,null,null,{"$f":"OFFSET(AF101,-1,0)","v":0}]
[null,null,null,null,null,null,null,null,null,null,null,null,"Добавить поставщика"]
[null,null,null,null,null,null,null,null,null,null,null,null,"Добавить вид теплоносителя (параметры теплоносителя)"]
[null,null,null,null,null,null,null,null,null,null,null,null,"Добавить группу потребителей"]
[]
[null,null,null,null,null,null,null,null,null,null,null,null,"Добавить источник тепловой энергии"]
[null,null,null,null,null,null,null,null,null,null,null,null,"Добавить наименование системы теплоснабжения"]
[null,null,null,null,null,null,null,null,null,null,null,null,"Добавить территорию действия тарифа"]
[null,null,null,null,null,null,null,null,null,null,null,null,null,null,null,null,null,null,null,null,null,null,null,"да",null,"нет"]
[]
[]
[null,null,null,null,null,null,"et_List06(_1,_2,_3)",null,"6"]
[]
[null,null,null,null,null,null,null,null,null,null,null,"1","Наименование тарифа"]
[null,null,null,null,null,null,null,null,null,null,null,"1.1","Территория действия тарифа"]
[null,null,null,null,null,null,null,null,null,null,null,"1.1.1","Наименование системы теплоснабжения "]
[null,null,null,null,null,null,null,null,null,null,null,"1.1.1.1","Источник тепловой энергии  "]
[]
[null,null,null,null,null,null,null,null,null,null,null,"1.1.1.1.1.1","Группа потребителей",null,null,null,null,null,null,null,null,null,null,null,{"$f":"strCheckUnique(Z119:Z122)","v":""}]
[null,null,null,null,null,null,null,1,null,null,null,null,null,null,null,null,null,null,"да",null,"нет",null,null,{"$f":"strCheckDate(O121:V121)","v":""},null,{"$f":"IF(M120=\"\",\"\",M120 )","v":""}]
[null,null,null,null,null,null,null,null,null,null,null,null,null,null,null,null,{"$f":"R120 & \"-\" & T120","v":"-"}]
[null,null,null,null,null,null,null,null,null,null,null,null,"Добавить вид теплоносителя (параметры теплоносителя)"]
[null,null,null,null,null,null,null,null,null,null,null,null,"Добавить группу потребителей"]
[]
[null,null,null,null,null,null,null,null,null,null,null,null,"Добавить источник тепловой энергии"]
[null,null,null,null,null,null,null,null,null,null,null,null,"Добавить наименование системы теплоснабжения"]
[null,null,null,null,null,null,null,null,null,null,null,null,"Добавить территорию действия тарифа"]
[]
[null,null,null,null,null,null,"et_List06(_1,_2,_3)",null,"7"]
[]
[null,null,null,null,null,null,null,null,null,null,null,"1","Наименование тарифа"]
[null,null,null,null,null,null,null,null,null,null,null,"1.1","Территория действия тарифа"]
[null,null,null,null,null,null,null,null,null,null,null,"1.1.1","Наименование системы теплоснабжения "]
[null,null,null,null,null,null,null,null,null,null,null,"1.1.1.1","Источник тепловой энергии  "]
[]
[null,null,null,null,null,null,null,null,null,null,null,"1.1.1.1.1.1","Группа потребителей",null,null,null,null,null,null,null,null,null,null,null,{"$f":"strCheckUnique(Z136:Z139)","v":""}]
[null,null,null,null,null,null,null,1,null,null,null,null,null,null,null,null,null,null,"да",null,"нет",null,null,{"$f":"strCheckDate(O138:V138)","v":""},null,{"$f":"IF(M137=\"\",\"\",M137 )","v":""}]
[null,null,null,null,null,null,null,null,null,null,null,null,null,null,null,null,{"$f":"R137 & \"-\" & T137","v":"-"}]
[null,null,null,null,null,null,null,null,null,null,null,null,"Добавить вид теплоносителя (параметры теплоносителя)"]
[null,null,null,null,null,null,null,null,null,null,null,null,"Добавить группу потребителей"]
[]
[null,null,null,null,null,null,null,null,null,null,null,null,"Добавить источник тепловой энергии"]
[null,null,null,null,null,null,null,null,null,null,null,null,"Добавить наименование системы теплоснабжения"]
[null,null,null,null,null,null,null,null,null,null,null,null,"Добавить территорию действия тарифа"]
[]
[null,null,null,null,null,null,"et_List06(_1,_2,_3)",null,"8"]
[]
[null,null,null,null,null,null,null,null,null,null,null,"1","Наименование тарифа"]
[null,null,null,null,null,null,null,null,null,null,null,"1.1","Территория действия тарифа"]
[null,null,null,null,null,null,null,null,null,null,null,"1.1.1","Наименование системы теплоснабжения "]
[null,null,null,null,null,null,null,null,null,null,null,"1.1.1.1","Источник тепловой энергии  "]
[null,null,null,null,null,null,null,null,null,null,null,"1.1.1.1.1","Схема подключения теплопотребляющей установки к коллектору источника тепловой энергии"]
[null,null,null,null,null,null,null,null,null,null,null,"1.1.1.1.1.1","Группа потребителей",null,null,null,null,null,null,null,null,null,null,null,{"$f":"strCheckUnique(Z153:Z156)","v":""}]
[null,null,null,null,null,null,null,1,null,null,null,null,null,null,null,null,null,null,"да",null,"нет",null,null,{"$f":"strCheckDate(O155:V155)","v":""},null,{"$f":"IF(M154=\"\",\"\",M154 )","v":""}]
[null,null,null,null,null,null,null,null,null,null,null,null,null,null,null,null,{"$f":"R154 & \"-\" & T154","v":"-"}]
[null,null,null,null,null,null,null,null,null,null,null,null,"Добавить вид теплоносителя (параметры теплоносителя)"]
[null,null,null,null,null,null,null,null,null,null,null,null,"Добавить группу потребителей"]
[null,null,null,null,null,null,null,null,null,null,null,null,"Добавить схему подключения"]
[null,null,null,null,null,null,null,null,null,null,null,null,"Добавить источник тепловой энергии"]
[null,null,null,null,null,null,null,null,null,null,null,null,"Добавить наименование системы теплоснабжения"]
[null,null,null,null,null,null,null,null,null,null,null,null,"Добавить территорию действия тарифа"]
[]
["et_List06(_1,_2,_3)",null,"9"]
[]
[]
[1,null,null,null,null,null,null,null,null,null,null,{"$f":"mergeValue(A166)","v":1},"Наименование тарифа",null,null,null,null,null,null,null,null,null,null,null,null,null,null,null,null,null,null,null,null,null,null,null,null,null,"Указывается наименование тарифа в случае подачи предложения по нескольким тарифам.\nВ случае наличия нескольких тарифов информация по ним указывается в отдельных строках."]
[null,1,null,null,null,null,null,null,null,null,null,{"$f":"mergeValue(A167) &\".\"& mergeValue(B167)","v":"1.1"},"Территория действия тарифа",null,null,null,null,null,null,null,null,null,null,null,null,null,null,null,null,null,null,null,null,null,null,null,null,null,"Указывается наименование территории действия тарифа при наличии дифференциации тарифа по территориальному признаку.\nВ случае дифференциации тарифов по территориальному признаку информация по ним указывается в отдельных строках."]
[null,null,1,null,null,null,null,null,null,null,null,{"$f":"mergeValue(A168) &\".\"& mergeValue(B168)&\".\"& mergeValue(C168)","v":"1.1.1"},"Наименование централизованной системы водоотведения",null,null,null,null,null,null,null,null,null,null,null,null,null,null,null,null,null,null,null,null,null,null,null,null,null,"Указывается наименование централизованной системы водоотведения при наличии дифференциации тарифа по централизованным системам водоотведения\nВ случае дифференциации тарифов по централизованным системам водоотведения информация по ним указывается в отдельных строках."]
[null,null,null,1,null,null,null,null,null,null,null,{"$f":"mergeValue(A169) &\".\"& mergeValue(B169)&\".\"& mergeValue(C169)&\".\"& mergeValue(D169)","v":"1.1.1.1"},null,"да",null,"1",null,"нет",null,1,null,"нет",null,1,null,"нет",null,1,null,null,null,null,null,null,"да",null,"нет",null,"В колодке «Параметр дифференциации тарифа/Заявитель» указывается наименование категории потребителей/заявителя, к которой относится тариф.\nДаты начала и окончания указываются в виде «ДД.ММ.ГГГГ».\nВ случае отсутствия даты окончания тарифа в колонке «Дата окончания» указывается «Нет».\nВ случае дифференциации по категориям потребителей/заявителям, подключаемой нагрузке, диапазону диаметров, протяженности, условиям прокладки канализационной сети информация по ним указывается в отдельных строках.\nВ случае дифференциации по периодам действия тарифа информация по ним указывается в отдельных колонках.",{"$f":"strCheckDateOnDP(AD169:AL169,List06_9_DP)","v":""},{"$f":"IF(AND(COUNTIF(AP165:AP165,AP169)>1,AP169<>\"\"),\"ErrUnique:HasDoubleConn\",\"\")","v":""}]
[null,null,null,null,null,null,null,null,null,null,null,null,null,null,null,null,null,null,null,null,null,null,null,null,null,null,null,null,null,null,null,null,{"$f":"AH169 & \"-\" & AJ169","v":"-"},null,null,null,"нет"]
[]
[]
[null,null,null,null,null,null,null,null,null,null,null,null,null,null,null,null,"Добавить подключаемую нагрузку"]
[null,null,null,null,null,null,null,null,null,null,null,null,"Добавить строку"]
[null,null,null,null,null,null,null,null,null,null,null,null,"Добавить наименование системы водоотведения"]
[null,null,null,null,null,null,null,null,null,null,null,null,"Добавить территорию действия тарифа"]
[null,null,null,null,null,null,null,null,null,null,null,null,"Добавить наименование тарифа"]
[]
["et_List06(_1,_2,_3)",null,"10"]
[]
[1,null,null,null,null,null,null,null,null,null,null,{"$f":"mergeValue(A181)","v":1},"Наименование тарифа",null,null,null,null,null,null,null,null,null,null,null,null,null,null,null,null,null,null,null,null,null,null,null,null,"Указывается наименование тарифа в случае подачи предложения по нескольким тарифам.\nВ случае наличия нескольких тарифов информация по ним указывается в отдельных строках."]
[null,1,null,null,null,null,null,null,null,null,null,{"$f":"mergeValue(A182) &\".\"& mergeValue(B182)","v":"1.1"},"Территория действия тарифа",null,null,null,null,null,null,null,null,null,null,null,null,null,null,null,null,null,null,null,null,null,null,null,null,"Указывается наименование территории действия тарифа при наличии дифференциации тарифа по территориальному признаку.\nВ случае дифференциации тарифов по территориальному признаку информация по ним указывается в отдельных строках."]
[null,null,1,null,null,null,null,null,null,null,null,{"$f":"mergeValue(A183) &\".\"& mergeValue(B183)&\".\"& mergeValue(C183)","v":"1.1.1"},"Наименование централизованной системы водоотведения",null,null,null,null,null,null,null,null,null,null,null,null,null,null,null,null,null,null,null,null,null,null,null,null,"Указывается наименование централизованной системы водоотведения при наличии дифференциации тарифа по централизованным системам водоотведения\nВ случае дифференциации тарифов по централизованным системам водоотведения информация по ним указывается в отдельных строках."]
[null,null,null,1,null,null,null,null,null,null,null,{"$f":"mergeValue(A184) &\".\"& mergeValue(B184)&\".\"& mergeValue(C184)&\".\"& mergeValue(D184)","v":"1.1.1.1"},null,null,"1",null,"нет",null,1,null,"нет",null,"1",null,"нет",null,1,null,null,null,null,null,null,"да",null,"нет",null,"В колодке «Параметр дифференциации тарифа/Заявитель» указывается наименование категории потребителей/заявителя, к которой относится тариф.\nДаты начала и окончания указываются в виде «ДД.ММ.ГГГГ».\nВ случае отсутствия даты окончания тарифа в колонке «Дата окончания» указывается «Нет».\nВ случае дифференциации по категориям потребителей/заявителям, подключаемой нагрузке, диапазону диаметров, протяженности, условиям прокладки канализационной сети информация по ним указывается в отдельных строках.\nВ случае дифференциации по периодам действия тарифа информация по ним указывается в отдельных колонках.",{"$f":"strCheckDateOnDP(AC184:AK184,List06_10_DP)","v":""},{"$f":"IF(AND(COUNTIF(AO180:AO180,AO184)>1,AO184<>\"\"),\"ErrUnique:HasDoubleConn\",\"\")","v":""}]
[null,null,null,null,null,null,null,null,null,null,null,null,null,null,null,null,null,null,null,null,null,null,null,null,null,null,null,null,null,null,null,{"$f":"AG184 & \"-\" & AI184","v":"-"},null,null,null,"нет"]
[]
[]
[null,null,null,null,null,null,null,null,null,null,null,null,null,null,null,"Добавить подключаемую нагрузку"]
[null,null,null,null,null,null,null,null,null,null,null,null,"Добавить строку"]
[null,null,null,null,null,null,null,null,null,null,null,null,"Добавить наименование системы водоотведения"]
[null,null,null,null,null,null,null,null,null,null,null,null,"Добавить территорию действия тарифа"]
[null,null,null,null,null,null,null,null,null,null,null,null,"Добавить наименование тарифа"]
[]
[]
[]
[]
[]
[]
[]
[null,null,null,null,null,null,null,null,null,null,null,null,null,null,null,null,"нет",null,1,null,"да",null,1,null,"да",null,1]
[null,null,null,null,null,null,null,null,null,null,null,null,null,null,null,null,null,null,null,null,null,null,null,null,null,null,null,"Добавить условия прокладки сетей"]
[null,null,null,null,null,null,null,null,null,null,null,null,null,null,null,null,null,null,null,null,null,null,null,"Добавить протяженность канализационной сети"]
[]
[]
[]
["et_List07"]
[]
[]
[]
["et_List06"]
[]
[null,null,null,null,1]
[]
["et_List07"]
[]
[null,null,null,null,"1"]
[]
["et_List08"]
[]
[null,null,null,null,"1"]
[]
["et_List00_01","et_List00_02","et_List00_03"]
[]
[null,null,null,null,null,"Адрес регулируемой организации"]
[null,null,null,null,"Юридический адрес"]
[null,null,null,null,"Почтовый адрес"]
[]
[null,null,null,null,null,"Руководитель"]
[null,null,null,null,"Фамилия, имя, отчество"]
[null,null,null,null,"(код) номер телефона"]
[]
[null,null,null,null,null,"Главный бухгалтер"]
[null,null,null,null,"Фамилия, имя, отчество"]
[null,null,null,null,"(код) номер телефона"]
[]
[null,null,null,null,null,"Должностное лицо, ответственное за составление формы"]
[null,null,null,null,"Фамилия, имя, отчество"]
[null,null,null,null,"Должность"]
[null,null,null,null,"(код) номер телефона"]
[null,null,null,null,"e-mail"]
[]
["et_List03"]
[]
["3","",null,null,null,"","","",null,null,null,null,{"$f":"IF(ISERROR(INDEX(kind_of_nameforms,MATCH(E244,kind_of_forms,0),1)),\"\",INDEX(kind_of_nameforms,MATCH(E244,kind_of_forms,0),1))","v":""}]
[]
[]
["et_List01_0"]
[]
[null,"auto",null,1,null,null,0,null,null,"0",null,null,{"$f":"mergeValue(H249)","v":0},null,null,{"$f":"IF(ISERROR(MATCH(Q249,MODesc,0)),\"n\",\"y\")","v":"n"},null,{"$f":"K249&\"(\"&L249&\")\"","v":"()"}]
[null,null,null,null,null,null,null,"Добавить МР"]
[]
["et_List01_1"]
[]
[null,"auto",null,null,null,null,0,null,null,"0",null,null,{"$f":"mergeValue(H254)","v":0},null,null,null,null,{"$f":"K254&\"(\"&L254&\")\"","v":"()"}]
[null,null,null,null,null,null,null,null,null,null,"Добавить МО"]
[]
["et_List01_2"]
[]
[null,"auto",null,null,null,null,null,null,null,0,null,null,{"$f":"mergeValue(H259)","v":0},null,null,null,null,{"$f":"K259&\" (\"&L259&\")\"","v":" ()"}]
[]
[]
["et_List13_1"]
[]
[]
[]
[]
["et_List14_1_1"]
[]
[null,null,null,null,null,null,null,null,null,null,"x","Значение в колонке «Вид тарифа» выбирается из перечня видов тарифов в сфере водоотведения, предусмотренных законодательством в сфере водоснабжения и водоотведения.\nЗначение в колонке «Информация» выбирается из перечня: Метод экономически обоснованных расходов (затрат); Метод индексации установленных тарифов; Метод обеспечения доходности инвестированного капитала; Метод сравнения аналогов.\nДаты начала и окончания периода действия тарифов указывается в виде «ДД.ММ.ГГГГ».\nВ случае дифференциации предлагаемых методов регулирования видам тарифов и (или) по периодам действия тарифов информация по каждому из них указывается в отдельной строке."]
[null,null,null,null,null,null,null,"Добавить период"]
[]
[]
["et_List14_1_4"]
[]
[null,null,null,null,null,null,null,null,null,null,"x","Значение в колонке «Вид тарифа» выбирается из перечня видов тарифов в сфере водоотведения, предусмотренных законодательством в сфере водоснабжения и водоотведения.\nЗначение в колонке «Информация» выбирается из перечня: Метод экономически обоснованных расходов (затрат); Метод индексации установленных тарифов; Метод обеспечения доходности инвестированного капитала; Метод сравнения аналогов.\nДаты начала и окончания периода действия тарифов указывается в виде «ДД.ММ.ГГГГ».\nВ случае дифференциации предлагаемых методов регулирования видам тарифов и (или) по периодам действия тарифов информация по каждому из них указывается в отдельной строке."]
[null,null,null,null,null,null,null,"Добавить период"]
[]
[]
["et_List14_1_2"]
[]
[null,null,null,null,null,null,null,null,null,null,"x"]
[]
[]
["et_List14_1_3"]
[]
[null,null,null,null,null,null,null,null,null,null,"x"]
[]
[]
["et_List05(_1,_2,_3,_4)"]
[]
[1,null,null,null,null,{"$f":"\"2.\" &mergeValue(A291)","v":"2.1"},"Наименование централизованной системы коммунальной инфраструктуры",null,"Указывается наименование централизованной системы холодного водоснабжения/горячего водоснабжения/водоотведения/теплоснабжения, к которой относится размещаемая информация.\nВ случае наличия нескольких централизованных систем коммунальной инфраструктуры, информация по каждой из них указывается в отдельной строке."]
[null,null,null,null,null,{"$f":"\"3.\" &mergeValue(A292)","v":"3.1"},"Наименование регулируемого вида деятельности",null,"Указывается наименование вида регулируемой деятельности."]
[null,null,null,null,null,{"$f":"\"4.\"&mergeValue(A293)","v":"4.1"},"Территория оказания услуги по регулируемому виду деятельности","x"]
[null,1,null,null,null,{"$f":"\"4.\"&mergeValue(A294) &\".\"&mergeValue(B294)","v":"4.1.1"},"Субъект Российской Федерации",{"$f":"IF(region_name=\"\",\"\",region_name)","v":"Костромская область"},"Указывается наименование субъекта Российской Федерации"]
[null,null,1,null,null,{"$f":"\"4.\"&mergeValue(A295) &\".\"&mergeValue(B295)&\".\"&mergeValue(C295)","v":"4.1.1.1"},"муниципальный район",null,"Указывается наименование муниципального района, на территории которого организация оказывает услуги по регулируемому виду деятельности."]
[null,null,null,1,null,{"$f":"\"4.\"&mergeValue(A296) &\".\"&mergeValue(B296)&\".\"&mergeValue(C296)&\".\"&mergeValue(D296)","v":"4.1.1.1.1"},"муниципальное образование",null,"Указывается наименование и код муниципального района, муниципального образования в соответствии с Общероссийским классификатором территорий муниципальных образований (далее - ОКТМО), входящего в муниципальный район, на территории которого организация оказывает услуги по регулируемому виду деятельности.\nВ случае оказания услуг по регулируемому виду деятельности на территории нескольких муниципальных районов (муниципальных образований) данные по каждому их них указываются в отдельной строке."]
[null,null,null,null,null,null,"Добавить МО"]
[null,null,null,null,null,null,"Добавить МР"]
[null,null,null,null,null,null,"Добавить территорию"]
[null,null,null,null,null,null,"Добавить ЦС"]

{"sheet":"modInfo","index":52,"n_rows":36,"n_cols":2,"rows_kept":36,"cut":false,"hidden":true,"merged":[]}
[null,"Титульный"]
[null,"Для выбора того или иного источника публикации выполните двойной щелчок по синей ячейке напротив соответствующего источника.\nВНИМАНИЕ! Если Вы снимаете галочку с пункта, то будут скрыты и очищены соответствующие строки на листе \"Форма 1.0.2\"!\n\nОпубликование перечисленных в шаблоне показателей на сайте организации в сети Интернет и в печатных изданиях не обязательно, если данный шаблон предоставлен по системе ЕИАС (региональный сегмент)."]
[null,"Обязательное опубликование на официальном сайте органа исполнительной власти субъекта Российской Федерации в области государственного регулирования цен (тарифов), и (или) на официальном сайте органа местного самоуправления поселения или городского округа в случае их наделения в соответствии с законом субъекта Российской Федерации полномочиями по государственному регулированию цен (тарифов)предусмотрено пунктом 3 (а) постановления Правительства №6 от 17.01.2013г."]
[null,"Задайте период регулирования, выбрав даты начала и окончания периода регулирования из календаря (иконка справа от указанной ячейки), либо введите дату непосредственно в ячейку в формате - 'ДД.ММ.ГГГГ'"]
[null,"Шаблон заполняется раздельно по каждому виду тарифа"]
[null,"В зависимости от указанного вида деятельности будут доступны для заполнения поля 'Производство', 'Передача' и 'Сбыт'"]
[null,"Если выбрано 'да', на листах с разбивкой по потребителям доступны для заполнения графы для двухставочного ставочного тарифа по группам потребителей"]
[null,"Если выбрано 'да', значения тарифов для групп потребителей на листах с разбивкой по потребителям заполнятся автоматически значениями первой группы"]
[null,"Если выбрано значение «да» - в шаблоне будет сформирован лист «Форма 1.0.2» для уведомления органа регулирования о публикации информации в печатных изданиях"]
[null,"По умолчанию установлено значение «первичное раскрытие информации» Это означает, что информация раскрывается в соответствии с установленными сроком и периодичностью. В случае, если в уже отправленном шаблоне обнаружена ошибка или произошло изменение информации, исправленный шаблон необходимо отправить с типом отчета «изменения в раскрытой ранее информации». "]
[null,"Укажите является ли данное юридическое лицо подразделением(филиалом) другой организации"]
[null,"Ссылки на публикации"]
[null,"Вводите адрес сайта, не нарушая цвет ячейки /если копируете гиперссылку из браузера, то выполните двойной щелчок по ячейке и только после этого можете вставить скопированный элемент/"]
[null,"Обосновывающие материалы необходимо загружать с помощью \"ЕИАС Мониторинг\". Ссылка на инструкцию по загрузке обосновывающих материалов расположена на листе 'Инструкция' в п.'Методология заполнения'.\n\nВвводите ссылку, не нарушая цвет ячейки /если копируете гиперссылку из браузера, то выполните двойной щелчок по ячейке и только после этого можете вставить скопированный элемент/."]
[null,"Если для какого-либо пункта графы 'Наименование источника (сайта или печатного издания)' информация не раскрывалась, то в соответствующем поле укажите - 'не раскрывалась'"]
[null,"Список МО"]
[null,"В случае, если тариф не дифференцируется по системам теплоснабжения, перечислите все муниципальные районы, в которых организация осуществляет услуги теплоснабжения и сфере оказания услуг по передаче тепловой энергии"]
[null,"В случае, если тариф не дифференцируется по системам теплоснабжения, перечислите все муниципальные образования, в которых организация осуществляет услуги теплоснабжения и сфере оказания услуг по передаче тепловой энергии"]
[null,"Признак дифференциации тарифа"]
[null,"В случае, если тариф не дифференцируется по системам теплоснабжения, укажите \"1\".\nВведите значение от 1 до 100, чтобы указать очередной условный порядковый номер системы теплоснабжения"]
[null,"Стандарты"]
[null,"В качестве примечания Вы можете указать единицу измерения"]
[]
[null,"Для корректного формирования Таблицы 25 Формы 1.10 необходимо задать разбивку по диаметрам и способу прокладки тепловых сетей"]
[]
[null,"Перечень тарифов"]
[null,"Указывается наименование тарифа в случае утверждения нескольких тарифов.\nВ случае наличия нескольких тарифов информация по ним указывается в отдельных строках."]
[null,"Укажите «Да» в поле «Да/Нет», если дифференциация используется.\nВ поле «Описание» указывается наименование территории действия тарифа при наличии дифференциации тарифа по территориальному признаку.\nВ случае дифференциации тарифов по территориальному признаку информация по ним указывается в отдельных строках."]
[null,"Признаки дифференциации указываются в соответствии с п.6 ст.32 ФЗ РФ от 07.12.2011 №416-ФЗ"]
[null,"Укажите «Да» в поле «Да/Нет», если дифференциация используется. В поле «Описание» укажите название ЦС ХВС или любое другое описание"]
[]
[null,"Территории"]
[1,"Наименование территории действия тарифа для целей идентификации"]
[2,"Муниципальные районы и муниципальные образования, на территории которых действует тариф"]
[null,"Инструкция"]
[null,"Нет доступных обновлений, версия отчёта актуальна"]

{"sheet":"modList05","index":53,"n_rows":0,"n_cols":0,"rows_kept":0,"cut":false,"hidden":true,"merged":[]}

{"sheet":"modList06","index":54,"n_rows":0,"n_cols":0,"rows_kept":0,"cut":false,"hidden":true,"merged":[]}

{"sheet":"modList07","index":55,"n_rows":0,"n_cols":0,"rows_kept":0,"cut":false,"hidden":true,"merged":[]}

{"sheet":"modList13","index":56,"n_rows":0,"n_cols":0,"rows_kept":0,"cut":false,"hidden":true,"merged":[]}

{"sheet":"modfrmDateChoose","index":57,"n_rows":0,"n_cols":0,"rows_kept":0,"cut":false,"hidden":true,"merged":[]}

{"sheet":"modComm","index":58,"n_rows":0,"n_cols":0,"rows_kept":0,"cut":false,"hidden":true,"merged":[]}

{"sheet":"modThisWorkbook","index":59,"n_rows":0,"n_cols":0,"rows_kept":0,"cut":false,"hidden":true,"merged":[]}

{"sheet":"modfrmReestrMR","index":60,"n_rows":0,"n_cols":0,"rows_kept":0,"cut":false,"hidden":true,"merged":[]}

{"sheet":"modfrmCheckUpdates","index":61,"n_rows":0,"n_cols":0,"rows_kept":0,"cut":false,"hidden":true,"merged":[]}